Workbook

Sheet FACT.RECIBIDAS ENERO
A2: RUC_EMISOR | B2: RAZON_SOCIAL_EMISOR | C2: TIPO_COMPROBANTE | D2: SERIE_COMPROBANTE | E2: FECHA_EMISION | F2: VALOR_SIN_IMPUESTOS | G2: IVA | H2: IMPORTE_TOTAL
A3: 1791287541001 | B3: MEGADATOS S.A. | C3: Factura | D3: 001-011-032943011 | E3: 2023-01-01 | F3: $140.00 | G3: 16.8 | H3: =+F3+G3 -> 
A4: 1791251237001 | B4: CONSORCIO ECUATORIANO DE TELECOMUNICACIONES S.A. CONECEL | C4: Factura | D4: 001-221-003278066 | E4: 2023-01-01 | F4: 41.59 | G4: 5.21 | H4: =+F4+G4 -> 
A5: 1791251237001 | B5: CONSORCIO ECUATORIANO DE TELECOMUNICACIONES S.A. CONECEL | C5: Factura | D5: 001-221-003276365 | E5: 2023-01-01 | F5: 57.78 | G5: 6.93
A6: 992378395001 | B6: GAITALIN S.A. | C6: Factura | D6: 001-008-000832913 | E6: 2023-01-03 | F6: 8.93 | G6: 1.07
A7: 992531355001 | B7: PRODUFUENTE S.A. | C7: Factura | D7: 001-106-000194136 | E7: 2023-01-04 | F7: 2.14 | G7: $0.26
A8: 992732458001 | B8: MAXICOMBUST S.A. | C8: Factura | D8: 001-011-000098336 | E8: 2023-01-04 | F8: 5.04 | G8: .61
A9: 1791310063001 | B9: DATAFAST S.A. | C9: Factura | D9: 001-002-003437864 | E9: 2023-01-05 | F9: 7.99 | G9: .96
A10: 992732458001 | B10: MAXICOMBUST S.A. | C10: Factura | D10: 001-011-000098911 | E10: 2023-01-05 | F10: 5.98 | G10: .72
A11: 1790016919001 | B11: CORPORACION FAVORITA C.A. | C11: Factura | D11: 176-113-000130149 | E11: 2023-01-06 | F11: 3.49 | G11: .42
A12: 992732458001 | B12: MAXICOMBUST S.A. | C12: Factura | D12: 001-011-000099490 | E12: 2023-01-06 | F12: 7.1 | G12: .85
A13: 992732458001 | B13: MAXICOMBUST S.A. | C13: Factura | D13: 001-011-000099944 | E13: 2023-01-07 | F13: 5.46 | G13: .65
A14: 1791256115001 | B14: OTECEL S.A. | C14: Factura | D14: 001-327-091808354 | E14: 2023-01-08 | F14: $45.00 | G14: 5.4
A15: 992624337001 | B15: COSTAKARIM S.A. | C15: Factura | D15: 004-001-000043256 | E15: 2023-01-09 | F15: 4.46 | G15: .54
A16: 992739401001 | B16: ESTACION DE SERVICIOS ALPASO S.A. | C16: Factura | D16: 003-007-000251467 | E16: 2023-01-09 | F16: 4.46 | G16: .54
A17: 992378395001 | B17: GAITALIN S.A. | C17: Factura | D17: 001-010-000732285 | E17: 2023-01-09 | F17: 17.86 | G17: 2.14
A18: 991450009001 | B18: AGUAS DE SAMBORONDON AMAGUA C.E.M. | C18: Factura | D18: 001-001-007099676 | E18: 2023-01-10 | F18: 24.1 | G18: .01
A19: 991450009001 | B19: AGUAS DE SAMBORONDON AMAGUA C.E.M. | C19: Factura | D19: 001-001-007099677 | E19: 2023-01-10 | F19: 15.35 | G19: .01
A20: 991450009001 | B20: AGUAS DE SAMBORONDON AMAGUA C.E.M. | C20: Factura | D20: 001-001-007100247 | E20: 2023-01-10 | F20: 361.8 | G20: 1.36
A21: 991450009001 | B21: AGUAS DE SAMBORONDON AMAGUA C.E.M. | C21: Factura | D21: 001-001-007100116 | E21: 2023-01-10 | F21: 64.4 | G21: .01
A22: 991450009001 | B22: AGUAS DE SAMBORONDON AMAGUA C.E.M. | C22: Factura | D22: 001-001-007100420 | E22: 2023-01-10 | F22: 2.74 | G22: .01
A23: 991450009001 | B23: AGUAS DE SAMBORONDON AMAGUA C.E.M. | C23: Factura | D23: 001-001-007100443 | E23: 2023-01-10 | F23: 4.14 | G23: .01
A24: 992732458001 | B24: MAXICOMBUST S.A. | C24: Factura | D24: 001-011-000101416 | E24: 2023-01-10 | F24: 5.18 | G24: .62
A25: 1792990475001 | B25: ARQUIPOOLS CIA. LTDA. | C25: Factura | D25: 001-002-000002169 | E25: 2023-01-10 | F25: $650.00 | G25: $78.00 | H25: $728.00
A26: 968599020001 | B26: EMPRESA ELECTRICA PUBLICA ESTRATEGICA CORPORACION NACIONAL DE ELECTRICIDAD CNEL EP | C26: Factura | D26: 002-999-012659805 | E26: 2023-01-11 | F26: 2.47 | G26: 0
A27: 968599020001 | B27: EMPRESA ELECTRICA PUBLICA ESTRATEGICA CORPORACION NACIONAL DE ELECTRICIDAD CNEL EP | C27: Factura | D27: 002-999-012659804 | E27: 2023-01-11 | F27: 246.35 | G27: 0
A28: 968599020001 | B28: EMPRESA ELECTRICA PUBLICA ESTRATEGICA CORPORACION NACIONAL DE ELECTRICIDAD CNEL EP | C28: Factura | D28: 002-999-012664496 | E28: 2023-01-11 | F28: 57.57 | G28: 0
A29: 968599020001 | B29: EMPRESA ELECTRICA PUBLICA ESTRATEGICA CORPORACION NACIONAL DE ELECTRICIDAD CNEL EP | C29: Factura | D29: 002-999-012664942 | E29: 2023-01-11 | F29: 3.19 | G29: 0
A30: 968599020001 | B30: EMPRESA ELECTRICA PUBLICA ESTRATEGICA CORPORACION NACIONAL DE ELECTRICIDAD CNEL EP | C30: Factura | D30: 002-999-012664421 | E30: 2023-01-11 | F30: 278.18 | G30: 0
A31: 968599020001 | B31: EMPRESA ELECTRICA PUBLICA ESTRATEGICA CORPORACION NACIONAL DE ELECTRICIDAD CNEL EP | C31: Factura | D31: 002-999-012664571 | E31: 2023-01-11 | F31: 277.86 | G31: 0
A32: 992732458001 | B32: MAXICOMBUST S.A. | C32: Factura | D32: 001-011-000101918 | E32: 2023-01-11 | F32: 6.25 | G32: .75
A33: 992378395001 | B33: GAITALIN S.A. | C33: Factura | D33: 001-009-000811074 | E33: 2023-01-12 | F33: 8.93 | G33: 1.07
A34: 1791768892001 | B34: FERJEM SEGURIDAD CIA. LTDA. | C34: Factura | D34: 001-010-000002833 | E34: 2023-01-12 | F34: $265.00 | G34: 31.8
A35: 1791768892001 | B35: FERJEM SEGURIDAD CIA. LTDA. | C35: Factura | D35: 001-010-000002834 | E35: 2023-01-12 | F35: $1,060.00 | G35: 0 | H35: $1,060.00
A36: 992732458001 | B36: MAXICOMBUST S.A. | C36: Factura | D36: 001-011-000102647 | E36: 2023-01-12 | F36: 3.57 | G36: .43
A37: 992732458001 | B37: MAXICOMBUST S.A. | C37: Factura | D37: 001-011-000103313 | E37: 2023-01-13 | F37: 6.89 | G37: .83
A38: 993198382001 | B38: DISTRIBUIDORA PERIMETRAL DE COMBUSTIBLES LIQUIDOS DIPERCOMLIQ CIA. LTDA | C38: Factura | D38: 001-002-001084615 | E38: 2023-01-14 | F38: 11.12 | G38: 1.33
A39: 992378395001 | B39: GAITALIN S.A. | C39: Factura | D39: 001-010-000735073 | E39: 2023-01-16 | F39: 4.46 | G39: .54
A40: 992732458001 | B40: MAXICOMBUST S.A. | C40: Factura | D40: 001-011-000105017 | E40: 2023-01-16 | F40: 7.32 | G40: .88
A41: 101518660001 | B41: PESANTEZ CORDERO PEDRITO RAFAEL | C41: Factura | D41: 005-102-000413998 | E41: 2023-01-16 | F41: 5.36 | G41: .64
A42: 914150149001 | B42: CHAVEZ DELGADO SONIA MARIBEL | C42: Factura | D42: 001-002-000000128 | E42: 2023-01-16 | F42: 26.23 | G42: 3.15
A43: 913989406001 | B43: FLORES GARCIA SANTOS EDMUNDO | C43: Factura | D43: 001-100-000007294 | E43: 2023-01-17 | F43: 3.3 | G43: 0
A44: 992624337001 | B44: COSTAKARIM S.A. | C44: Factura | D44: 004-001-000048404 | E44: 2023-01-17 | F44: 10.71 | G44: 1.29
A45: 925823601001 | B45: PILCO CONTRERAS GABRIELA VIRGINIA | C45: Factura | D45: 001-001-000000002 | E45: 2023-01-17 | F45: $160.00 | G45: 0 | H45: $160.00
A46: 992411686001 | B46: HORMICORP S. A. HORMIGONES Y PREFABRICADOS | C46: Factura | D46: 002-101-000054685 | E46: 2023-01-17 | F46: 8.93 | G46: 1.07
A47: 990004196001 | B47: CORPORACION EL ROSADO S.A. | C47: Factura | D47: 138-032-000139308 | E47: 2023-01-18 | F47: 9.06 | G47: 1.09
A48: 924317548001 | B48: YEPEZ ALAVA VICTOR EMILIO | C48: Factura | D48: 002-003-000000366 | E48: 2023-01-18 | F48: 14.37 | G48: 1.72
A49: 992378395001 | B49: GAITALIN S.A. | C49: Factura | D49: 001-009-000813791 | E49: 2023-01-18 | F49: 13.39 | G49: 1.61
A50: 990005737001 | B50: BANCO DEL PACIFICO S.A. | C50: Factura | D50: 113-001-185961959 | E50: 2023-01-18 | F50: .51 | G50: .06
A51: 990005737001 | B51: BANCO DEL PACIFICO S.A. | C51: Factura | D51: 113-001-185962015 | E51: 2023-01-18 | F51: .51 | G51: .06
A52: 990005737001 | B52: BANCO DEL PACIFICO S.A. | C52: Factura | D52: 113-001-185962067 | E52: 2023-01-18 | F52: .51 | G52: .06
A53: 990005737001 | B53: BANCO DEL PACIFICO S.A. | C53: Factura | D53: 113-001-185962121 | E53: 2023-01-18 | F53: .51 | G53: .06
A54: 990005737001 | B54: BANCO DEL PACIFICO S.A. | C54: Factura | D54: 113-001-185962171 | E54: 2023-01-18 | F54: .51 | G54: .06
A55: 992732458001 | B55: MAXICOMBUST S.A. | C55: Factura | D55: 001-011-000106728 | E55: 2023-01-19 | F55: 5.8 | G55: .7
A56: 925823601001 | B56: PILCO CONTRERAS GABRIELA VIRGINIA | C56: Factura | D56: 001-001-000000003 | E56: 2023-01-19 | F56: $900.00 | G56: 0 | H56: $900.00
A57: 993074659001 | B57: DISTRIBUIDORA DE COMBUSTIBLES LIQUIDOS DISCOMLIQ S.A. | C57: Factura | D57: 002-014-000195372 | E57: 2023-01-22 | F57: 6.43 | G57: .77
A58: 992732458001 | B58: MAXICOMBUST S.A. | C58: Factura | D58: 001-011-000108243 | E58: 2023-01-22 | F58: 5.45 | G58: .65
A59: 992732458001 | B59: MAXICOMBUST S.A. | C59: Factura | D59: 001-011-000109304 | E59: 2023-01-23 | F59: 6.07 | G59: .73
A60: 992378395001 | B60: GAITALIN S.A. | C60: Factura | D60: 001-009-000816454 | E60: 2023-01-24 | F60: 13.39 | G60: 1.61
A61: 992378395001 | B61: GAITALIN S.A. | C61: Factura | D61: 001-009-000816455 | E61: 2023-01-24 | F61: 10.71 | G61: 1.29
A62: 993074659001 | B62: DISTRIBUIDORA DE COMBUSTIBLES LIQUIDOS DISCOMLIQ S.A. | C62: Factura | D62: 002-012-000225389 | E62: 2023-01-25 | F62: 1.79 | G62: .21
A63: 913523296001 | B63: SUAREZ LUQUE JOSE ENRIQUE | C63: Factura | D63: 001-001-000000002 | E63: 2023-01-26 | F63: 793.4 | G63: 95.21
A64: 913523296001 | B64: SUAREZ LUQUE JOSE ENRIQUE | C64: Factura | D64: 001-001-000000003 | E64: 2023-01-26 | F64: 793.4 | G64: 95.21
A65: 913523296001 | B65: SUAREZ LUQUE JOSE ENRIQUE | C65: Factura | D65: 001-001-000000001 | E65: 2023-01-26 | F65: 79.34 | G65: 9.52
A66: 1791768892001 | B66: FERJEM SEGURIDAD CIA. LTDA. | C66: Factura | D66: 001-010-000002845 | E66: 2023-01-26 | F66: $265.00 | G66: 31.8
A67: 1791768892001 | B67: FERJEM SEGURIDAD CIA. LTDA. | C67: Factura | D67: 001-010-000002846 | E67: 2023-01-26 | F67: $1,060.00 | G67: 0 | H67: $1,060.00
A68: 913199352001 | B68: CABRERA CARRION GLADYS XIMENA | C68: Factura | D68: 001-004-000196757 | E68: 2023-01-27 | F68: 189.3 | G68: 22.72 | H68: =+F68+G68 -> 
A69: 913989406001 | B69: FLORES GARCIA SANTOS EDMUNDO | C69: Factura | D69: 001-100-000007843 | E69: 2023-01-27 | F69: 1.99 | G69: .24
A70: 913199352001 | B70: CABRERA CARRION GLADYS XIMENA | C70: Factura | D70: 001-004-000196913 | E70: 2023-01-28 | F70: 61.61 | G70: 7.39
A71: 913199352001 | B71: CABRERA CARRION GLADYS XIMENA | C71: Factura | D71: 001-004-000196880 | E71: 2023-01-28 | F71: 115.27 | G71: 13.83
A72: 992732458001 | B72: MAXICOMBUST S.A. | C72: Factura | D72: 001-011-000112954 | E72: 2023-01-30 | F72: 6.96 | G72: .83
A73: 913199352001 | B73: CABRERA CARRION GLADYS XIMENA | C73: Factura | D73: 001-004-000196974 | E73: 2023-01-30 | F73: 240.89 | G73: 28.91
A74: 993198382001 | B74: DISTRIBUIDORA PERIMETRAL DE COMBUSTIBLES LIQUIDOS DIPERCOMLIQ CIA. LTDA | C74: Factura | D74: 001-012-000653735 | E74: 2023-01-30 | F74: 8.93 | G74: 1.07
A75: 1790041220001 | B75: COMERCIAL KYWI S.A. | C75: Factura | D75: 033-904-000308332 | E75: 2023-01-31 | F75: 18.2 | G75: 2.18
A76: 992732458001 | B76: MAXICOMBUST S.A. | C76: Factura | D76: 001-011-000113528 | E76: 2023-01-31 | F76: 5.36 | G76: .64
D79: FACTURADO EN EL SRI INGRESADO AL SISTEMA | H79: =+H3+H4+H5+H6+H9+H11+H14+H15+H17+H18+H19+H20+H21+H22+H23+H25+H26+H28+H27+H29+H30+H31+H34+H35+H42+H44+H45+H46+H47+H48+H49+H50+H51+H52+H53+H54+H56+H60+H61+H63+H64+H65+H66+H67+H68+H70+H71+H73+H75 -> 
C80: NOTAS DE VENTA Y DOCUMENTPOS AUTORIUZADOS NO INGRESADOS | H80: $666.70
H82: =SUM(H79:H81) -> 

Sheet FACT. RECIBIDAS FEBRERO
A1: RAZON_SOCIAL_EMISOR | B1: TIPO_COMPROBANTE | C1: SERIE_COMPROBANTE | D1: FECHA_EMISION | E1: VALOR_SIN_IMPUESTOS | F1: IVA | G1: IMPORTE_TOTAL
A2: CONSORCIO ECUATORIANO DE TELECOMUNICACIONES S.A. CONECEL | B2: Factura | C2: 001-221-003304023 | D2: 2023-02-01 | E2: 59.08 | F2: 7.09 | G2: =+E2+F2 -> 
A3: CONSORCIO ECUATORIANO DE TELECOMUNICACIONES S.A. CONECEL | B3: Factura | C3: 001-221-003305677 | D3: 2023-02-01 | E3: 41.37 | F3: 5.18 | G3: =+E3+F3 -> 
A4: COMERCIO Y PREDIOS COMPRED S.A. | B4: Factura | C4: 001-012-001068510 | D4: 2023-02-01 | E4: 13.39 | F4: 1.61
A5: GAITALIN S.A. | B5: Factura | C5: 001-008-000846651 | D5: 2023-02-01 | E5: 4.46 | F5: .54
A6: MAXICOMBUST S.A. | B6: Factura | C6: 001-011-000114128 | D6: 2023-02-01 | E6: 6.87 | F6: .82
A7: MEGADATOS S.A. | B7: Factura | C7: 001-011-033717560 | D7: 2023-02-01 | E7: 140 | F7: 16.8
A8: GAITALIN S.A. | B8: Factura | C8: 001-013-000651955 | D8: 2023-02-03 | E8: 4.46 | F8: .54
A9: GLOBALCESPED S.A. | B9: Factura | C9: 001-010-000001189 | D9: 2023-02-03 | E9: 95 | F9: 11.4
A10: LA CHIRIPA CHIRS S.A. | B10: Factura | C10: 005-004-000162458 | D10: 2023-02-03 | E10: 10.71 | F10: 1.29
A11: DATAFAST S.A. | B11: Factura | C11: 001-002-003491814 | D11: 2023-02-05 | E11: 7.99 | F11: .96
A12: DISTRIBUIDORA PERIMETRAL DE COMBUSTIBLES LIQUIDOS DIPERCOMLIQ CIA. LTDA | B12: Factura | C12: 001-001-001007586 | D12: 2023-02-05 | E12: 4.46 | F12: .54
A13: ATIMASA S.A. | B13: Factura | C13: 077-005-001659288 | D13: 2023-02-08 | E13: 13.39 | F13: 1.61
A14: ARQUIPOOLS CIA. LTDA. | B14: Factura | C14: 002-002-000002345 | D14: 2023-02-08 | E14: 162.5 | F14: 19.5
A15: OTECEL S.A. | B15: Factura | C15: 001-327-092797979 | D15: 2023-02-08 | E15: 45 | F15: 5.4
A16: ARQUIPOOLS CIA. LTDA. | B16: Factura | C16: 002-002-000002398 | D16: 2023-02-09 | E16: 60.67 | F16: 7.28
A17: EMPRESA ELECTRICA PUBLICA ESTRATEGICA CORPORACION NACIONAL DE ELECTRICIDAD CNEL EP | B17: Factura | C17: 002-999-012981627 | D17: 2023-02-09 | E17: 276.43 | F17: 0
A18: EMPRESA ELECTRICA PUBLICA ESTRATEGICA CORPORACION NACIONAL DE ELECTRICIDAD CNEL EP | B18: Factura | C18: 002-999-012976861 | D18: 2023-02-09 | E18: 1.93 | F18: 0
A19: EMPRESA ELECTRICA PUBLICA ESTRATEGICA CORPORACION NACIONAL DE ELECTRICIDAD CNEL EP | B19: Factura | C19: 002-999-012981477 | D19: 2023-02-09 | E19: 286.1 | F19: 0
A20: EMPRESA ELECTRICA PUBLICA ESTRATEGICA CORPORACION NACIONAL DE ELECTRICIDAD CNEL EP | B20: Factura | C20: 002-999-012976860 | D20: 2023-02-09 | E20: 245 | F20: 0 | G20: 245
A21: EMPRESA ELECTRICA PUBLICA ESTRATEGICA CORPORACION NACIONAL DE ELECTRICIDAD CNEL EP | B21: Factura | C21: 002-999-012981998 | D21: 2023-02-09 | E21: 2.75 | F21: 0
A22: EMPRESA ELECTRICA PUBLICA ESTRATEGICA CORPORACION NACIONAL DE ELECTRICIDAD CNEL EP | B22: Factura | C22: 002-999-012981552 | D22: 2023-02-09 | E22: 17.02 | F22: 0
A23: BELICOF S.A. | B23: Factura | C23: 001-099-000000181 | D23: 2023-02-09 | E23: 149.7 | F23: 17.96
A24: FERJEM SEGURIDAD CIA. LTDA. | B24: Factura | C24: 001-010-000002897 | D24: 2023-02-09 | E24: 1060 | F24: 0 | G24: 1060
A25: FERJEM SEGURIDAD CIA. LTDA. | B25: Factura | C25: 001-010-000002896 | D25: 2023-02-09 | E25: 265 | F25: 31.8
A26: AGUAS DE SAMBORONDON AMAGUA C.E.M. | B26: Factura | C26: 001-001-007161811 | D26: 2023-02-09 | E26: 4.15 | F26: .01
A27: AGUAS DE SAMBORONDON AMAGUA C.E.M. | B27: Factura | C27: 001-001-007161045 | D27: 2023-02-09 | E27: 14.06 | F27: .01
A28: AGUAS DE SAMBORONDON AMAGUA C.E.M. | B28: Factura | C28: 001-001-007161484 | D28: 2023-02-09 | E28: 69.24 | F28: .01
A29: AGUAS DE SAMBORONDON AMAGUA C.E.M. | B29: Factura | C29: 001-001-007161615 | D29: 2023-02-09 | E29: 346.78 | F29: 1.36
A30: AGUAS DE SAMBORONDON AMAGUA C.E.M. | B30: Factura | C30: 001-001-007161788 | D30: 2023-02-09 | E30: 2.73 | F30: .01
A31: FIGUEROA TUMBACO ALEJANDRO NEMECIO | B31: Factura | C31: 002-200-000000932 | D31: 2023-02-09 | E31: 123 | F31: 14.76
A32: AGUAS DE SAMBORONDON AMAGUA C.E.M. | B32: Factura | C32: 001-001-007161044 | D32: 2023-02-09 | E32: 24.1 | F32: .01
A33: ROSADO ARGUELLO ARLEDIS IBETH | B33: Factura | C33: 001-001-000000039 | D33: 2023-02-13 | E33: 40 | F33: 0 | G33: 40
A34: BANCO DEL PACIFICO S.A. | B34: Factura | C34: 113-001-187119603 | D34: 2023-02-13 | E34: .51 | F34: .06
A35: CABRERA CARRION GLADYS XIMENA | B35: Factura | C35: 001-004-000198626 | D35: 2023-02-13 | E35: 111.61 | F35: 13.39
A36: CABRERA CARRION GLADYS XIMENA | B36: Factura | C36: 001-004-000198627 | D36: 2023-02-13 | E36: 126.06 | F36: 14.35
A37: SUAREZ LUQUE JOSE ENRIQUE | B37: Factura | C37: 001-001-000000004 | D37: 2023-02-14 | E37: 793.4 | F37: 95.21
A38: PILCO CONTRERAS GABRIELA VIRGINIA | B38: Factura | C38: 001-001-000000004 | D38: 2023-02-14 | E38: 900 | F38: 0 | G38: 900
A39: HORMICORP S. A. HORMIGONES Y PREFABRICADOS | B39: Factura | C39: 002-102-000031542 | D39: 2023-02-15 | E39: 26.79 | F39: 3.21
A40: BANCO DEL PACIFICO S.A. | B40: Factura | C40: 113-001-187179139 | D40: 2023-02-15 | E40: .51 | F40: .06
A41: BANCO DEL PACIFICO S.A. | B41: Factura | C41: 113-001-187179197 | D41: 2023-02-15 | E41: .51 | F41: .06
A42: BANCO DEL PACIFICO S.A. | B42: Factura | C42: 113-001-187179528 | D42: 2023-02-15 | E42: .51 | F42: .06
A43: BANCO DEL PACIFICO S.A. | B43: Factura | C43: 113-001-187179402 | D43: 2023-02-15 | E43: .51 | F43: .06
A44: BANCO DEL PACIFICO S.A. | B44: Factura | C44: 113-001-187179478 | D44: 2023-02-15 | E44: .51 | F44: .06
A45: BANCO DEL PACIFICO S.A. | B45: Factura | C45: 113-001-187179351 | D45: 2023-02-15 | E45: .51 | F45: .06
A46: BANCO DEL PACIFICO S.A. | B46: Factura | C46: 113-001-187179085 | D46: 2023-02-15 | E46: .51 | F46: .06
A47: BANCO DEL PACIFICO S.A. | B47: Factura | C47: 113-001-187179258 | D47: 2023-02-15 | E47: .51 | F47: .06
A48: IDROVO ZAMBRANO ROSA LEONOR | B48: Factura | C48: 001-010-000000192 | D48: 2023-02-16 | E48: 459.88 | F48: 0
A49: CORPORACION EL ROSADO S.A. | B49: Factura | C49: 138-032-000153156 | D49: 2023-02-17 | E49: 3.16 | F49: 0
A50: COMPUTRONSA S.A. | B50: Factura | C50: 024-002-000047186 | D50: 2023-02-17 | E50: 16.06 | F50: 1.93
A51: MAXICOMBUST S.A. | B51: Factura | C51: 001-011-000128031 | D51: 2023-02-23 | E51: 6.7 | F51: .8
A52: GAITALIN S.A. | B52: Factura | C52: 001-010-000749813 | D52: 2023-02-23 | E52: 10.71 | F52: 1.29
A53: COMERCIAL KYWI S.A. | B53: Factura | C53: 033-902-000460482 | D53: 2023-02-23 | E53: 9.75 | F53: 1.17
A54: GAITALIN S.A. | B54: Factura | C54: 001-010-000749812 | D54: 2023-02-23 | E54: 13.39 | F54: 1.61
A55: GETTAREQ S.A. | B55: Factura | C55: 116-010-000196473 | D55: 2023-02-24 | E55: .6 | F55: 0
A56: FLORES GARCIA SANTOS EDMUNDO | B56: Factura | C56: 001-100-000009219 | D56: 2023-02-24 | E56: 3.1 | F56: 0
A57: BELICOF S.A. | B57: Factura | C57: 001-099-000000215 | D57: 2023-02-24 | E57: 149.7 | F57: 17.96
A58: ESTACION DE SERVICIOS ALPASO S.A. | B58: Factura | C58: 003-007-000260380 | D58: 2023-02-26 | E58: 3.93 | F58: .47
A59: MAXICOMBUST S.A. | B59: Factura | C59: 001-011-000129736 | D59: 2023-02-26 | E59: 5.37 | F59: .64
A60: FERJEM SEGURIDAD CIA. LTDA. | B60: Factura | C60: 001-010-000002910 | D60: 2023-02-27 | E60: 265 | F60: 31.8
A61: FERJEM SEGURIDAD CIA. LTDA. | B61: Factura | C61: 001-010-000002911 | D61: 2023-02-27 | E61: 1060 | F61: 0 | G61: 1060
A62: CHAVEZ DELGADO SONIA MARIBEL | B62: Factura | C62: 001-002-000000209 | D62: 2023-02-27 | E62: 49.98 | F62: 6
A63: GAITALIN S.A. | B63: Factura | C63: 001-012-000466917 | D63: 2023-02-27 | E63: 4.46 | F63: .54
A64: ESTACION DE SERVICIOS ALPASO S.A. | B64: Factura | C64: 003-002-000202626 | D64: 2023-02-28 | E64: 4.46 | F64: .54
G65: =SUM(G2:G64) -> 

Sheet FACT. RECIBIDAS MARZO
A2: RUC_EMISOR | B2: RAZON_SOCIAL_EMISOR | C2: TIPO_COMPROBANTE | D2: SERIE_COMPROBANTE | E2: CLAVE_ACCESO | F2: FECHA_AUTORIZACION | G2: FECHA_EMISION | H2: VALOR_SIN_IMPUESTOS | I2: IVA | J2: IMPORTE_TOTAL
A3: 1791287541001 | B3: MEGADATOS S.A. | C3: Factura | D3: 001-011-034498756 | E3: 1.032023012e+47 | F3: 2023-03-01T05:40:46 | G3: 2023-03-01 | H3: 140 | I3: 16.8 | J3: 156.8
A4: 992739401001 | B4: ESTACION DE SERVICIOS ALPASO S.A. | C4: Factura | D4: 003-008-000133108 | E4: 1.032023011e+47 | F4: 2023-03-01T08:23:43 | G4: 2023-03-01 | H4: 10.71 | I4: 1.29 | J4: 12
A5: 1791251237001 | B5: CONSORCIO ECUATORIANO DE TELECOMUNICACIONES S.A. CONECEL | C5: Factura | D5: 001-221-003334027 | E5: 1.032023012e+47 | F5: 2023-03-01T15:01:22 | G5: 2023-03-01 | H5: 41.19 | I5: 5.16 | J5: 48.15
A6: 1791251237001 | B6: CONSORCIO ECUATORIANO DE TELECOMUNICACIONES S.A. CONECEL | C6: Factura | D6: 001-221-003333166 | E6: 1.032023012e+47 | F6: 2023-03-01T14:52:13 | G6: 2023-03-01 | H6: 57.67 | I6: 6.92 | J6: 64.59
A7: 992560754001 | B7: ZUKALO S.A. | C7: Factura | D7: 001-001-000418803 | E7: 1.032023011e+47 | F7: 2023-03-02T16:57:29 | G7: 2023-03-01 | H7: 632.4 | I7: 75.89 | J7: 708.29
A8: 101518660001 | B8: PESANTEZ CORDERO PEDRITO RAFAEL | C8: Factura | D8: 005-103-000339030 | E8: 1.03202301e+47 | F8: 2023-03-01T10:24:57 | G8: 2023-03-01 | H8: 5.1 | I8: .61 | J8: 5.71
A9: 992732458001 | B9: MAXICOMBUST S.A. | C9: Factura | D9: 001-011-000131795 | E9: 2.032023011e+47 | F9: 2023-03-02T09:22:26 | G9: 2023-03-02 | H9: 7.14 | I9: .86 | J9: 8
A10: 993366686001 | B10: GIGANTOPRINT S.A.S. | C10: Factura | D10: 001-900-000000118 | E10: 3.032023011e+47 | F10: 2023-03-03T13:43:33 | G10: 2023-03-03 | H10: 40 | I10: 4.8 | J10: 44.8
A11: 992732458001 | B11: MAXICOMBUST S.A. | C11: Factura | D11: 001-011-000132377 | E11: 3.032023011e+47 | F11: 2023-03-03T08:21:22 | G11: 2023-03-03 | H11: 5.8 | I11: .7 | J11: 6.5
A12: 913199352001 | B12: CABRERA CARRION GLADYS XIMENA | C12: Factura | D12: 001-004-000200632 | E12: 3.032023011e+47 | F12: 2023-03-03T09:25:30 | G12: 2023-03-03 | H12: 165.53 | I12: 19.86 | J12: 185.39
A13: 913989406001 | B13: FLORES GARCIA SANTOS EDMUNDO | C13: Factura | D13: 001-100-000009572 | E13: 3.032023011e+47 | F13: 2023-03-04T10:55:21 | G13: 2023-03-03 | H13: 1.88 | I13: .23 | J13: 2.11
A14: 990004196001 | B14: CORPORACION EL ROSADO S.A. | C14: Factura | D14: 138-038-000523912 | E14: 3.032023011e+47 | F14: 2023-03-03T21:58:00 | G14: 2023-03-03 | H14: 22.23 | I14: 2.67 | J14: 24.9
A15: 993198382001 | B15: DISTRIBUIDORA PERIMETRAL DE COMBUSTIBLES LIQUIDOS DIPERCOMLIQ CIA. LTDA | C15: Factura | D15: 001-012-000672420 | E15: 4.032023011e+47 | F15: 2023-03-04T18:11:43 | G15: 2023-03-04 | H15: 4.46 | I15: .54 | J15: 5
A16: 1791310063001 | B16: DATAFAST S.A. | C16: Factura | D16: 001-002-003545542 | E16: 5.032023012e+47 | F16: 2023-03-06T05:27:19 | G16: 2023-03-05 | H16: 7.99 | I16: .96 | J16: 8.95
A17: 912445269001 | B17: FIGUEROA TUMBACO ALEJANDRO NEMECIO | C17: Factura | D17: 002-200-000001153 | E17: 6.032023011e+47 | F17: 2023-03-06T11:10:57 | G17: 2023-03-06 | H17: 161 | I17: 19.32 | J17: 180.32
A18: 992739401001 | B18: ESTACION DE SERVICIOS ALPASO S.A. | C18: Factura | D18: 003-009-000120054 | E18: 6.032023011e+47 | F18: 2023-03-06T08:26:22 | G18: 2023-03-06 | H18: 4.46 | I18: .54 | J18: 5
A19: 992840234001 | B19: GETTAREQ S.A. | C19: Factura | D19: 116-010-000197401 | E19: 7.032023011e+47 | F19: 2023-03-07T09:21:46 | G19: 2023-03-07 | H19: .6 | I19: 0 | J19: .6
A20: 968599020001 | B20: EMPRESA ELECTRICA PUBLICA ESTRATEGICA CORPORACION NACIONAL DE ELECTRICIDAD CNEL EP | C20: Factura | D20: 002-999-013318830 | E20: 8.032023011e+47 | F20: 2023-03-14T03:53:17 | G20: 2023-03-08 | H20: 244.22 | I20: 0 | J20: 244.22
A21: 968599020001 | B21: EMPRESA ELECTRICA PUBLICA ESTRATEGICA CORPORACION NACIONAL DE ELECTRICIDAD CNEL EP | C21: Factura | D21: 002-999-013323524 | E21: 8.032023011e+47 | F21: 2023-03-14T03:48:05 | G21: 2023-03-08 | H21: 7.83 | I21: 0 | J21: 7.83
A22: 968599020001 | B22: EMPRESA ELECTRICA PUBLICA ESTRATEGICA CORPORACION NACIONAL DE ELECTRICIDAD CNEL EP | C22: Factura | D22: 002-999-013318831 | E22: 8.032023011e+47 | F22: 2023-03-14T03:53:17 | G22: 2023-03-08 | H22: 2.04 | I22: 0 | J22: 2.04
A23: 968599020001 | B23: EMPRESA ELECTRICA PUBLICA ESTRATEGICA CORPORACION NACIONAL DE ELECTRICIDAD CNEL EP | C23: Factura | D23: 002-999-013323599 | E23: 8.032023011e+47 | F23: 2023-03-14T03:48:36 | G23: 2023-03-08 | H23: 343.81 | I23: 0 | J23: 343.81
A24: 968599020001 | B24: EMPRESA ELECTRICA PUBLICA ESTRATEGICA CORPORACION NACIONAL DE ELECTRICIDAD CNEL EP | C24: Factura | D24: 002-999-013323972 | E24: 8.032023011e+47 | F24: 2023-03-14T03:53:17 | G24: 2023-03-08 | H24: 2.75 | I24: 0 | J24: 2.75
A25: 968599020001 | B25: EMPRESA ELECTRICA PUBLICA ESTRATEGICA CORPORACION NACIONAL DE ELECTRICIDAD CNEL EP | C25: Factura | D25: 002-999-013323449 | E25: 8.032023011e+47 | F25: 2023-03-14T03:47:27 | G25: 2023-03-08 | H25: 360.63 | I25: 0 | J25: 360.63
A26: 1791256115001 | B26: OTECEL S.A. | C26: Factura | D26: 001-327-093607257 | E26: 8.032023012e+47 | F26: 2023-03-08T05:21:11 | G26: 2023-03-08 | H26: 45 | I26: 5.4 | J26: 50.4
A27: 992739401001 | B27: ESTACION DE SERVICIOS ALPASO S.A. | C27: Factura | D27: 003-005-000394271 | E27: 9.032023011e+47 | F27: 2023-03-09T08:24:05 | G27: 2023-03-09 | H27: 10.71 | I27: 1.29 | J27: 12
A28: 992840234001 | B28: GETTAREQ S.A. | C28: Factura | D28: 116-010-000197562 | E28: 9.032023011e+47 | F28: 2023-03-09T09:03:31 | G28: 2023-03-09 | H28: 2.66 | I28: .32 | J28: 2.98
A29: 1790041220001 | B29: COMERCIAL KYWI S.A. | C29: Factura | D29: 033-902-000464061 | E29: 1.003202301e+48 | F29: 2023-03-10T14:54:34 | G29: 2023-03-10 | H29: 11.34 | I29: 1.36 | J29: 12.7
A30: 993198382001 | B30: DISTRIBUIDORA PERIMETRAL DE COMBUSTIBLES LIQUIDOS DIPERCOMLIQ CIA. LTDA | C30: Factura | D30: 001-012-000678217 | E30: 1.003202301e+48 | F30: 2023-03-10T15:08:18 | G30: 2023-03-10 | H30: 2.68 | I30: .32 | J30: 3
A31: 992378395001 | B31: GAITALIN S.A. | C31: Factura | D31: 001-013-000662643 | E31: 1.003202301e+48 | F31: 2023-03-10T14:59:14 | G31: 2023-03-10 | H31: 17.86 | I31: 2.14 | J31: 20
A32: 992840234001 | B32: GETTAREQ S.A. | C32: Factura | D32: 116-010-000197717 | E32: 1.003202301e+48 | F32: 2023-03-10T17:17:30 | G32: 2023-03-10 | H32: 2.66 | I32: .32 | J32: 2.98
A33: 991450009001 | B33: AGUAS DE SAMBORONDON AMAGUA C.E.M. | C33: Factura | D33: 001-001-007222938 | E33: 1.103202301e+48 | F33: 2023-03-11T23:20:04 | G33: 2023-03-11 | H33: 69.15 | I33: .01 | J33: 69.16
A34: 991450009001 | B34: AGUAS DE SAMBORONDON AMAGUA C.E.M. | C34: Factura | D34: 001-001-007222499 | E34: 1.103202301e+48 | F34: 2023-03-11T22:54:05 | G34: 2023-03-11 | H34: 12.62 | I34: .01 | J34: 12.63
A35: 991450009001 | B35: AGUAS DE SAMBORONDON AMAGUA C.E.M. | C35: Factura | D35: 001-001-007222498 | E35: 1.103202301e+48 | F35: 2023-03-11T22:54:01 | G35: 2023-03-11 | H35: 24.1 | I35: .01 | J35: 24.11
A36: 991450009001 | B36: AGUAS DE SAMBORONDON AMAGUA C.E.M. | C36: Factura | D36: 001-001-007223069 | E36: 1.103202301e+48 | F36: 2023-03-11T23:27:47 | G36: 2023-03-11 | H36: 358.92 | I36: 1.36 | J36: 360.28
A37: 991450009001 | B37: AGUAS DE SAMBORONDON AMAGUA C.E.M. | C37: Factura | D37: 001-001-007223265 | E37: 1.103202301e+48 | F37: 2023-03-11T23:39:23 | G37: 2023-03-11 | H37: 5.56 | I37: .01 | J37: 5.57
A38: 991450009001 | B38: AGUAS DE SAMBORONDON AMAGUA C.E.M. | C38: Factura | D38: 001-001-007223242 | E38: 1.103202301e+48 | F38: 2023-03-11T23:38:03 | G38: 2023-03-11 | H38: 2.73 | I38: .01 | J38: 2.74
A39: 1791768892001 | B39: FERJEM SEGURIDAD CIA. LTDA. | C39: Factura | D39: 001-010-000002950 | E39: 1.303202301e+48 | F39: 2023-03-13T10:45:37 | G39: 2023-03-13 | H39: 265 | I39: 31.8 | J39: 296.8
A40: 1791768892001 | B40: FERJEM SEGURIDAD CIA. LTDA. | C40: Factura | D40: 001-010-000002951 | E40: 1.303202301e+48 | F40: 2023-03-13T10:47:50 | G40: 2023-03-13 | H40: 1060 | I40: 0 | J40: 1060
A41: 992378395001 | B41: GAITALIN S.A. | C41: Factura | D41: 001-013-000663494 | E41: 1.303202301e+48 | F41: 2023-03-13T12:34:27 | G41: 2023-03-13 | H41: 4.46 | I41: .54 | J41: 5
A42: 992378395001 | B42: GAITALIN S.A. | C42: Factura | D42: 001-011-000526314 | E42: 1.503202301e+48 | F42: 2023-03-15T14:23:28 | G42: 2023-03-15 | H42: 4.46 | I42: .54 | J42: 5
A43: 992378395001 | B43: GAITALIN S.A. | C43: Factura | D43: 001-013-000664309 | E43: 1.503202301e+48 | F43: 2023-03-15T19:36:23 | G43: 2023-03-15 | H43: 8.93 | I43: 1.07 | J43: 10
A44: 992732458001 | B44: MAXICOMBUST S.A. | C44: Factura | D44: 001-011-000140364 | E44: 1.603202301e+48 | F44: 2023-03-16T20:15:12 | G44: 2023-03-16 | H44: 5.63 | I44: .68 | J44: 6.3
A45: 992539380001 | B45: ESCRITORNI S.A. | C45: Factura | D45: 001-005-002083060 | E45: 1.603202301e+48 | F45: 2023-03-16T13:43:22 | G45: 2023-03-16 | H45: 13.39 | I45: 1.61 | J45: 15
A46: 992732458001 | B46: MAXICOMBUST S.A. | C46: Factura | D46: 001-011-000141407 | E46: 1.803202301e+48 | F46: 2023-03-18T15:31:16 | G46: 2023-03-18 | H46: 6.49 | I46: .78 | J46: 7.27
A47: 992732458001 | B47: MAXICOMBUST S.A. | C47: Factura | D47: 001-011-000141890 | E47: 1.903202301e+48 | F47: 2023-03-19T10:39:13 | G47: 2023-03-19 | H47: 6.09 | I47: .73 | J47: 6.82
A48: 992732458001 | B48: MAXICOMBUST S.A. | C48: Factura | D48: 001-011-000142575 | E48: 2.003202301e+48 | F48: 2023-03-20T14:43:10 | G48: 2023-03-20 | H48: 7.02 | I48: .84 | J48: 7.86
A49: 992732458001 | B49: MAXICOMBUST S.A. | C49: Factura | D49: 001-011-000142571 | E49: 2.003202301e+48 | F49: 2023-03-20T14:36:21 | G49: 2023-03-20 | H49: 2.7 | I49: .32 | J49: 3.02
A50: 101518660001 | B50: PESANTEZ CORDERO PEDRITO RAFAEL | C50: Factura | D50: 005-103-000346834 | E50: 2.203202301e+48 | F50: 2023-03-22T13:30:19 | G50: 2023-03-22 | H50: 13.39 | I50: 1.61 | J50: 15
A51: 992625341001 | B51: TARDI S.A. | C51: Factura | D51: 001-100-000238827 | E51: 2.203202301e+48 | F51: 2023-03-22T13:40:10 | G51: 2023-03-22 | H51: 3.04 | I51: .36 | J51: 3.4
A52: 992717041001 | B52: BELICOF S.A. | C52: Factura | D52: 001-099-000000249 | E52: 2.403202301e+48 | F52: 2023-03-24T11:32:51 | G52: 2023-03-24 | H52: 149.7 | I52: 17.96 | J52: 167.66
A53: 1791768892001 | B53: FERJEM SEGURIDAD CIA. LTDA. | C53: Factura | D53: 001-010-000002974 | E53: 2.403202301e+48 | F53: 2023-03-24T22:23:30 | G53: 2023-03-24 | H53: 1060 | I53: 0 | J53: 1060
A54: 1791768892001 | B54: FERJEM SEGURIDAD CIA. LTDA. | C54: Factura | D54: 001-010-000002973 | E54: 2.403202301e+48 | F54: 2023-03-24T22:21:25 | G54: 2023-03-24 | H54: 265 | I54: 31.8 | J54: 296.8
A55: 992732458001 | B55: MAXICOMBUST S.A. | C55: Factura | D55: 001-011-000145462 | E55: 2.503202301e+48 | F55: 2023-03-25T07:55:16 | G55: 2023-03-25 | H55: 2.13 | I55: .26 | J55: 2.39
A56: 992732458001 | B56: MAXICOMBUST S.A. | C56: Factura | D56: 001-011-000146146 | E56: 2.603202301e+48 | F56: 2023-03-26T12:34:13 | G56: 2023-03-26 | H56: 6.96 | I56: .83 | J56: 7.79
A57: 992732458001 | B57: MAXICOMBUST S.A. | C57: Factura | D57: 001-011-000146681 | E57: 2.703202301e+48 | F57: 2023-03-27T12:48:13 | G57: 2023-03-27 | H57: 6.25 | I57: .75 | J57: 7
A58: 913523296001 | B58: SUAREZ LUQUE JOSE ENRIQUE | C58: Factura | D58: 001-001-000000007 | E58: 2.703202301e+48 | F58: 2023-03-27T13:25:51 | G58: 2023-03-27 | H58: 991.57 | I58: 118.99 | J58: 1110.56
A59: 992742348001 | B59: AUTOMATISMOS AC-ACTIVA S.A. AUTOMOTICSA | C59: Factura | D59: 001-002-000006354 | E59: 2.803202301e+48 | F59: 2023-03-28T22:00:35 | G59: 2023-03-28 | H59: 359 | I59: 43.08 | J59: 402.08
A60: 992280778001 | B60: LIDERCOMPANY S.A. | C60: Factura | D60: 002-002-000013960 | E60: 2.903202301e+48 | F60: 2023-03-29T17:30:29 | G60: 2023-03-29 | H60: 53.58 | I60: 6.43 | J60: 60.01
A61: 992739401001 | B61: ESTACION DE SERVICIOS ALPASO S.A. | C61: Factura | D61: 003-008-000136872 | E61: 2.903202301e+48 | F61: 2023-03-29T08:06:10 | G61: 2023-03-29 | H61: 13.39 | I61: 1.61 | J61: 15
A62: 925823601001 | B62: PILCO CONTRERAS GABRIELA VIRGINIA | C62: Factura | D62: 001-001-000000005 | E62: 2.903202301e+48 | F62: 2023-03-29T11:58:16 | G62: 2023-03-29 | H62: 900 | I62: 0 | J62: 900
A63: 990004196001 | B63: CORPORACION EL ROSADO S.A. | C63: Factura | D63: 138-021-000367858 | E63: 2.903202301e+48 | F63: 2023-03-29T20:24:04 | G63: 2023-03-29 | H63: 7.31 | I63: .88 | J63: 8.19
A64: 993323543001 | B64: TIO GUILLO MARKET TGL S.A.S. | C64: Factura | D64: 001-011-000147977 | E64: 3.003202301e+48 | F64: 2023-04-01T20:46:50 | G64: 2023-03-30 | H64: 2.1 | I64: 0 | J64: 2.1
J66: =SUM(J4:J65) -> 3157

Sheet FACT. RECIBIDAS ABRIL
A2: RUC_EMISOR | B2: RAZON_SOCIAL_EMISOR | C2: TIPO_COMPROBANTE | D2: SERIE_COMPROBANTE | E2: CLAVE_ACCESO | F2: FECHA_AUTORIZACION | G2: FECHA_EMISION | H2: IDENTIFICACION_RECEPTOR | I2: VALOR_SIN_IMPUESTOS | J2: IVA | K2: IMPORTE_TOTAL
A3: 1791251237001 | B3: CONSORCIO ECUATORIANO DE TELECOMUNICACIONES S.A. CONECEL | C3: Factura | D3: 001-221-003361645 | E3: 1.042023012e+47 | F3: 2023-04-01T11:15:50 | G3: 2023-04-01 | H3: 992678054001 | I3: 58.86 | J3: 7.06 | K3: 65.92
A4: 1791251237001 | B4: CONSORCIO ECUATORIANO DE TELECOMUNICACIONES S.A. CONECEL | C4: Factura | D4: 001-221-003363314 | E4: 1.042023012e+47 | F4: 2023-04-01T11:44:33 | G4: 2023-04-01 | H4: 992678054001 | I4: 41.06 | J4: 5.14 | K4: 48
A5: 1791287541001 | B5: MEGADATOS S.A. | C5: Factura | D5: 001-011-035302935 | E5: 1.042023012e+47 | F5: 2023-04-01T02:16:19 | G5: 2023-04-01 | H5: 992678054001 | I5: 140 | J5: 16.8 | K5: 156.8
A6: 101518660001 | B6: PESANTEZ CORDERO PEDRITO RAFAEL | C6: Factura | D6: 005-102-000445932 | E6: 3.04202301e+47 | F6: 2023-04-06T11:32:23 | G6: 2023-04-03 | H6: 992678054001 | I6: 5.04 | J6: .61 | K6: 5.65
A7: 992378395001 | B7: GAITALIN S.A. | C7: Factura | D7: 001-012-000473641 | E7: 4.042023011e+47 | F7: 2023-04-04T13:56:15 | G7: 2023-04-04 | H7: 992678054001 | I7: 13.39 | J7: 1.61 | K7: 15
A8: 1801916600001 | B8: URBINA BERTHA CECILIA TRINIDAD | C8: Factura | D8: 003-100-000269280 | E8: 4.042023012e+47 | F8: 2023-04-04T14:07:47 | G8: 2023-04-04 | H8: 992678054001 | I8: 4.46 | J8: .54 | K8: 5
A9: 992732458001 | B9: MAXICOMBUST S.A. | C9: Factura | D9: 001-011-000151339 | E9: 4.042023011e+47 | F9: 2023-04-04T15:05:24 | G9: 2023-04-04 | H9: 992678054001 | I9: 4.91 | J9: .59 | K9: 5.5
A10: 1204486441001 | B10: SARCO ROCAFUERTE ROCIO PATRICIA | C10: Factura | D10: 001-100-000000289 | E10: 4.042023011e+47 | F10: 2023-04-04T14:02:50 | G10: 2023-04-04 | H10: 992678054001 | I10: 8.92 | J10: 1.07 | K10: 9.99
A11: 914150149001 | B11: CHAVEZ DELGADO SONIA MARIBEL | C11: Factura | D11: 001-002-000000297 | E11: 5.042023011e+47 | F11: 2023-04-05T13:18:45 | G11: 2023-04-05 | H11: 992678054001 | I11: 60.17 | J11: 3.91 | K11: 64.08
A12: 1791310063001 | B12: DATAFAST S.A. | C12: Factura | D12: 001-002-003600351 | E12: 5.042023012e+47 | F12: 2023-04-06T04:27:07 | G12: 2023-04-05 | H12: 992678054001 | I12: 7.99 | J12: .96 | K12: 8.95
A13: 992624337001 | B13: COSTAKARIM S.A. | C13: Factura | D13: 004-001-000094557 | E13: 6.042023011e+47 | F13: 2023-04-06T08:13:32 | G13: 2023-04-06 | H13: 992678054001 | I13: 8.93 | J13: 1.07 | K13: 10
A14: 101518660001 | B14: PESANTEZ CORDERO PEDRITO RAFAEL | C14: Factura | D14: 005-103-000352127 | E14: 6.04202301e+47 | F14: 2023-04-06T11:24:08 | G14: 2023-04-06 | H14: 992678054001 | I14: 4.82 | J14: .58 | K14: 5.4
A15: 968599020001 | B15: EMPRESA ELECTRICA PUBLICA ESTRATEGICA CORPORACION NACIONAL DE ELECTRICIDAD CNEL EP | C15: Factura | D15: 002-999-013663425 | E15: 8.042023011e+47 | F15: 2023-04-12T04:08:55 | G15: 2023-04-08 | H15: 992678054001 | I15: 409.1 | J15: 0 | K15: 409.1
A16: 968599020001 | B16: EMPRESA ELECTRICA PUBLICA ESTRATEGICA CORPORACION NACIONAL DE ELECTRICIDAD CNEL EP | C16: Factura | D16: 002-999-013663575 | E16: 8.042023011e+47 | F16: 2023-04-12T04:10:26 | G16: 2023-04-08 | H16: 992678054001 | I16: 290.11 | J16: 0 | K16: 290.11
A17: 968599020001 | B17: EMPRESA ELECTRICA PUBLICA ESTRATEGICA CORPORACION NACIONAL DE ELECTRICIDAD CNEL EP | C17: Factura | D17: 002-999-013663500 | E17: 8.042023011e+47 | F17: 2023-04-12T04:11:12 | G17: 2023-04-08 | H17: 992678054001 | I17: 13.97 | J17: 0 | K17: 13.97
A18: 968599020001 | B18: EMPRESA ELECTRICA PUBLICA ESTRATEGICA CORPORACION NACIONAL DE ELECTRICIDAD CNEL EP | C18: Factura | D18: 002-999-013658811 | E18: 8.042023011e+47 | F18: 2023-04-12T04:11:44 | G18: 2023-04-08 | H18: 992678054001 | I18: 248.62 | J18: 0 | K18: 248.62
A19: 968599020001 | B19: EMPRESA ELECTRICA PUBLICA ESTRATEGICA CORPORACION NACIONAL DE ELECTRICIDAD CNEL EP | C19: Factura | D19: 002-999-013663946 | E19: 8.042023011e+47 | F19: 2023-04-12T04:11:44 | G19: 2023-04-08 | H19: 992678054001 | I19: 3.05 | J19: 0 | K19: 3.05
A20: 968599020001 | B20: EMPRESA ELECTRICA PUBLICA ESTRATEGICA CORPORACION NACIONAL DE ELECTRICIDAD CNEL EP | C20: Factura | D20: 002-999-013658812 | E20: 8.042023011e+47 | F20: 2023-04-12T04:11:44 | G20: 2023-04-08 | H20: 992678054001 | I20: 2.54 | J20: 0 | K20: 2.54
A21: 1791256115001 | B21: OTECEL S.A. | C21: Factura | D21: 001-327-094560598 | E21: 8.042023012e+47 | F21: 2023-04-08T07:22:24 | G21: 2023-04-08 | H21: 992678054001 | I21: 45 | J21: 5.4 | K21: 50.4
A22: 201761368001 | B22: JARAMILLO ESCOBAR CARLOS EDUARDO | C22: Factura | D22: 001-100-000000035 | E22: 1.004202301e+48 | F22: 2023-04-10T11:58:25 | G22: 2023-04-10 | H22: 992678054001 | I22: 5589.98 | J22: 670.8 | K22: 6260.78
A23: 901362681001 | B23: IDROVO ZAMBRANO ROSA LEONOR | C23: Factura | D23: 001-010-000000251 | E23: 1.004202301e+48 | F23: 2023-04-10T13:15:02 | G23: 2023-04-10 | H23: 992678054001 | I23: 109.6 | J23: 0 | K23: 109.6
A24: 992378395001 | B24: GAITALIN S.A. | C24: Factura | D24: 001-008-000878302 | E24: 1.104202301e+48 | F24: 2023-04-11T18:42:46 | G24: 2023-04-11 | H24: 992678054001 | I24: 4.46 | J24: .54 | K24: 5
A25: 990004196001 | B25: CORPORACION EL ROSADO S.A. | C25: Factura | D25: 138-035-000281246 | E25: 1.204202301e+48 | F25: 2023-04-12T18:52:24 | G25: 2023-04-12 | H25: 992678054001 | I25: 3.12 | J25: .37 | K25: 3.49
A26: 991450009001 | B26: AGUAS DE SAMBORONDON AMAGUA C.E.M. | C26: Factura | D26: 001-001-007284339 | E26: 1.204202301e+48 | F26: 2023-04-12T23:43:45 | G26: 2023-04-12 | H26: 992678054001 | I26: 12.62 | J26: .01 | K26: 12.63
A27: 991450009001 | B27: AGUAS DE SAMBORONDON AMAGUA C.E.M. | C27: Factura | D27: 001-001-007284909 | E27: 1.204202301e+48 | F27: 2023-04-13T00:20:19 | G27: 2023-04-12 | H27: 992678054001 | I27: 574.61 | J27: 1.36 | K27: 575.97
A28: 991450009001 | B28: AGUAS DE SAMBORONDON AMAGUA C.E.M. | C28: Factura | D28: 001-001-007284778 | E28: 1.204202301e+48 | F28: 2023-04-13T00:12:00 | G28: 2023-04-12 | H28: 992678054001 | I28: 63.5 | J28: .01 | K28: 63.51
A29: 991450009001 | B29: AGUAS DE SAMBORONDON AMAGUA C.E.M. | C29: Factura | D29: 001-001-007284338 | E29: 1.204202301e+48 | F29: 2023-04-12T23:43:42 | G29: 2023-04-12 | H29: 992678054001 | I29: 24.1 | J29: .01 | K29: 24.11
A30: 991450009001 | B30: AGUAS DE SAMBORONDON AMAGUA C.E.M. | C30: Factura | D30: 001-001-007285082 | E30: 1.204202301e+48 | F30: 2023-04-13T00:31:27 | G30: 2023-04-12 | H30: 992678054001 | I30: 2.73 | J30: .01 | K30: 2.74
A31: 991450009001 | B31: AGUAS DE SAMBORONDON AMAGUA C.E.M. | C31: Factura | D31: 001-001-007285105 | E31: 1.204202301e+48 | F31: 2023-04-13T00:32:58 | G31: 2023-04-12 | H31: 992678054001 | I31: 4.14 | J31: .01 | K31: 4.15
A32: 992378395001 | B32: GAITALIN S.A. | C32: Factura | D32: 001-008-000878633 | E32: 1.204202301e+48 | F32: 2023-04-12T13:30:14 | G32: 2023-04-12 | H32: 992678054001 | I32: 13.39 | J32: 1.61 | K32: 15
A33: 925823601001 | B33: PILCO CONTRERAS GABRIELA VIRGINIA | C33: Factura | D33: 001-001-000000006 | E33: 1.204202301e+48 | F33: 2023-04-12T16:00:33 | G33: 2023-04-12 | H33: 992678054001 | I33: 900 | J33: 0 | K33: 900
A34: 1791768892001 | B34: FERJEM SEGURIDAD CIA. LTDA. | C34: Factura | D34: 001-010-000003032 | E34: 1.304202301e+48 | F34: 2023-04-13T14:44:44 | G34: 2023-04-13 | H34: 992678054001 | I34: 1060 | J34: 0 | K34: 1060
A35: 1791768892001 | B35: FERJEM SEGURIDAD CIA. LTDA. | C35: Factura | D35: 001-010-000003031 | E35: 1.304202301e+48 | F35: 2023-04-13T14:43:04 | G35: 2023-04-13 | H35: 992678054001 | I35: 265 | J35: 31.8 | K35: 296.8
A36: 913523296001 | B36: SUAREZ LUQUE JOSE ENRIQUE | C36: Factura | D36: 001-001-000000008 | E36: 1.304202301e+48 | F36: 2023-04-13T16:43:13 | G36: 2023-04-13 | H36: 992678054001 | I36: 991.57 | J36: 118.99 | K36: 1110.56
A37: 992231467001 | B37: CIA. IMPORTADORA REGALADO S.A. COMIRSA | C37: Factura | D37: 008-009-000041369 | E37: 1.404202301e+48 | F37: 2023-04-14T16:28:06 | G37: 2023-04-14 | H37: 992678054001 | I37: 14.33 | J37: 1.72 | K37: 16.05
A38: 992732458001 | B38: MAXICOMBUST S.A. | C38: Factura | D38: 001-011-000156859 | E38: 1.404202301e+48 | F38: 2023-04-14T08:14:15 | G38: 2023-04-14 | H38: 992678054001 | I38: 6.83 | J38: .82 | K38: 7.65
A39: 913989406001 | B39: FLORES GARCIA SANTOS EDMUNDO | C39: Factura | D39: 001-100-000011499 | E39: 1.504202301e+48 | F39: 2023-04-15T13:15:45 | G39: 2023-04-15 | H39: 992678054001 | I39: 4.05 | J39: .49 | K39: 4.54
A40: 992732458001 | B40: MAXICOMBUST S.A. | C40: Factura | D40: 001-011-000157671 | E40: 1.504202301e+48 | F40: 2023-04-15T14:01:23 | G40: 2023-04-15 | H40: 992678054001 | I40: 4.02 | J40: .48 | K40: 4.5
A41: 992378395001 | B41: GAITALIN S.A. | C41: Factura | D41: 001-008-000880155 | E41: 1.504202301e+48 | F41: 2023-04-15T14:52:21 | G41: 2023-04-15 | H41: 992678054001 | I41: 4.46 | J41: .54 | K41: 5
A42: 992921404001 | B42: DISTRIBUIDORA DE DERIVADOS Y PRODUCTOS PETROLEROS DIDESPROPE S.A. | C42: Factura | D42: 001-004-001528566 | E42: 1.704202301e+48 | F42: 2023-04-17T22:45:06 | G42: 2023-04-17 | H42: 992678054001 | I42: 6.25 | J42: .75 | K42: 7
A43: 1790041220001 | B43: COMERCIAL KYWI S.A. | C43: Factura | D43: 033-904-000325264 | E43: 1.704202301e+48 | F43: 2023-04-17T14:03:47 | G43: 2023-04-17 | H43: 992678054001 | I43: 6.1 | J43: .73 | K43: 6.83
A44: 992378395001 | B44: GAITALIN S.A. | C44: Factura | D44: 001-008-000881034 | E44: 1.704202301e+48 | F44: 2023-04-17T14:16:19 | G44: 2023-04-17 | H44: 992678054001 | I44: 6.43 | J44: .77 | K44: 7.2
A45: 907179220001 | B45: VELASCO PEREZ JOHNNY VINICIO | C45: Factura | D45: 001-001-000000014 | E45: 1.704202301e+48 | F45: 2023-04-17T15:47:59 | G45: 2023-04-17 | H45: 992678054001 | I45: 100 | J45: 12 | K45: 112
A46: 992922257001 | B46: CENTRO DE FORMACION Y CAPACITACION NUEVA ERA ESFERACORPI C. LTDA | C46: Factura | D46: 001-001-000000265 | E46: 1.804202301e+48 | F46: 2023-04-18T11:09:47 | G46: 2023-04-18 | H46: 992678054001 | I46: 178.57 | J46: 21.43 | K46: 200
A47: 992378395001 | B47: GAITALIN S.A. | C47: Factura | D47: 001-009-000853727 | E47: 1.904202301e+48 | F47: 2023-04-19T13:26:36 | G47: 2023-04-19 | H47: 992678054001 | I47: 13.39 | J47: 1.61 | K47: 15
A48: 914150149001 | B48: CHAVEZ DELGADO SONIA MARIBEL | C48: Factura | D48: 001-002-000000329 | E48: 1.904202301e+48 | F48: 2023-04-19T17:15:06 | G48: 2023-04-19 | H48: 992678054001 | I48: 14 | J48: 1.68 | K48: 15.68
A49: 992231467001 | B49: CIA. IMPORTADORA REGALADO S.A. COMIRSA | C49: Factura | D49: 008-009-000041543 | E49: 1.904202301e+48 | F49: 2023-04-30T17:18:06 | G49: 2023-04-19 | H49: 992678054001 | I49: 9.33 | J49: 1.12 | K49: 10.45
A50: 992844779001 | B50: ELECTRONICA SIETE S.A. ELECTROSIET | C50: Factura | D50: 001-002-000002645 | E50: 2.004202301e+48 | F50: 2023-04-20T22:56:31 | G50: 2023-04-20 | H50: 992678054001 | I50: 359 | J50: 43.08 | K50: 402.08
A51: 1315524486001 | B51: LOOR MENDOZA REINALDO SEBASTIAN | C51: Factura | D51: 001-003-000000033 | E51: 2.004202301e+48 | F51: 2023-04-20T17:53:00 | G51: 2023-04-20 | H51: 992678054001 | I51: 323 | J51: 38.76 | K51: 361.76
A52: 992732458001 | B52: MAXICOMBUST S.A. | C52: Factura | D52: 001-011-000160805 | E52: 2.004202301e+48 | F52: 2023-04-20T20:04:08 | G52: 2023-04-20 | H52: 992678054001 | I52: 7.57 | J52: .91 | K52: 8.48
A53: 990005737001 | B53: BANCO DEL PACIFICO S.A. | C53: Factura | D53: 113-001-189858081 | E53: 2.104202301e+48 | F53: 2023-04-22T07:49:13 | G53: 2023-04-21 | H53: 992678054001 | I53: .51 | J53: .06 | K53: .57
A54: 990005737001 | B54: BANCO DEL PACIFICO S.A. | C54: Factura | D54: 113-001-189858146 | E54: 2.104202301e+48 | F54: 2023-04-22T07:17:09 | G54: 2023-04-21 | H54: 992678054001 | I54: .51 | J54: .06 | K54: .57
A55: 990005737001 | B55: BANCO DEL PACIFICO S.A. | C55: Factura | D55: 113-001-189858178 | E55: 2.104202301e+48 | F55: 2023-04-22T06:48:20 | G55: 2023-04-21 | H55: 992678054001 | I55: .51 | J55: .06 | K55: .57
A56: 990005737001 | B56: BANCO DEL PACIFICO S.A. | C56: Factura | D56: 113-001-189858217 | E56: 2.104202301e+48 | F56: 2023-04-29T18:53:53 | G56: 2023-04-21 | H56: 992678054001 | I56: .51 | J56: .06 | K56: .57
A57: 1791768892001 | B57: FERJEM SEGURIDAD CIA. LTDA. | C57: Factura | D57: 001-010-000003049 | E57: 2.104202301e+48 | F57: 2023-04-21T17:33:50 | G57: 2023-04-21 | H57: 992678054001 | I57: 265 | J57: 31.8 | K57: 296.8
A58: 1791768892001 | B58: FERJEM SEGURIDAD CIA. LTDA. | C58: Factura | D58: 001-010-000003050 | E58: 2.104202301e+48 | F58: 2023-04-21T17:36:11 | G58: 2023-04-21 | H58: 992678054001 | I58: 1060 | J58: 0 | K58: 1060
A59: 990005737001 | B59: BANCO DEL PACIFICO S.A. | C59: Factura | D59: 113-001-189858257 | E59: 2.104202301e+48 | F59: 2023-04-21T19:19:23 | G59: 2023-04-21 | H59: 992678054001 | I59: .51 | J59: .06 | K59: .57
A60: 990005737001 | B60: BANCO DEL PACIFICO S.A. | C60: Factura | D60: 113-001-189858292 | E60: 2.104202301e+48 | F60: 2023-04-21T19:31:39 | G60: 2023-04-21 | H60: 992678054001 | I60: .51 | J60: .06 | K60: .57
A61: 101518660001 | B61: PESANTEZ CORDERO PEDRITO RAFAEL | C61: Factura | D61: 005-102-000453780 | E61: 2.204202301e+48 | F61: 2023-04-22T10:56:09 | G61: 2023-04-22 | H61: 992678054001 | I61: 4.47 | J61: .54 | K61: 5.01
A62: 992732458001 | B62: MAXICOMBUST S.A. | C62: Factura | D62: 001-011-000162530 | E62: 2.304202301e+48 | F62: 2023-04-23T16:51:22 | G62: 2023-04-23 | H62: 992678054001 | I62: 5.37 | J62: .64 | K62: 6.01
A63: 992921404001 | B63: DISTRIBUIDORA DE DERIVADOS Y PRODUCTOS PETROLEROS DIDESPROPE S.A. | C63: Factura | D63: 001-006-001219046 | E63: 2.304202301e+48 | F63: 2023-04-23T16:05:18 | G63: 2023-04-23 | H63: 992678054001 | I63: 7.14 | J63: .86 | K63: 8
A64: 992732458001 | B64: MAXICOMBUST S.A. | C64: Factura | D64: 001-011-000162790 | E64: 2.404202301e+48 | F64: 2023-04-24T09:37:18 | G64: 2023-04-24 | H64: 992678054001 | I64: 4.91 | J64: .59 | K64: 5.5
A65: 1790016919001 | B65: CORPORACION FAVORITA C.A. | C65: Factura | D65: 176-108-000264298 | E65: 2.404202301e+48 | F65: 2023-04-24T14:22:58 | G65: 2023-04-24 | H65: 992678054001 | I65: 31.12 | J65: 3.73 | K65: 34.85
A66: 992717041001 | B66: BELICOF S.A. | C66: Factura | D66: 001-099-000000306 | E66: 2.404202301e+48 | F66: 2023-04-24T08:22:23 | G66: 2023-04-24 | H66: 992678054001 | I66: 149.7 | J66: 17.96 | K66: 167.66
A67: 993025623001 | B67: MASSUHIMPORTECH S.A. | C67: Factura | D67: 015-011-000021582 | E67: 2.404202301e+48 | F67: 2023-06-16T08:45:30 | G67: 2023-04-24 | H67: 992678054001 | I67: 119 | J67: 14.28 | K67: 133.28
A68: 993074659001 | B68: DISTRIBUIDORA DE COMBUSTIBLES LIQUIDOS DISCOMLIQ S.A. | C68: Factura | D68: 002-011-000265620 | E68: 2.504202301e+48 | F68: 2023-04-25T10:25:13 | G68: 2023-04-25 | H68: 992678054001 | I68: 2.23 | J68: .27 | K68: 2.5
A69: 992378395001 | B69: GAITALIN S.A. | C69: Factura | D69: 001-009-000856359 | E69: 2.504202301e+48 | F69: 2023-04-25T11:05:14 | G69: 2023-04-25 | H69: 992678054001 | I69: 4.46 | J69: .54 | K69: 5
A70: 991331859001 | B70: ATIMASA S.A. | C70: Factura | D70: 183-004-000365755 | E70: 2.504202301e+48 | F70: 2023-04-25T11:41:54 | G70: 2023-04-25 | H70: 992678054001 | I70: 4.46 | J70: .54 | K70: 5
A71: 992732458001 | B71: MAXICOMBUST S.A. | C71: Factura | D71: 001-011-000163432 | E71: 2.504202301e+48 | F71: 2023-04-25T08:17:08 | G71: 2023-04-25 | H71: 992678054001 | I71: 6.25 | J71: .75 | K71: 7
A72: 992625341001 | B72: TARDI S.A. | C72: Factura | D72: 001-100-000241482 | E72: 2.504202301e+48 | F72: 2023-04-25T11:49:24 | G72: 2023-04-25 | H72: 992678054001 | I72: 3.5 | J72: .42 | K72: 3.92
A73: 992732458001 | B73: MAXICOMBUST S.A. | C73: Factura | D73: 001-011-000164035 | E73: 2.604202301e+48 | F73: 2023-04-26T10:24:15 | G73: 2023-04-26 | H73: 992678054001 | I73: 7.14 | J73: .86 | K73: 8
A74: 992732458001 | B74: MAXICOMBUST S.A. | C74: Factura | D74: 001-011-000164642 | E74: 2.704202301e+48 | F74: 2023-04-27T09:34:16 | G74: 2023-04-27 | H74: 992678054001 | I74: 6.25 | J74: .75 | K74: 7
A75: 992378395001 | B75: GAITALIN S.A. | C75: Factura | D75: 001-013-000677033 | E75: 2.704202301e+48 | F75: 2023-04-27T14:02:37 | G75: 2023-04-27 | H75: 992678054001 | I75: 13.39 | J75: 1.61 | K75: 15
A76: 992378395001 | B76: GAITALIN S.A. | C76: Factura | D76: 001-013-000677704 | E76: 2.904202301e+48 | F76: 2023-04-29T12:20:04 | G76: 2023-04-29 | H76: 992678054001 | I76: 4.46 | J76: .54 | K76: 5
K78: =SUM(K4:K77) -> 3517

Sheet FACT. RECIBIDAS MAYO
A2: RUC_EMISOR | B2: RAZON_SOCIAL_EMISOR | C2: TIPO_COMPROBANTE | D2: SERIE_COMPROBANTE | E2: CLAVE_ACCESO | F2: FECHA_AUTORIZACION | G2: FECHA_EMISION | H2: IDENTIFICACION_RECEPTOR | I2: VALOR_SIN_IMPUESTOS | J2: IVA | K2: IMPORTE_TOTAL
A3: 992732458001 | B3: MAXICOMBUST S.A. | C3: Factura | D3: 001-011-000167104 | E3: 1.052023011e+47 | F3: 2023-05-01T12:59:15 | G3: 2023-05-01 | H3: 992678054001 | I3: 6.63 | J3: .8 | K3: 7.42
A4: 1791287541001 | B4: MEGADATOS S.A. | C4: Factura | D4: 001-011-036321261 | E4: 1.052023012e+47 | F4: 2023-05-01T08:37:30 | G4: 2023-05-01 | H4: 992678054001 | I4: 140 | J4: 16.8 | K4: 156.8
A5: 1791251237001 | B5: CONSORCIO ECUATORIANO DE TELECOMUNICACIONES S.A. CONECEL | C5: Factura | D5: 001-221-003388252 | E5: 1.052023012e+47 | F5: 2023-05-02T12:33:43 | G5: 2023-05-01 | H5: 992678054001 | I5: 58.24 | J5: 6.99 | K5: 65.23
A6: 1791251237001 | B6: CONSORCIO ECUATORIANO DE TELECOMUNICACIONES S.A. CONECEL | C6: Factura | D6: 001-221-003391652 | E6: 1.052023012e+47 | F6: 2023-05-02T13:57:44 | G6: 2023-05-01 | H6: 992678054001 | I6: 97.96 | J6: 11.97 | K6: 111.73
A7: 992742348001 | B7: AUTOMATISMOS AC-ACTIVA S.A. AUTOMOTICSA | C7: Factura | D7: 001-002-000006523 | E7: 3.052023011e+47 | F7: 2023-05-03T22:52:17 | G7: 2023-05-03 | H7: 992678054001 | I7: 120 | J7: 14.4 | K7: 134.4
A8: 991256911001 | B8: COMERCIO Y PREDIOS COMPRED S.A. | C8: Factura | D8: 001-011-001145372 | E8: 4.052023011e+47 | F8: 2023-05-04T10:30:13 | G8: 2023-05-04 | H8: 992678054001 | I8: 8.57 | J8: 1.03 | K8: 9.6
A9: 991256911001 | B9: COMERCIO Y PREDIOS COMPRED S.A. | C9: Factura | D9: 001-011-001145369 | E9: 4.052023011e+47 | F9: 2023-05-04T10:20:34 | G9: 2023-05-04 | H9: 992678054001 | I9: 13.39 | J9: 1.61 | K9: 15
A10: 992732458001 | B10: MAXICOMBUST S.A. | C10: Factura | D10: 001-011-000168951 | E10: 4.052023011e+47 | F10: 2023-05-04T16:49:05 | G10: 2023-05-04 | H10: 992678054001 | I10: 7.14 | J10: .86 | K10: 8
A11: 992732458001 | B11: MAXICOMBUST S.A. | C11: Factura | D11: 001-011-000168952 | E11: 4.052023011e+47 | F11: 2023-05-04T16:50:13 | G11: 2023-05-04 | H11: 992678054001 | I11: 7.59 | J11: .91 | K11: 8.5
A12: 1791310063001 | B12: DATAFAST S.A. | C12: Factura | D12: 001-002-003653537 | E12: 5.052023012e+47 | F12: 2023-05-06T04:21:27 | G12: 2023-05-05 | H12: 992678054001 | I12: 7.99 | J12: .96 | K12: 8.95
A13: 993074659001 | B13: DISTRIBUIDORA DE COMBUSTIBLES LIQUIDOS DISCOMLIQ S.A. | C13: Factura | D13: 002-011-000271066 | E13: 6.052023011e+47 | F13: 2023-05-06T11:54:12 | G13: 2023-05-06 | H13: 992678054001 | I13: 1.79 | J13: .21 | K13: 2
A14: 992732458001 | B14: MAXICOMBUST S.A. | C14: Factura | D14: 001-011-000169962 | E14: 6.052023011e+47 | F14: 2023-05-06T14:05:11 | G14: 2023-05-06 | H14: 992678054001 | I14: 3.86 | J14: .46 | K14: 4.32
A15: 968599020001 | B15: EMPRESA ELECTRICA PUBLICA ESTRATEGICA CORPORACION NACIONAL DE ELECTRICIDAD CNEL EP | C15: Factura | D15: 002-999-014046017 | E15: 8.052023011e+47 | F15: 2023-05-14T17:49:07 | G15: 2023-05-08 | H15: 992678054001 | I15: 312.59 | J15: 0 | K15: 312.59
A16: 968599020001 | B16: EMPRESA ELECTRICA PUBLICA ESTRATEGICA CORPORACION NACIONAL DE ELECTRICIDAD CNEL EP | C16: Factura | D16: 002-999-014046292 | E16: 8.052023011e+47 | F16: 2023-05-14T17:48:46 | G16: 2023-05-08 | H16: 992678054001 | I16: 7.5 | J16: 0 | K16: 7.5
A17: 968599020001 | B17: EMPRESA ELECTRICA PUBLICA ESTRATEGICA CORPORACION NACIONAL DE ELECTRICIDAD CNEL EP | C17: Factura | D17: 002-999-014046107 | E17: 8.052023011e+47 | F17: 2023-05-14T17:50:55 | G17: 2023-05-08 | H17: 992678054001 | I17: 2.68 | J17: 0 | K17: 2.68
A18: 968599020001 | B18: EMPRESA ELECTRICA PUBLICA ESTRATEGICA CORPORACION NACIONAL DE ELECTRICIDAD CNEL EP | C18: Factura | D18: 002-999-014046109 | E18: 8.052023011e+47 | F18: 2023-05-14T17:49:14 | G18: 2023-05-08 | H18: 992678054001 | I18: 280.9 | J18: 0 | K18: 280.9
A19: 968599020001 | B19: EMPRESA ELECTRICA PUBLICA ESTRATEGICA CORPORACION NACIONAL DE ELECTRICIDAD CNEL EP | C19: Factura | D19: 002-999-014046108 | E19: 8.052023011e+47 | F19: 2023-05-14T17:50:55 | G19: 2023-05-08 | H19: 992678054001 | I19: 2.16 | J19: 0 | K19: 2.16
A20: 968599020001 | B20: EMPRESA ELECTRICA PUBLICA ESTRATEGICA CORPORACION NACIONAL DE ELECTRICIDAD CNEL EP | C20: Factura | D20: 002-999-014046310 | E20: 8.052023011e+47 | F20: 2023-05-14T17:50:55 | G20: 2023-05-08 | H20: 992678054001 | I20: 372.95 | J20: 0 | K20: 372.95
A21: 992378395001 | B21: GAITALIN S.A. | C21: Factura | D21: 001-012-000479789 | E21: 8.052023011e+47 | F21: 2023-05-08T13:46:28 | G21: 2023-05-08 | H21: 992678054001 | I21: 13.39 | J21: 1.61 | K21: 15
A22: 1791256115001 | B22: OTECEL S.A. | C22: Factura | D22: 001-327-095477809 | E22: 8.052023012e+47 | F22: 2023-05-08T07:01:37 | G22: 2023-05-08 | H22: 992678054001 | I22: 47.33 | J22: 5.68 | K22: 53.01
A23: 992732458001 | B23: MAXICOMBUST S.A. | C23: Factura | D23: 001-011-000172524 | E23: 1.005202301e+48 | F23: 2023-05-10T20:24:12 | G23: 2023-05-10 | H23: 992678054001 | I23: 5.4 | J23: .65 | K23: 6.05
A24: 993250848001 | B24: INNOVA-COMERCIO INNOCOMERSA S.A. | C24: Factura | D24: 001-014-000229138 | E24: 1.105202301e+48 | F24: 2023-05-12T10:49:58 | G24: 2023-05-11 | H24: 992678054001 | I24: 16.07 | J24: 1.93 | K24: 18
A25: 991450009001 | B25: AGUAS DE SAMBORONDON AMAGUA C.E.M. | C25: Factura | D25: 001-001-007346377 | E25: 1.105202301e+48 | F25: 2023-05-11T23:36:02 | G25: 2023-05-11 | H25: 992678054001 | I25: 12.66 | J25: .01 | K25: 12.67
A26: 991450009001 | B26: AGUAS DE SAMBORONDON AMAGUA C.E.M. | C26: Factura | D26: 001-001-007346816 | E26: 1.105202301e+48 | F26: 2023-05-12T00:04:25 | G26: 2023-05-11 | H26: 992678054001 | I26: 75.06 | J26: .01 | K26: 75.07
A27: 991450009001 | B27: AGUAS DE SAMBORONDON AMAGUA C.E.M. | C27: Factura | D27: 001-001-007346376 | E27: 1.105202301e+48 | F27: 2023-05-11T23:35:58 | G27: 2023-05-11 | H27: 992678054001 | I27: 24.1 | J27: .01 | K27: 24.11
A28: 991450009001 | B28: AGUAS DE SAMBORONDON AMAGUA C.E.M. | C28: Factura | D28: 001-001-007347143 | E28: 1.105202301e+48 | F28: 2023-05-12T00:24:12 | G28: 2023-05-11 | H28: 992678054001 | I28: 5.57 | J28: .01 | K28: 5.58
A29: 991450009001 | B29: AGUAS DE SAMBORONDON AMAGUA C.E.M. | C29: Factura | D29: 001-001-007347120 | E29: 1.105202301e+48 | F29: 2023-05-12T00:22:51 | G29: 2023-05-11 | H29: 992678054001 | I29: 2.73 | J29: .01 | K29: 2.74
A30: 991450009001 | B30: AGUAS DE SAMBORONDON AMAGUA C.E.M. | C30: Factura | D30: 001-001-007346947 | E30: 1.105202301e+48 | F30: 2023-05-12T00:12:21 | G30: 2023-05-11 | H30: 992678054001 | I30: 381.62 | J30: 1.36 | K30: 382.98
A31: 993057169001 | B31: GLOBALCESPED S.A. | C31: Factura | D31: 001-010-000001316 | E31: 1.105202301e+48 | F31: 2023-05-12T17:00:53 | G31: 2023-05-11 | H31: 992678054001 | I31: 1234.25 | J31: 148.11 | K31: 1382.36
A32: 927729459001 | B32: VELIZ JIMENEZ LUZ CHARITO | C32: Factura | D32: 002-001-000017686 | E32: 1.105202301e+48 | F32: 2023-05-11T09:21:59 | G32: 2023-05-11 | H32: 992678054001 | I32: 5.58 | J32: .67 | K32: 6.25
A33: 1791768892001 | B33: FERJEM SEGURIDAD CIA. LTDA. | C33: Factura | D33: 001-010-000003095 | E33: 1.205202301e+48 | F33: 2023-05-12T10:10:40 | G33: 2023-05-12 | H33: 992678054001 | I33: 1060 | J33: 0 | K33: 1060
A34: 1791768892001 | B34: FERJEM SEGURIDAD CIA. LTDA. | C34: Factura | D34: 001-010-000003094 | E34: 1.205202301e+48 | F34: 2023-05-12T10:10:14 | G34: 2023-05-12 | H34: 992678054001 | I34: 265 | J34: 31.8 | K34: 296.8
A35: 992717041001 | B35: BELICOF S.A. | C35: Factura | D35: 001-099-000000343 | E35: 1.205202301e+48 | F35: 2023-05-12T08:19:59 | G35: 2023-05-12 | H35: 992678054001 | I35: 149.7 | J35: 17.96 | K35: 167.66
A36: 1790041220001 | B36: COMERCIAL KYWI S.A. | C36: Factura | D36: 033-908-000086864 | E36: 1.205202301e+48 | F36: 2023-05-12T12:24:50 | G36: 2023-05-12 | H36: 992678054001 | I36: 2.44 | J36: .29 | K36: 2.73
A37: 190072002001 | B37: GERARDO ORTIZ E HIJOS CIA LTDA | C37: Factura | D37: 037-906-000041285 | E37: 1.205202301e+48 | F37: 2023-05-12T13:37:51 | G37: 2023-05-12 | H37: 992678054001 | I37: 29.43 | J37: 3.53 | K37: 32.96
A38: 992739401001 | B38: ESTACION DE SERVICIOS ALPASO S.A. | C38: Factura | D38: 003-003-000262440 | E38: 1.205202301e+48 | F38: 2023-05-12T08:17:10 | G38: 2023-05-12 | H38: 992678054001 | I38: 6.43 | J38: .77 | K38: 7.2
A39: 993152161001 | B39: TIENDAS TUTI TTDE S.A. | C39: Factura | D39: 246-001-000009329 | E39: 1.205202301e+48 | F39: 2023-05-12T17:24:07 | G39: 2023-05-12 | H39: 992678054001 | I39: 18 | J39: 2.16 | K39: 20.16
A40: 190072002001 | B40: GERARDO ORTIZ E HIJOS CIA LTDA | C40: Factura | D40: 037-906-000041308 | E40: 1.305202301e+48 | F40: 2023-05-13T10:07:21 | G40: 2023-05-13 | H40: 992678054001 | I40: 14.8 | J40: 1.78 | K40: 16.58
A41: 992739401001 | B41: ESTACION DE SERVICIOS ALPASO S.A. | C41: Factura | D41: 003-010-000181298 | E41: 1.305202301e+48 | F41: 2023-05-13T08:40:32 | G41: 2023-05-13 | H41: 992678054001 | I41: 8.93 | J41: 1.07 | K41: 10
A42: 992378395001 | B42: GAITALIN S.A. | C42: Factura | D42: 001-011-000544670 | E42: 1.505202301e+48 | F42: 2023-05-15T19:45:13 | G42: 2023-05-15 | H42: 992678054001 | I42: 8.93 | J42: 1.07 | K42: 10
A43: 992739401001 | B43: ESTACION DE SERVICIOS ALPASO S.A. | C43: Factura | D43: 003-010-000181661 | E43: 1.505202301e+48 | F43: 2023-05-15T10:21:06 | G43: 2023-05-15 | H43: 992678054001 | I43: 2.68 | J43: .32 | K43: 3
A44: 913523296001 | B44: SUAREZ LUQUE JOSE ENRIQUE | C44: Factura | D44: 001-001-000000009 | E44: 1.505202301e+48 | F44: 2023-05-15T13:12:37 | G44: 2023-05-15 | H44: 992678054001 | I44: 991.57 | J44: 118.99 | K44: 1110.56
A45: 925823601001 | B45: PILCO CONTRERAS GABRIELA VIRGINIA | C45: Factura | D45: 001-001-000000007 | E45: 1.505202301e+48 | F45: 2023-05-15T13:29:42 | G45: 2023-05-15 | H45: 992678054001 | I45: 900 | J45: 0 | K45: 900
A46: 992378395001 | B46: GAITALIN S.A. | C46: Factura | D46: 001-012-000481527 | E46: 1.605202301e+48 | F46: 2023-05-16T13:36:34 | G46: 2023-05-16 | H46: 992678054001 | I46: 13.39 | J46: 1.61 | K46: 15
A47: 993198382001 | B47: DISTRIBUIDORA PERIMETRAL DE COMBUSTIBLES LIQUIDOS DIPERCOMLIQ CIA. LTDA | C47: Factura | D47: 001-001-001081705 | E47: 1.705202301e+48 | F47: 2023-05-17T17:58:47 | G47: 2023-05-17 | H47: 992678054001 | I47: 4.46 | J47: .54 | K47: 5
A48: 1790041220001 | B48: COMERCIAL KYWI S.A. | C48: Factura | D48: 033-906-000215425 | E48: 1.805202301e+48 | F48: 2023-05-18T13:43:37 | G48: 2023-05-18 | H48: 992678054001 | I48: 2.14 | J48: .26 | K48: 2.4
A49: 992739401001 | B49: ESTACION DE SERVICIOS ALPASO S.A. | C49: Factura | D49: 003-007-000275400 | E49: 1.905202301e+48 | F49: 2023-05-19T07:17:30 | G49: 2023-05-19 | H49: 992678054001 | I49: 8.93 | J49: 1.07 | K49: 10
A50: 101518660001 | B50: PESANTEZ CORDERO PEDRITO RAFAEL | C50: Factura | D50: 005-102-000466038 | E50: 1.905202301e+48 | F50: 2023-05-19T10:13:30 | G50: 2023-05-19 | H50: 992678054001 | I50: 5.27 | J50: .63 | K50: 5.9
A51: 992732458001 | B51: MAXICOMBUST S.A. | C51: Factura | D51: 001-011-000178249 | E51: 2.005202301e+48 | F51: 2023-05-20T11:36:06 | G51: 2023-05-20 | H51: 992678054001 | I51: 7.38 | J51: .89 | K51: 8.26
A52: 992378395001 | B52: GAITALIN S.A. | C52: Factura | D52: 001-011-000546989 | E52: 2.205202301e+48 | F52: 2023-05-22T19:47:19 | G52: 2023-05-22 | H52: 992678054001 | I52: 6.88 | J52: .83 | K52: 7.7
A53: 992378395001 | B53: GAITALIN S.A. | C53: Factura | D53: 001-011-000546988 | E53: 2.205202301e+48 | F53: 2023-05-22T19:47:14 | G53: 2023-05-22 | H53: 992678054001 | I53: 13.39 | J53: 1.61 | K53: 15
A54: 1790041220001 | B54: COMERCIAL KYWI S.A. | C54: Factura | D54: 033-904-000333587 | E54: 2.305202301e+48 | F54: 2023-05-23T13:25:18 | G54: 2023-05-23 | H54: 992678054001 | I54: 8.14 | J54: .98 | K54: 9.12
A55: 992732458001 | B55: MAXICOMBUST S.A. | C55: Factura | D55: 001-011-000180228 | E55: 2.305202301e+48 | F55: 2023-05-23T17:46:15 | G55: 2023-05-23 | H55: 992678054001 | I55: 6.97 | J55: .84 | K55: 7.81
A56: 990005737001 | B56: BANCO DEL PACIFICO S.A. | C56: Factura | D56: 113-001-191170286 | E56: 2.405202301e+48 | F56: 2023-05-24T21:51:08 | G56: 2023-05-24 | H56: 992678054001 | I56: .51 | J56: .06 | K56: .57
A57: 990005737001 | B57: BANCO DEL PACIFICO S.A. | C57: Factura | D57: 113-001-191169871 | E57: 2.405202301e+48 | F57: 2023-05-24T23:31:08 | G57: 2023-05-24 | H57: 992678054001 | I57: .51 | J57: .06 | K57: .57
A58: 1315524486001 | B58: LOOR MENDOZA REINALDO SEBASTIAN | C58: Factura | D58: 001-003-000000052 | E58: 2.405202301e+48 | F58: 2023-05-24T11:34:38 | G58: 2023-05-24 | H58: 992678054001 | I58: 646 | J58: 77.52 | K58: 723.52
A59: 993366686001 | B59: GIGANTOPRINT S.A.S. | C59: Factura | D59: 001-900-000000244 | E59: 2.405202301e+48 | F59: 2023-05-24T11:51:09 | G59: 2023-05-24 | H59: 992678054001 | I59: 18.9 | J59: 2.27 | K59: 21.17
A60: 992732458001 | B60: MAXICOMBUST S.A. | C60: Factura | D60: 001-011-000180846 | E60: 2.405202301e+48 | F60: 2023-05-24T17:01:25 | G60: 2023-05-24 | H60: 992678054001 | I60: 4.69 | J60: .56 | K60: 5.25
A61: 990005737001 | B61: BANCO DEL PACIFICO S.A. | C61: Factura | D61: 113-001-191169798 | E61: 2.405202301e+48 | F61: 2023-05-24T18:58:58 | G61: 2023-05-24 | H61: 992678054001 | I61: .51 | J61: .06 | K61: .57
A62: 990005737001 | B62: BANCO DEL PACIFICO S.A. | C62: Factura | D62: 113-001-191170203 | E62: 2.405202301e+48 | F62: 2023-05-24T19:31:00 | G62: 2023-05-24 | H62: 992678054001 | I62: .51 | J62: .06 | K62: .57
A63: 990005737001 | B63: BANCO DEL PACIFICO S.A. | C63: Factura | D63: 113-001-191170245 | E63: 2.405202301e+48 | F63: 2023-05-24T19:55:01 | G63: 2023-05-24 | H63: 992678054001 | I63: .51 | J63: .06 | K63: .57
A64: 990005737001 | B64: BANCO DEL PACIFICO S.A. | C64: Factura | D64: 113-001-191169830 | E64: 2.405202301e+48 | F64: 2023-05-25T05:02:46 | G64: 2023-05-24 | H64: 992678054001 | I64: .51 | J64: .06 | K64: .57
A65: 990005737001 | B65: BANCO DEL PACIFICO S.A. | C65: Factura | D65: 113-001-191169921 | E65: 2.405202301e+48 | F65: 2023-05-25T07:03:06 | G65: 2023-05-24 | H65: 992678054001 | I65: .51 | J65: .06 | K65: .57
A66: 993033723001 | B66: SEGURIDAD & CUSTODIA CUSTOWILL CIA. LTDA | C66: Factura | D66: 001-002-000000380 | E66: 2.505202301e+48 | F66: 2023-05-25T12:12:10 | G66: 2023-05-25 | H66: 992678054001 | I66: 150 | J66: 18 | K66: 168
A67: 1791768892001 | B67: FERJEM SEGURIDAD CIA. LTDA. | C67: Factura | D67: 001-010-000003115 | E67: 2.505202301e+48 | F67: 2023-05-25T17:27:27 | G67: 2023-05-25 | H67: 992678054001 | I67: 265 | J67: 31.8 | K67: 296.8
A68: 992732458001 | B68: MAXICOMBUST S.A. | C68: Factura | D68: 001-011-000181591 | E68: 2.505202301e+48 | F68: 2023-05-25T20:36:34 | G68: 2023-05-25 | H68: 992678054001 | I68: 7.59 | J68: .91 | K68: 8.5
A69: 101518660001 | B69: PESANTEZ CORDERO PEDRITO RAFAEL | C69: Factura | D69: 005-102-000469761 | E69: 2.705202301e+48 | F69: 2023-05-27T10:05:06 | G69: 2023-05-27 | H69: 992678054001 | I69: 6.04 | J69: .72 | K69: 6.76
A70: 1791768892001 | B70: FERJEM SEGURIDAD CIA. LTDA. | C70: Factura | D70: 001-010-000003142 | E70: 2.905202301e+48 | F70: 2023-05-29T14:45:30 | G70: 2023-05-29 | H70: 992678054001 | I70: 1060 | J70: 0 | K70: 1060
A71: 991331859001 | B71: ATIMASA S.A. | C71: Factura | D71: 183-004-000376405 | E71: 2.905202301e+48 | F71: 2023-05-29T17:34:53 | G71: 2023-05-29 | H71: 992678054001 | I71: 10.71 | J71: 1.29 | K71: 12
A72: 992732458001 | B72: MAXICOMBUST S.A. | C72: Factura | D72: 001-012-000124134 | E72: 3.105202301e+48 | F72: 2023-05-31T08:39:03 | G72: 2023-05-31 | H72: 992678054001 | I72: 1.12 | J72: .13 | K72: 1.25
A73: 992625341001 | B73: TARDI S.A. | C73: Factura | D73: 001-100-000244421 | E73: 3.105202301e+48 | F73: 2023-05-31T15:49:36 | G73: 2023-05-31 | H73: 992678054001 | I73: 2.89 | J73: .35 | K73: 3.24
K75: =SUM(K9:K74) -> 3326

Sheet FACT. RECIBIDAS JUNIO
A2: RUC_EMISOR | B2: RAZON_SOCIAL_EMISOR | C2: TIPO_COMPROBANTE | D2: SERIE_COMPROBANTE | E2: CLAVE_ACCESO | F2: FECHA_AUTORIZACION | G2: FECHA_EMISION | H2: IDENTIFICACION_RECEPTOR | I2: VALOR_SIN_IMPUESTOS | J2: IVA | K2: IMPORTE_TOTAL
A3: 1791251237001 | B3: CONSORCIO ECUATORIANO DE TELECOMUNICACIONES S.A. CONECEL | C3: Factura | D3: 001-221-003413606 | E3: 1.062023012e+47 | F3: 2023-06-01T11:07:11 | G3: 2023-06-01 | H3: 992678054001 | I3: 57.79 | J3: 6.93 | K3: 64.72
A4: 1791251237001 | B4: CONSORCIO ECUATORIANO DE TELECOMUNICACIONES S.A. CONECEL | C4: Factura | D4: 001-221-003420736 | E4: 1.062023012e+47 | F4: 2023-06-01T14:21:53 | G4: 2023-06-01 | H4: 992678054001 | I4: 96.09 | J4: 11.75 | K4: 109.64
A5: 992231467001 | B5: CIA. IMPORTADORA REGALADO S.A. COMIRSA | C5: Factura | D5: 008-010-000065010 | E5: 1.062023011e+47 | F5: 2023-06-01T13:24:55 | G5: 2023-06-01 | H5: 992678054001 | I5: 5.41 | J5: .19 | K5: 5.6
A6: 1791287541001 | B6: MEGADATOS S.A. | C6: Factura | D6: 001-011-037133292 | E6: 1.062023012e+47 | F6: 2023-06-01T09:10:10 | G6: 2023-06-01 | H6: 992678054001 | I6: 140 | J6: 16.8 | K6: 156.8
A7: 992732458001 | B7: MAXICOMBUST S.A. | C7: Factura | D7: 001-011-000186569 | E7: 2.062023011e+47 | F7: 2023-06-02T21:22:26 | G7: 2023-06-02 | H7: 992678054001 | I7: 5.37 | J7: .64 | K7: 6.01
A8: 990004196001 | B8: CORPORACION EL ROSADO S.A. | C8: Factura | D8: 138-013-000185151 | E8: 2.062023011e+47 | F8: 2023-06-02T18:28:19 | G8: 2023-06-02 | H8: 992678054001 | I8: 25.79 | J8: 3.09 | K8: 28.88
A9: 992739401001 | B9: ESTACION DE SERVICIOS ALPASO S.A. | C9: Factura | D9: 003-002-000219033 | E9: 2.062023011e+47 | F9: 2023-06-02T08:25:07 | G9: 2023-06-02 | H9: 992678054001 | I9: 13.39 | J9: 1.61 | K9: 15
A10: 992139463001 | B10: GRUVALCORP S.A. | C10: Factura | D10: 009-003-000479459 | E10: 3.062023011e+47 | F10: 2023-06-03T12:25:37 | G10: 2023-06-03 | H10: 992678054001 | I10: 5.4 | J10: .65 | K10: 6.05
A11: 992732458001 | B11: MAXICOMBUST S.A. | C11: Factura | D11: 001-011-000186870 | E11: 3.062023011e+47 | F11: 2023-06-03T14:19:43 | G11: 2023-06-03 | H11: 992678054001 | I11: 5.4 | J11: .65 | K11: 6.05
A12: 1791310063001 | B12: DATAFAST S.A. | C12: Factura | D12: 001-002-003707888 | E12: 5.062023012e+47 | F12: 2023-06-06T04:08:41 | G12: 2023-06-05 | H12: 992678054001 | I12: 7.99 | J12: .96 | K12: 8.95
A13: 992732458001 | B13: MAXICOMBUST S.A. | C13: Factura | D13: 001-011-000188987 | E13: 6.062023011e+47 | F13: 2023-06-06T16:50:03 | G13: 2023-06-06 | H13: 992678054001 | I13: 5.36 | J13: .64 | K13: 6
A14: 992378395001 | B14: GAITALIN S.A. | C14: Factura | D14: 001-011-000552189 | E14: 7.062023011e+47 | F14: 2023-06-07T14:45:48 | G14: 2023-06-07 | H14: 992678054001 | I14: 10.71 | J14: 1.29 | K14: 12
A15: 1790041220001 | B15: COMERCIAL KYWI S.A. | C15: Factura | D15: 033-906-000219202 | E15: 7.062023012e+47 | F15: 2023-06-07T14:37:25 | G15: 2023-06-07 | H15: 992678054001 | I15: 4.64 | J15: .56 | K15: 5.2
A16: 992378395001 | B16: GAITALIN S.A. | C16: Factura | D16: 001-011-000552187 | E16: 7.062023011e+47 | F16: 2023-06-07T14:42:38 | G16: 2023-06-07 | H16: 992678054001 | I16: 13.39 | J16: 1.61 | K16: 15
A17: 968599020001 | B17: EMPRESA ELECTRICA PUBLICA ESTRATEGICA CORPORACION NACIONAL DE ELECTRICIDAD CNEL EP | C17: Factura | D17: 002-999-014426264 | E17: 8.062023011e+47 | F17: 2023-06-14T03:44:35 | G17: 2023-06-08 | H17: 992678054001 | I17: 2.08 | J17: 0 | K17: 2.08
A18: 968599020001 | B18: EMPRESA ELECTRICA PUBLICA ESTRATEGICA CORPORACION NACIONAL DE ELECTRICIDAD CNEL EP | C18: Factura | D18: 002-999-014426263 | E18: 8.062023011e+47 | F18: 2023-06-14T03:44:35 | G18: 2023-06-08 | H18: 992678054001 | I18: 283.51 | J18: 0 | K18: 283.51
A19: 968599020001 | B19: EMPRESA ELECTRICA PUBLICA ESTRATEGICA CORPORACION NACIONAL DE ELECTRICIDAD CNEL EP | C19: Factura | D19: 002-999-014430938 | E19: 8.062023011e+47 | F19: 2023-06-14T03:45:17 | G19: 2023-06-08 | H19: 992678054001 | I19: 6.68 | J19: 0 | K19: 6.68
A20: 968599020001 | B20: EMPRESA ELECTRICA PUBLICA ESTRATEGICA CORPORACION NACIONAL DE ELECTRICIDAD CNEL EP | C20: Factura | D20: 002-999-014431382 | E20: 8.062023011e+47 | F20: 2023-06-14T03:44:35 | G20: 2023-06-08 | H20: 992678054001 | I20: 2.89 | J20: 0 | K20: 2.89
A21: 968599020001 | B21: EMPRESA ELECTRICA PUBLICA ESTRATEGICA CORPORACION NACIONAL DE ELECTRICIDAD CNEL EP | C21: Factura | D21: 002-999-014430863 | E21: 8.062023011e+47 | F21: 2023-06-14T03:44:05 | G21: 2023-06-08 | H21: 992678054001 | I21: 361.53 | J21: 0 | K21: 361.53
A22: 968599020001 | B22: EMPRESA ELECTRICA PUBLICA ESTRATEGICA CORPORACION NACIONAL DE ELECTRICIDAD CNEL EP | C22: Factura | D22: 002-999-014491692 | E22: 8.062023011e+47 | F22: 2023-06-14T03:45:34 | G22: 2023-06-08 | H22: 992678054001 | I22: 304.1 | J22: 0 | K22: 304.1
A23: 1791256115001 | B23: OTECEL S.A. | C23: Factura | D23: 001-327-096367613 | E23: 8.062023012e+47 | F23: 2023-06-08T06:59:54 | G23: 2023-06-08 | H23: 992678054001 | I23: 50 | J23: 6 | K23: 56
A24: 992717041001 | B24: BELICOF S.A. | C24: Factura | D24: 001-099-000000396 | E24: 9.062023011e+47 | F24: 2023-06-09T09:19:16 | G24: 2023-06-09 | H24: 992678054001 | I24: 149.7 | J24: 17.96 | K24: 167.66
A25: 993198382001 | B25: DISTRIBUIDORA PERIMETRAL DE COMBUSTIBLES LIQUIDOS DIPERCOMLIQ CIA. LTDA | C25: Factura | D25: 001-002-000770964 | E25: 9.062023011e+47 | F25: 2023-06-09T05:52:56 | G25: 2023-06-09 | H25: 992678054001 | I25: 7.14 | J25: .86 | K25: 8
A26: 992186070001 | B26: MEGAMETALES S.A. | C26: Factura | D26: 018-100-000011338 | E26: 9.062023011e+47 | F26: 2023-06-09T22:54:01 | G26: 2023-06-09 | H26: 992678054001 | I26: 3.99 | J26: .48 | K26: 4.47
A27: 993256560001 | B27: GASOCORP S.A. | C27: Factura | D27: 001-002-000259876 | E27: 1.006202301e+48 | F27: 2023-06-10T18:17:55 | G27: 2023-06-10 | H27: 992678054001 | I27: 4.23 | J27: .51 | K27: 4.74
A28: 991450009001 | B28: AGUAS DE SAMBORONDON AMAGUA C.E.M. | C28: Factura | D28: 001-001-007408875 | E28: 1.006202301e+48 | F28: 2023-06-10T23:09:45 | G28: 2023-06-10 | H28: 992678054001 | I28: 24.1 | J28: .01 | K28: 24.11
A29: 991450009001 | B29: AGUAS DE SAMBORONDON AMAGUA C.E.M. | C29: Factura | D29: 001-001-007409619 | E29: 1.006202301e+48 | F29: 2023-06-10T23:54:47 | G29: 2023-06-10 | H29: 992678054001 | I29: 2.73 | J29: .01 | K29: 2.74
A30: 991450009001 | B30: AGUAS DE SAMBORONDON AMAGUA C.E.M. | C30: Factura | D30: 001-001-007409315 | E30: 1.006202301e+48 | F30: 2023-06-10T23:36:21 | G30: 2023-06-10 | H30: 992678054001 | I30: 55.2 | J30: .01 | K30: 55.21
A31: 991450009001 | B31: AGUAS DE SAMBORONDON AMAGUA C.E.M. | C31: Factura | D31: 001-001-007408876 | E31: 1.006202301e+48 | F31: 2023-06-10T23:09:48 | G31: 2023-06-10 | H31: 992678054001 | I31: 14.08 | J31: .01 | K31: 14.09
A32: 991450009001 | B32: AGUAS DE SAMBORONDON AMAGUA C.E.M. | C32: Factura | D32: 001-001-007409446 | E32: 1.006202301e+48 | F32: 2023-06-10T23:44:16 | G32: 2023-06-10 | H32: 992678054001 | I32: 485.84 | J32: 1.36 | K32: 487.2
A33: 991450009001 | B33: AGUAS DE SAMBORONDON AMAGUA C.E.M. | C33: Factura | D33: 001-001-007409642 | E33: 1.006202301e+48 | F33: 2023-06-10T23:56:16 | G33: 2023-06-10 | H33: 992678054001 | I33: 4.15 | J33: .01 | K33: 4.16
A34: 993198382001 | B34: DISTRIBUIDORA PERIMETRAL DE COMBUSTIBLES LIQUIDOS DIPERCOMLIQ CIA. LTDA | C34: Factura | D34: 001-002-000773166 | E34: 1.206202301e+48 | F34: 2023-06-12T05:40:04 | G34: 2023-06-12 | H34: 992678054001 | I34: 7.14 | J34: .86 | K34: 8
A35: 992378395001 | B35: GAITALIN S.A. | C35: Factura | D35: 001-008-000908598 | E35: 1.206202301e+48 | F35: 2023-06-12T19:44:17 | G35: 2023-06-12 | H35: 992678054001 | I35: 13.39 | J35: 1.61 | K35: 15
A36: 1791768892001 | B36: FERJEM SEGURIDAD CIA. LTDA. | C36: Factura | D36: 001-010-000003158 | E36: 1.306202301e+48 | F36: 2023-06-13T11:23:55 | G36: 2023-06-13 | H36: 992678054001 | I36: 1060 | J36: 0 | K36: 1060
A37: 1791768892001 | B37: FERJEM SEGURIDAD CIA. LTDA. | C37: Factura | D37: 001-010-000003157 | E37: 1.306202301e+48 | F37: 2023-06-13T11:23:00 | G37: 2023-06-13 | H37: 992678054001 | I37: 265 | J37: 31.8 | K37: 296.8
A38: 913523296001 | B38: SUAREZ LUQUE JOSE ENRIQUE | C38: Factura | D38: 001-001-000000012 | E38: 1.406202301e+48 | F38: 2023-06-14T13:17:13 | G38: 2023-06-14 | H38: 992678054001 | I38: 991.57 | J38: 118.99 | K38: 1110.56
A39: 925823601001 | B39: PILCO CONTRERAS GABRIELA VIRGINIA | C39: Factura | D39: 001-001-000000008 | E39: 1.406202301e+48 | F39: 2023-06-14T13:23:19 | G39: 2023-06-14 | H39: 992678054001 | I39: 900 | J39: 0 | K39: 900
A40: 992739401001 | B40: ESTACION DE SERVICIOS ALPASO S.A. | C40: Factura | D40: 003-002-000221340 | E40: 1.406202301e+48 | F40: 2023-06-14T08:21:13 | G40: 2023-06-14 | H40: 992678054001 | I40: 10.71 | J40: 1.29 | K40: 12
A41: 992732458001 | B41: MAXICOMBUST S.A. | C41: Factura | D41: 001-011-000194848 | E41: 1.406202301e+48 | F41: 2023-06-14T21:32:00 | G41: 2023-06-14 | H41: 992678054001 | I41: 5.25 | J41: .63 | K41: 5.88
A42: 992732458001 | B42: MAXICOMBUST S.A. | C42: Factura | D42: 001-011-000195549 | E42: 1.506202301e+48 | F42: 2023-06-15T20:48:54 | G42: 2023-06-15 | H42: 992678054001 | I42: 5.02 | J42: .6 | K42: 5.62
A43: 1790041220001 | B43: COMERCIAL KYWI S.A. | C43: Factura | D43: 033-902-000488595 | E43: 1.506202301e+48 | F43: 2023-06-15T13:09:38 | G43: 2023-06-15 | H43: 992678054001 | I43: 5 | J43: .6 | K43: 5.6
A44: 992739401001 | B44: ESTACION DE SERVICIOS ALPASO S.A. | C44: Factura | D44: 003-010-000185869 | E44: 1.506202301e+48 | F44: 2023-06-15T07:44:11 | G44: 2023-06-15 | H44: 992678054001 | I44: 4.46 | J44: .54 | K44: 5
A45: 101518660001 | B45: PESANTEZ CORDERO PEDRITO RAFAEL | C45: Factura | D45: 005-102-000479417 | E45: 1.706202301e+48 | F45: 2023-06-17T10:22:49 | G45: 2023-06-17 | H45: 992678054001 | I45: 6.25 | J45: .75 | K45: 7
A46: 993198382001 | B46: DISTRIBUIDORA PERIMETRAL DE COMBUSTIBLES LIQUIDOS DIPERCOMLIQ CIA. LTDA | C46: Factura | D46: 001-002-000777266 | E46: 1.706202301e+48 | F46: 2023-06-17T15:40:45 | G46: 2023-06-17 | H46: 992678054001 | I46: 3.57 | J46: .43 | K46: 4
A47: 992739401001 | B47: ESTACION DE SERVICIOS ALPASO S.A. | C47: Factura | D47: 003-001-000322298 | E47: 1.906202301e+48 | F47: 2023-06-19T08:23:57 | G47: 2023-06-19 | H47: 992678054001 | I47: 4.46 | J47: .54 | K47: 5
A48: 1204486441001 | B48: SARCO ROCAFUERTE ROCIO PATRICIA | C48: Factura | D48: 001-100-000000544 | E48: 2.006202301e+48 | F48: 2023-06-20T13:52:01 | G48: 2023-06-20 | H48: 992678054001 | I48: 16.08 | J48: 1.93 | K48: 18.01
A49: 993033723001 | B49: SEGURIDAD & CUSTODIA CUSTOWILL CIA. LTDA | C49: Factura | D49: 001-002-000000441 | E49: 2.006202301e+48 | F49: 2023-06-20T10:26:05 | G49: 2023-06-20 | H49: 992678054001 | I49: 150 | J49: 18 | K49: 168
A50: 992717041001 | B50: BELICOF S.A. | C50: Factura | D50: 001-099-000000423 | E50: 2.106202301e+48 | F50: 2023-06-21T14:17:08 | G50: 2023-06-21 | H50: 992678054001 | I50: 149.7 | J50: 17.96 | K50: 167.66
A51: 990976643001 | B51: LA CHIRIPA CHIRS S.A. | C51: Factura | D51: 005-011-000028506 | E51: 2.206202301e+48 | F51: 2023-06-22T08:30:44 | G51: 2023-06-22 | H51: 992678054001 | I51: 10.71 | J51: 1.29 | K51: 12
A52: 990976643001 | B52: LA CHIRIPA CHIRS S.A. | C52: Factura | D52: 005-011-000028505 | E52: 2.206202301e+48 | F52: 2023-06-22T08:30:44 | G52: 2023-06-22 | H52: 992678054001 | I52: 13.39 | J52: 1.61 | K52: 15
A53: 991256911001 | B53: COMERCIO Y PREDIOS COMPRED S.A. | C53: Factura | D53: 001-013-000997095 | E53: 2.306202301e+48 | F53: 2023-06-23T10:49:56 | G53: 2023-06-23 | H53: 992678054001 | I53: 8.93 | J53: 1.07 | K53: 10
A54: 990976643001 | B54: LA CHIRIPA CHIRS S.A. | C54: Factura | D54: 007-013-000036518 | E54: 2.506202301e+48 | F54: 2023-06-25T14:11:33 | G54: 2023-06-25 | H54: 992678054001 | I54: 8.93 | J54: 1.07 | K54: 10
A55: 1791768892001 | B55: FERJEM SEGURIDAD CIA. LTDA. | C55: Factura | D55: 001-010-000003172 | E55: 2.606202301e+48 | F55: 2023-06-26T15:58:47 | G55: 2023-06-26 | H55: 992678054001 | I55: 265 | J55: 31.8 | K55: 296.8
A56: 1791768892001 | B56: FERJEM SEGURIDAD CIA. LTDA. | C56: Factura | D56: 001-010-000003171 | E56: 2.606202301e+48 | F56: 2023-06-26T15:57:58 | G56: 2023-06-26 | H56: 992678054001 | I56: 1060 | J56: 0 | K56: 1060
A57: 1315524486001 | B57: LOOR MENDOZA REINALDO SEBASTIAN | C57: Factura | D57: 001-003-000000062 | E57: 2.606202301e+48 | F57: 2023-06-26T16:36:28 | G57: 2023-06-26 | H57: 992678054001 | I57: 646 | J57: 77.52 | K57: 723.52
A58: 990004196001 | B58: CORPORACION EL ROSADO S.A. | C58: Factura | D58: 138-039-000648120 | E58: 2.606202301e+48 | F58: 2023-06-26T18:43:55 | G58: 2023-06-26 | H58: 992678054001 | I58: 6.77 | J58: .81 | K58: 7.58
A59: 990005737001 | B59: BANCO DEL PACIFICO S.A. | C59: Factura | D59: 001-001-192425779 | E59: 2.706202301e+48 | F59: 2023-06-28T05:10:54 | G59: 2023-06-27 | H59: 992678054001 | I59: .51 | J59: .06 | K59: .57
A60: 990005737001 | B60: BANCO DEL PACIFICO S.A. | C60: Factura | D60: 001-001-192425701 | E60: 2.706202301e+48 | F60: 2023-06-27T10:12:55 | G60: 2023-06-27 | H60: 992678054001 | I60: .51 | J60: .06 | K60: .57
A61: 990005737001 | B61: BANCO DEL PACIFICO S.A. | C61: Factura | D61: 001-001-192425726 | E61: 2.706202301e+48 | F61: 2023-06-27T10:36:51 | G61: 2023-06-27 | H61: 992678054001 | I61: .51 | J61: .06 | K61: .57
A62: 914150149001 | B62: CHAVEZ DELGADO SONIA MARIBEL | C62: Factura | D62: 001-002-000000494 | E62: 2.706202301e+48 | F62: 2023-06-27T12:28:28 | G62: 2023-06-27 | H62: 992678054001 | I62: 60.85 | J62: 4.13 | K62: 64.98
A63: 990005737001 | B63: BANCO DEL PACIFICO S.A. | C63: Factura | D63: 001-001-192425754 | E63: 2.706202301e+48 | F63: 2023-06-27T15:10:57 | G63: 2023-06-27 | H63: 992678054001 | I63: .51 | J63: .06 | K63: .57
A64: 990976643001 | B64: LA CHIRIPA CHIRS S.A. | C64: Factura | D64: 007-011-000056712 | E64: 2.906202301e+48 | F64: 2023-06-29T07:31:13 | G64: 2023-06-29 | H64: 992678054001 | I64: 4.46 | J64: .54 | K64: 5
A65: 992844779001 | B65: ELECTRONICA SIETE S.A. ELECTROSIET | C65: Factura | D65: 001-002-000002795 | E65: 3.006202301e+48 | F65: 2023-06-30T10:33:36 | G65: 2023-06-30 | H65: 992678054001 | I65: 150 | J65: 18 | K65: 168
K67: =SUM(K9:K66) -> 3576

Sheet FACT. RECIBIDAS JULIO
A2: RUC_EMISOR | B2: RAZON_SOCIAL_EMISOR | C2: TIPO_COMPROBANTE | D2: SERIE_COMPROBANTE | E2: CLAVE_ACCESO | F2: FECHA_AUTORIZACION | G2: FECHA_EMISION | H2: IDENTIFICACION_RECEPTOR | I2: VALOR_SIN_IMPUESTOS | J2: IVA | K2: IMPORTE_TOTAL
A3: 1791287541001 | B3: MEGADATOS S.A. | C3: Factura | D3: 001-011-037899677 | E3: 1.072023012e+47 | F3: 2023-07-01T08:25:44 | G3: 2023-07-01 | H3: 992678054001 | I3: 140 | J3: 16.8 | K3: 156.8
A4: 1791251237001 | B4: CONSORCIO ECUATORIANO DE TELECOMUNICACIONES S.A. CONECEL | C4: Factura | D4: 001-221-003437549 | E4: 1.072023012e+47 | F4: 2023-07-01T10:20:57 | G4: 2023-07-01 | H4: 992678054001 | I4: 58.42 | J4: 7.01 | K4: 65.43
A5: 1791251237001 | B5: CONSORCIO ECUATORIANO DE TELECOMUNICACIONES S.A. CONECEL | C5: Factura | D5: 001-221-003441978 | E5: 1.072023012e+47 | F5: 2023-07-01T12:31:28 | G5: 2023-07-01 | H5: 992678054001 | I5: 95.93 | J5: 11.73 | K5: 109.46
A6: 992378395001 | B6: GAITALIN S.A. | C6: Factura | D6: 001-011-000560268 | E6: 1.072023011e+47 | F6: 2023-07-01T13:02:46 | G6: 2023-07-01 | H6: 992678054001 | I6: 13.39 | J6: 1.61 | K6: 15
A7: 913989406001 | B7: FLORES GARCIA SANTOS EDMUNDO | C7: Factura | D7: 001-100-000015254 | E7: 1.072023011e+47 | F7: 2023-07-03T08:16:10 | G7: 2023-07-01 | H7: 992678054001 | I7: .9 | J7: .11 | K7: 1.01
A8: 913989406001 | B8: FLORES GARCIA SANTOS EDMUNDO | C8: Factura | D8: 001-100-000015252 | E8: 1.072023011e+47 | F8: 2023-07-03T08:15:54 | G8: 2023-07-01 | H8: 992678054001 | I8: .66 | J8: .08 | K8: .74
A9: 913989406001 | B9: FLORES GARCIA SANTOS EDMUNDO | C9: Factura | D9: 001-100-000015253 | E9: 1.072023011e+47 | F9: 2023-07-03T08:16:03 | G9: 2023-07-01 | H9: 992678054001 | I9: 3 | J9: .36 | K9: 3.36
A10: 1790041220001 | B10: COMERCIAL KYWI S.A. | C10: Factura | D10: 033-906-000222616 | E10: 3.072023012e+47 | F10: 2023-07-03T14:26:28 | G10: 2023-07-03 | H10: 992678054001 | I10: 4.1 | J10: .49 | K10: 4.59
A11: 992378395001 | B11: GAITALIN S.A. | C11: Factura | D11: 001-008-000919557 | E11: 4.072023011e+47 | F11: 2023-07-04T13:43:36 | G11: 2023-07-04 | H11: 992678054001 | I11: 13.39 | J11: 1.61 | K11: 15
A12: 992378395001 | B12: GAITALIN S.A. | C12: Factura | D12: 001-008-000919555 | E12: 4.072023011e+47 | F12: 2023-07-04T13:46:58 | G12: 2023-07-04 | H12: 992678054001 | I12: 10.71 | J12: 1.29 | K12: 12
A13: 915288534001 | B13: PINARGOTE VERA HIPOLITO | C13: Factura | D13: 001-100-000001364 | E13: 4.072023011e+47 | F13: 2023-07-04T15:33:26 | G13: 2023-07-04 | H13: 992678054001 | I13: 12.54 | J13: 1.5 | K13: 14.04
A14: 1801916600001 | B14: URBINA BERTHA CECILIA TRINIDAD | C14: Factura | D14: 004-100-000179855 | E14: 4.072023012e+47 | F14: 2023-07-04T15:12:22 | G14: 2023-07-04 | H14: 992678054001 | I14: 7.25 | J14: .87 | K14: 8.12
A15: 1791310063001 | B15: DATAFAST S.A. | C15: Factura | D15: 001-002-003762867 | E15: 5.072023012e+47 | F15: 2023-07-06T04:27:58 | G15: 2023-07-05 | H15: 992678054001 | I15: 7.99 | J15: .96 | K15: 8.95
A16: 992844779001 | B16: ELECTRONICA SIETE S.A. ELECTROSIET | C16: Factura | D16: 001-002-000002811 | E16: 6.072023011e+47 | F16: 2023-07-06T12:33:40 | G16: 2023-07-06 | H16: 992678054001 | I16: 1000 | J16: 120 | K16: 1120
A17: 990004196001 | B17: CORPORACION EL ROSADO S.A. | C17: Factura | D17: 138-030-000144505 | E17: 6.072023011e+47 | F17: 2023-07-06T14:30:12 | G17: 2023-07-06 | H17: 992678054001 | I17: 7.79 | J17: .93 | K17: 8.72
A18: 990004196001 | B18: CORPORACION EL ROSADO S.A. | C18: Factura | D18: 138-035-000296636 | E18: 7.072023011e+47 | F18: 2023-07-07T14:18:07 | G18: 2023-07-07 | H18: 992678054001 | I18: 8.84 | J18: 1.06 | K18: 9.9
A19: 968599020001 | B19: EMPRESA ELECTRICA PUBLICA ESTRATEGICA CORPORACION NACIONAL DE ELECTRICIDAD CNEL EP | C19: Factura | D19: 002-999-014765106 | E19: 7.072023011e+47 | F19: 2023-07-11T17:33:38 | G19: 2023-07-07 | H19: 992678054001 | I19: 8.59 | J19: 0 | K19: 8.59
A20: 968599020001 | B20: EMPRESA ELECTRICA PUBLICA ESTRATEGICA CORPORACION NACIONAL DE ELECTRICIDAD CNEL EP | C20: Factura | D20: 002-999-014769842 | E20: 7.072023011e+47 | F20: 2023-07-11T17:34:21 | G20: 2023-07-07 | H20: 992678054001 | I20: 290.35 | J20: 0 | K20: 290.35
A21: 968599020001 | B21: EMPRESA ELECTRICA PUBLICA ESTRATEGICA CORPORACION NACIONAL DE ELECTRICIDAD CNEL EP | C21: Factura | D21: 002-999-014769768 | E21: 7.072023011e+47 | F21: 2023-07-11T17:34:24 | G21: 2023-07-07 | H21: 992678054001 | I21: 13.66 | J21: 0 | K21: 13.66
A22: 968599020001 | B22: EMPRESA ELECTRICA PUBLICA ESTRATEGICA CORPORACION NACIONAL DE ELECTRICIDAD CNEL EP | C22: Factura | D22: 002-999-014770212 | E22: 7.072023011e+47 | F22: 2023-07-11T17:33:39 | G22: 2023-07-07 | H22: 992678054001 | I22: 9.2 | J22: 0 | K22: 9.2
A23: 968599020001 | B23: EMPRESA ELECTRICA PUBLICA ESTRATEGICA CORPORACION NACIONAL DE ELECTRICIDAD CNEL EP | C23: Factura | D23: 002-999-014765105 | E23: 7.072023011e+47 | F23: 2023-07-11T17:33:38 | G23: 2023-07-07 | H23: 992678054001 | I23: 243.16 | J23: 0 | K23: 243.16
A24: 968599020001 | B24: EMPRESA ELECTRICA PUBLICA ESTRATEGICA CORPORACION NACIONAL DE ELECTRICIDAD CNEL EP | C24: Factura | D24: 002-999-014769693 | E24: 7.072023011e+47 | F24: 2023-07-11T17:32:55 | G24: 2023-07-07 | H24: 992678054001 | I24: 335.4 | J24: 0 | K24: 335.4
A25: 1791256115001 | B25: OTECEL S.A. | C25: Factura | D25: 001-327-097259017 | E25: 8.072023012e+47 | F25: 2023-07-08T07:13:37 | G25: 2023-07-08 | H25: 992678054001 | I25: 50 | J25: 6 | K25: 56
A26: 992732458001 | B26: MAXICOMBUST S.A. | C26: Factura | D26: 001-011-000210154 | E26: 9.072023011e+47 | F26: 2023-07-09T12:23:14 | G26: 2023-07-09 | H26: 992678054001 | I26: 3.6 | J26: .43 | K26: 4.03
A27: 992739401001 | B27: ESTACION DE SERVICIOS ALPASO S.A. | C27: Factura | D27: 003-008-000147655 | E27: 1.007202301e+48 | F27: 2023-07-10T14:26:01 | G27: 2023-07-10 | H27: 992678054001 | I27: 8.93 | J27: 1.07 | K27: 10
A28: 991450009001 | B28: AGUAS DE SAMBORONDON AMAGUA C.E.M. | C28: Factura | D28: 001-001-007471703 | E28: 1.107202301e+48 | F28: 2023-07-12T03:21:06 | G28: 2023-07-11 | H28: 992678054001 | I28: 24.1 | J28: .01 | K28: 24.11
A29: 991450009001 | B29: AGUAS DE SAMBORONDON AMAGUA C.E.M. | C29: Factura | D29: 001-001-007471704 | E29: 1.107202301e+48 | F29: 2023-07-12T03:21:10 | G29: 2023-07-11 | H29: 992678054001 | I29: 15.49 | J29: .01 | K29: 15.5
A30: 1791768892001 | B30: FERJEM SEGURIDAD CIA. LTDA. | C30: Factura | D30: 001-010-000003218 | E30: 1.107202301e+48 | F30: 2023-07-11T11:31:35 | G30: 2023-07-11 | H30: 992678054001 | I30: 265 | J30: 31.8 | K30: 296.8
A31: 1791768892001 | B31: FERJEM SEGURIDAD CIA. LTDA. | C31: Factura | D31: 001-010-000003219 | E31: 1.107202301e+48 | F31: 2023-07-11T11:32:27 | G31: 2023-07-11 | H31: 992678054001 | I31: 1060 | J31: 0 | K31: 1060
A32: 991450009001 | B32: AGUAS DE SAMBORONDON AMAGUA C.E.M. | C32: Factura | D32: 001-001-007472274 | E32: 1.107202301e+48 | F32: 2023-07-12T03:56:49 | G32: 2023-07-11 | H32: 992678054001 | I32: 513.98 | J32: 1.36 | K32: 515.34
A33: 991450009001 | B33: AGUAS DE SAMBORONDON AMAGUA C.E.M. | C33: Factura | D33: 001-001-007472143 | E33: 1.107202301e+48 | F33: 2023-07-12T03:48:36 | G33: 2023-07-11 | H33: 992678054001 | I33: 41.02 | J33: .01 | K33: 41.03
A34: 991450009001 | B34: AGUAS DE SAMBORONDON AMAGUA C.E.M. | C34: Factura | D34: 001-001-007472470 | E34: 1.107202301e+48 | F34: 2023-07-12T04:08:52 | G34: 2023-07-11 | H34: 992678054001 | I34: 4.15 | J34: .01 | K34: 4.16
A35: 991450009001 | B35: AGUAS DE SAMBORONDON AMAGUA C.E.M. | C35: Factura | D35: 001-001-007472447 | E35: 1.107202301e+48 | F35: 2023-07-12T04:07:30 | G35: 2023-07-11 | H35: 992678054001 | I35: 2.73 | J35: .01 | K35: 2.74
A36: 992378395001 | B36: GAITALIN S.A. | C36: Factura | D36: 001-008-000923140 | E36: 1.107202301e+48 | F36: 2023-07-11T17:20:50 | G36: 2023-07-11 | H36: 992678054001 | I36: 13.39 | J36: 1.61 | K36: 15
A37: 913523296001 | B37: SUAREZ LUQUE JOSE ENRIQUE | C37: Factura | D37: 001-001-000000013 | E37: 1.207202301e+48 | F37: 2023-07-12T17:25:03 | G37: 2023-07-12 | H37: 992678054001 | I37: 991.57 | J37: 118.99 | K37: 1110.56
A38: 101518660001 | B38: PESANTEZ CORDERO PEDRITO RAFAEL | C38: Factura | D38: 005-102-000490782 | E38: 1.207202301e+48 | F38: 2023-07-12T09:26:08 | G38: 2023-07-12 | H38: 992678054001 | I38: 5.9 | J38: .71 | K38: 6.61
A39: 992732458001 | B39: MAXICOMBUST S.A. | C39: Factura | D39: 001-011-000212307 | E39: 1.207202301e+48 | F39: 2023-07-12T20:18:44 | G39: 2023-07-12 | H39: 992678054001 | I39: 5.1 | J39: .61 | K39: 5.71
A40: 992186070001 | B40: MEGAMETALES S.A. | C40: Factura | D40: 018-100-000015257 | E40: 1.207202301e+48 | F40: 2023-07-12T22:59:48 | G40: 2023-07-12 | H40: 992678054001 | I40: 2.75 | J40: .33 | K40: 3.08
A41: 992378395001 | B41: GAITALIN S.A. | C41: Factura | D41: 001-012-000493365 | E41: 1.307202301e+48 | F41: 2023-07-13T14:06:59 | G41: 2023-07-13 | H41: 992678054001 | I41: 13.39 | J41: 1.61 | K41: 15
A42: 993033723001 | B42: SEGURIDAD & CUSTODIA CUSTOWILL CIA. LTDA | C42: Factura | D42: 001-002-000000496 | E42: 1.307202301e+48 | F42: 2023-07-13T15:04:12 | G42: 2023-07-13 | H42: 992678054001 | I42: 150 | J42: 18 | K42: 168
A43: 925823601001 | B43: PILCO CONTRERAS GABRIELA VIRGINIA | C43: Factura | D43: 001-001-000000009 | E43: 1.307202301e+48 | F43: 2023-07-13T19:49:38 | G43: 2023-07-13 | H43: 992678054001 | I43: 450 | J43: 0 | K43: 450
A44: 992717041001 | B44: BELICOF S.A. | C44: Factura | D44: 001-099-000000454 | E44: 1.407202301e+48 | F44: 2023-07-14T08:32:36 | G44: 2023-07-14 | H44: 992678054001 | I44: 149.7 | J44: 17.96 | K44: 167.66
A45: 992732458001 | B45: MAXICOMBUST S.A. | C45: Factura | D45: 001-011-000213534 | E45: 1.407202301e+48 | F45: 2023-07-14T16:40:45 | G45: 2023-07-14 | H45: 992678054001 | I45: 6.8 | J45: .82 | K45: 7.62
A46: 993198382001 | B46: DISTRIBUIDORA PERIMETRAL DE COMBUSTIBLES LIQUIDOS DIPERCOMLIQ CIA. LTDA | C46: Factura | D46: 001-012-000815288 | E46: 1.507202301e+48 | F46: 2023-07-15T11:47:06 | G46: 2023-07-15 | H46: 992678054001 | I46: 1.56 | J46: .19 | K46: 1.75
A47: 992732458001 | B47: MAXICOMBUST S.A. | C47: Factura | D47: 001-011-000214174 | E47: 1.507202301e+48 | F47: 2023-07-15T16:51:18 | G47: 2023-07-15 | H47: 992678054001 | I47: 5.89 | J47: .71 | K47: 6.6
A48: 992732458001 | B48: MAXICOMBUST S.A. | C48: Factura | D48: 001-011-000214647 | E48: 1.607202301e+48 | F48: 2023-07-16T14:56:51 | G48: 2023-07-16 | H48: 992678054001 | I48: 5.37 | J48: .64 | K48: 6.01
A49: 992732458001 | B49: MAXICOMBUST S.A. | C49: Factura | D49: 001-011-000215425 | E49: 1.707202301e+48 | F49: 2023-07-17T18:03:48 | G49: 2023-07-17 | H49: 992678054001 | I49: 7.05 | J49: .85 | K49: 7.9
A50: 1790041220001 | B50: COMERCIAL KYWI S.A. | C50: Factura | D50: 033-907-000085932 | E50: 1.707202301e+48 | F50: 2023-07-17T14:22:56 | G50: 2023-07-17 | H50: 992678054001 | I50: 8.11 | J50: .97 | K50: 9.08
A51: 913199352001 | B51: CABRERA CARRION GLADYS XIMENA | C51: Factura | D51: 001-004-000217037 | E51: 1.707202301e+48 | F51: 2023-07-17T12:54:52 | G51: 2023-07-17 | H51: 992678054001 | I51: 113.48 | J51: 13.62 | K51: 127.1
A52: 992732458001 | B52: MAXICOMBUST S.A. | C52: Factura | D52: 001-011-000215946 | E52: 1.807202301e+48 | F52: 2023-07-18T16:50:08 | G52: 2023-07-18 | H52: 992678054001 | I52: 6.52 | J52: .78 | K52: 7.3
A53: 992560754001 | B53: ZUKALO S.A. | C53: Factura | D53: 001-002-000082677 | E53: 1.907202301e+48 | F53: 2023-07-19T12:09:19 | G53: 2023-07-19 | H53: 992678054001 | I53: 34.24 | J53: 4.11 | K53: 38.35
A54: 992624337001 | B54: COSTAKARIM S.A. | C54: Factura | D54: 004-001-000153448 | E54: 1.907202301e+48 | F54: 2023-07-19T08:35:21 | G54: 2023-07-19 | H54: 992678054001 | I54: 8.93 | J54: 1.07 | K54: 10
A55: 992624337001 | B55: COSTAKARIM S.A. | C55: Factura | D55: 004-001-000153447 | E55: 1.907202301e+48 | F55: 2023-07-19T08:35:20 | G55: 2023-07-19 | H55: 992678054001 | I55: 13.39 | J55: 1.61 | K55: 15
A56: 990017514001 | B56: TIENDAS INDUSTRIALES ASOCIADAS TIA S. A. | C56: Factura | D56: 227-005-000054445 | E56: 2.007202301e+48 | F56: 2023-07-20T17:39:27 | G56: 2023-07-20 | H56: 992678054001 | I56: 8.01 | J56: .96 | K56: 8.97
A57: 1791768892001 | B57: FERJEM SEGURIDAD CIA. LTDA. | C57: Factura | D57: 001-010-000003234 | E57: 2.107202301e+48 | F57: 2023-07-21T09:31:45 | G57: 2023-07-21 | H57: 992678054001 | I57: 1060 | J57: 0 | K57: 1060
A58: 1791768892001 | B58: FERJEM SEGURIDAD CIA. LTDA. | C58: Factura | D58: 001-010-000003235 | E58: 2.107202301e+48 | F58: 2023-07-21T09:32:47 | G58: 2023-07-21 | H58: 992678054001 | I58: 265 | J58: 31.8 | K58: 296.8
A59: 992732458001 | B59: MAXICOMBUST S.A. | C59: Factura | D59: 001-011-000218343 | E59: 2.207202301e+48 | F59: 2023-07-22T15:28:22 | G59: 2023-07-22 | H59: 992678054001 | I59: 4.24 | J59: .51 | K59: 4.75
A60: 992732458001 | B60: MAXICOMBUST S.A. | C60: Factura | D60: 001-011-000218905 | E60: 2.307202301e+48 | F60: 2023-07-23T15:17:08 | G60: 2023-07-23 | H60: 992678054001 | I60: 4.94 | J60: .59 | K60: 5.53
A61: 992732458001 | B61: MAXICOMBUST S.A. | C61: Factura | D61: 001-011-000219333 | E61: 2.407202301e+48 | F61: 2023-07-24T11:05:11 | G61: 2023-07-24 | H61: 992678054001 | I61: 4.23 | J61: .51 | K61: 4.74
A62: 925398695001 | B62: YAGUAL BRUCEL SHIRLEY KATHERINE | C62: Factura | D62: 001-100-000001318 | E62: 2.507202301e+48 | F62: 2023-07-26T12:46:25 | G62: 2023-07-25 | H62: 992678054001 | I62: 144.28 | J62: 7.76 | K62: 152.04
A63: 992378395001 | B63: GAITALIN S.A. | C63: Factura | D63: 001-010-000812438 | E63: 2.507202301e+48 | F63: 2023-07-25T19:42:02 | G63: 2023-07-25 | H63: 992678054001 | I63: 13.39 | J63: 1.61 | K63: 15
A64: 993323543001 | B64: TIO GUILLO MARKET TGL S.A.S. | C64: Factura | D64: 001-011-000183317 | E64: 2.507202301e+48 | F64: 2023-07-27T11:23:14 | G64: 2023-07-25 | H64: 992678054001 | I64: 1.1 | J64: 0 | K64: 1.1
A65: 1315524486001 | B65: LOOR MENDOZA REINALDO SEBASTIAN | C65: Factura | D65: 001-003-000000073 | E65: 2.607202301e+48 | F65: 2023-07-26T16:11:23 | G65: 2023-07-26 | H65: 992678054001 | I65: 646 | J65: 77.52 | K65: 723.52
A66: 1790041220001 | B66: COMERCIAL KYWI S.A. | C66: Factura | D66: 033-909-000035736 | E66: 2.707202301e+48 | F66: 2023-07-27T14:15:57 | G66: 2023-07-27 | H66: 992678054001 | I66: 5.34 | J66: .64 | K66: 5.98
A67: 993323543001 | B67: TIO GUILLO MARKET TGL S.A.S. | C67: Factura | D67: 001-011-000183787 | E67: 2.707202301e+48 | F67: 2023-07-31T11:18:29 | G67: 2023-07-27 | H67: 992678054001 | I67: 1.1 | J67: 0 | K67: 1.1
A68: 101518660001 | B68: PESANTEZ CORDERO PEDRITO RAFAEL | C68: Factura | D68: 005-103-000400468 | E68: 2.907202301e+48 | F68: 2023-07-29T10:26:27 | G68: 2023-07-29 | H68: 992678054001 | I68: 5.37 | J68: .64 | K68: 6.01
A69: 993366686001 | B69: GIGANTOPRINT S.A.S. | C69: Factura | D69: 001-900-000000338 | E69: 2.907202301e+48 | F69: 2023-07-29T11:04:06 | G69: 2023-07-29 | H69: 992678054001 | I69: 28.76 | J69: 3.45 | K69: 32.21
A70: 992378395001 | B70: GAITALIN S.A. | C70: Factura | D70: 001-009-000901947 | E70: 3.107202301e+48 | F70: 2023-07-31T14:06:39 | G70: 2023-07-31 | H70: 992678054001 | I70: 8.93 | J70: 1.07 | K70: 10
A71: 992378395001 | B71: GAITALIN S.A. | C71: Factura | D71: 001-009-000901948 | E71: 3.107202301e+48 | F71: 2023-07-31T14:10:38 | G71: 2023-07-31 | H71: 992678054001 | I71: 13.39 | J71: 1.61 | K71: 15
K73: =SUM(K6:K72) -> 4061

Sheet FACT. RECIBIDAS AGOSTO 2023
A1: FACTURAS RECIBIDAS AGOSTO 2023
A3: RUC_EMISOR | B3: RAZON_SOCIAL_EMISOR | C3: TIPO_COMPROBANTE | D3: SERIE_COMPROBANTE | E3: CLAVE_ACCESO | F3: FECHA_AUTORIZACION | G3: FECHA_EMISION | H3: IDENTIFICACION_RECEPTOR | I3: VALOR_SIN_IMPUESTOS | J3: IVA | K3: IMPORTE_TOTAL | L3: NUMERO_DOCUMENTO_MODIFICADO
A4: 1791287541001 | B4: MEGADATOS S.A. | C4: Factura | D4: 001-011-038667503 | E4: 1.082023012e+47 | F4: 2023-08-01T06:45:12 | G4: 2023-08-01 | H4: 992678054001 | I4: $140.00 | J4: $16.80 | K4: $156.80
A5: 1791251237001 | B5: CONSORCIO ECUATORIANO DE TELECOMUNICACIONES S.A. CONECEL | C5: Factura | D5: 001-221-003460741 | E5: 1.082023012e+47 | F5: 2023-08-01T08:41:31 | G5: 2023-08-01 | H5: 992678054001 | I5: $58.21 | J5: $6.99 | K5: $65.20
A6: 0992732458001 | B6: MAXICOMBUST S.A. | C6: Factura | D6: 001-011-000224328 | E6: 1.082023011e+47 | F6: 2023-08-01T09:45:30 | G6: 2023-08-01 | H6: 992678054001 | I6: $6.25 | J6: $0.75 | K6: $7.00
A7: 1791251237001 | B7: CONSORCIO ECUATORIANO DE TELECOMUNICACIONES S.A. CONECEL | C7: Factura | D7: 001-221-003469728 | E7: 1.082023012e+47 | F7: 2023-08-02T12:10:13 | G7: 2023-08-01 | H7: 992678054001 | I7: $94.64 | J7: $11.57 | K7: $108.01
A8: 0992732458001 | B8: MAXICOMBUST S.A. | C8: Factura | D8: 001-011-000224957 | E8: 2.082023011e+47 | F8: 2023-08-02T08:57:19 | G8: 2023-08-02 | H8: 992678054001 | I8: $6.00 | J8: $0.72 | K8: $6.72
A9: 0992732458001 | B9: MAXICOMBUST S.A. | C9: Factura | D9: 001-011-000226289 | E9: 4.082023011e+47 | F9: 2023-08-04T08:18:05 | G9: 2023-08-04 | H9: 992678054001 | I9: $6.70 | J9: $0.80 | K9: $7.50
A10: 0993198382001 | B10: DISTRIBUIDORA PERIMETRAL DE COMBUSTIBLES LIQUIDOS DIPERCOMLIQ CIA. LTDA | C10: Factura | D10: 001-012-000837067 | E10: 5.082023011e+47 | F10: 2023-08-05T06:39:45 | G10: 2023-08-05 | H10: 992678054001 | I10: $2.68 | J10: $0.32 | K10: $3.00
A11: 1791310063001 | B11: DATAFAST S.A. | C11: Factura | D11: 001-002-003818770 | E11: 5.082023012e+47 | F11: 2023-08-05T23:08:35 | G11: 2023-08-05 | H11: 992678054001 | I11: $7.99 | J11: $0.96 | K11: $8.95
A12: 0992732458001 | B12: MAXICOMBUST S.A. | C12: Factura | D12: 001-011-000227178 | E12: 5.082023011e+47 | F12: 2023-08-05T17:22:05 | G12: 2023-08-05 | H12: 992678054001 | I12: $4.46 | J12: $0.53 | K12: $4.99
A13: 0992732458001 | B13: MAXICOMBUST S.A. | C13: Factura | D13: 001-011-000226948 | E13: 5.082023011e+47 | F13: 2023-08-05T09:32:00 | G13: 2023-08-05 | H13: 992678054001 | I13: $5.33 | J13: $0.64 | K13: $5.97
A14: 1790041220001 | B14: COMERCIAL KYWI S.A. | C14: Factura | D14: 033-907-000087323 | E14: 7.082023012e+47 | F14: 2023-08-07T13:44:28 | G14: 2023-08-07 | H14: 992678054001 | I14: $1.33 | J14: $0.16 | K14: $1.49
A15: 0992732458001 | B15: MAXICOMBUST S.A. | C15: Factura | D15: 001-011-000228313 | E15: 7.082023011e+47 | F15: 2023-08-07T14:55:13 | G15: 2023-08-07 | H15: 992678054001 | I15: $5.80 | J15: $0.70 | K15: $6.50
A16: 0101518660001 | B16: PESANTEZ CORDERO PEDRITO RAFAEL | C16: Factura | D16: 005-103-000404228 | E16: 7.08202301e+47 | F16: 2023-08-08T09:09:31 | G16: 2023-08-07 | H16: 992678054001 | I16: $5.37 | J16: $0.64 | K16: $6.01
A17: 0992717041001 | B17: BELICOF S.A. | C17: Factura | D17: 001-099-000000482 | E17: 7.082023011e+47 | F17: 2023-08-07T08:29:37 | G17: 2023-08-07 | H17: 992678054001 | I17: $149.70 | J17: $17.96 | K17: $167.66
A18: 0990976643001 | B18: LA CHIRIPA CHIRS S.A. | C18: Factura | D18: 005-012-000045494 | E18: 7.082023011e+47 | F18: 2023-08-07T08:24:01 | G18: 2023-08-07 | H18: 992678054001 | I18: $8.93 | J18: $1.07 | K18: $10.00
A19: 1791256115001 | B19: OTECEL S.A. | C19: Factura | D19: 001-327-098146670 | E19: 8.082023012e+47 | F19: 2023-08-08T06:32:57 | G19: 2023-08-08 | H19: 992678054001 | I19: $50.00 | J19: $6.00 | K19: $56.00
A20: 0992378395001 | B20: GAITALIN S.A. | C20: Factura | D20: 001-008-000936994 | E20: 8.082023011e+47 | F20: 2023-08-08T13:49:12 | G20: 2023-08-08 | H20: 992678054001 | I20: $13.39 | J20: $1.61 | K20: $15.00
A21: 1790041220001 | B21: COMERCIAL KYWI S.A. | C21: Factura | D21: 033-907-000087480 | E21: 8.082023012e+47 | F21: 2023-08-08T13:59:37 | G21: 2023-08-08 | H21: 992678054001 | I21: $8.45 | J21: $1.01 | K21: $9.46
A22: 0993033723001 | B22: SEGURIDAD & CUSTODIA CUSTOWILL CIA. LTDA | C22: Factura | D22: 001-002-000000551 | E22: 9.082023011e+47 | F22: 2023-08-09T14:25:13 | G22: 2023-08-09 | H22: 992678054001 | I22: $150.00 | J22: $18.00 | K22: $168.00
A23: 1790041220001 | B23: COMERCIAL KYWI S.A. | C23: Factura | D23: 033-911-000001489 | E23: 9.082023012e+47 | F23: 2023-08-09T14:38:47 | G23: 2023-08-09 | H23: 992678054001 | I23: $10.89 | J23: $1.31 | K23: $12.20
A24: 0968599020001 | B24: EMPRESA ELECTRICA PUBLICA ESTRATEGICA CORPORACION NACIONAL DE ELECTRICIDAD CNEL EP | C24: Factura | D24: 002-999-015182241 | E24: 1.008202301e+48 | F24: 2023-08-13T17:06:12 | G24: 2023-08-10 | H24: 992678054001 | I24: $31.12 | J24: 0 | K24: $31.12
A25: 0968599020001 | B25: EMPRESA ELECTRICA PUBLICA ESTRATEGICA CORPORACION NACIONAL DE ELECTRICIDAD CNEL EP | C25: Factura | D25: 002-999-015182055 | E25: 1.008202301e+48 | F25: 2023-08-13T17:06:11 | G25: 2023-08-10 | H25: 992678054001 | I25: $368.12 | J25: 0 | K25: $368.12
A26: 0991450009001 | B26: AGUAS DE SAMBORONDON AMAGUA C.E.M. | C26: Factura | D26: 001-001-007535487 | E26: 1.008202301e+48 | F26: 2023-08-10T22:12:47 | G26: 2023-08-10 | H26: 992678054001 | I26: $4.15 | J26: $0.01 | K26: $4.16
A27: 0992539380001 | B27: ESCRITORNI S.A. | C27: Factura | D27: 001-005-002212213 | E27: 1.008202301e+48 | F27: 2023-08-10T15:33:13 | G27: 2023-08-10 | H27: 992678054001 | I27: $8.93 | J27: $1.07 | K27: $10.00
A28: 0991450009001 | B28: AGUAS DE SAMBORONDON AMAGUA C.E.M. | C28: Factura | D28: 001-001-007535291 | E28: 1.008202301e+48 | F28: 2023-08-10T22:00:16 | G28: 2023-08-10 | H28: 992678054001 | I28: $573.95 | J28: $1.36 | K28: $575.31
A29: 0991450009001 | B29: AGUAS DE SAMBORONDON AMAGUA C.E.M. | C29: Factura | D29: 001-001-007534721 | E29: 1.008202301e+48 | F29: 2023-08-10T21:25:00 | G29: 2023-08-10 | H29: 992678054001 | I29: $16.98 | J29: $0.01 | K29: $16.99
A30: 0991450009001 | B30: AGUAS DE SAMBORONDON AMAGUA C.E.M. | C30: Factura | D30: 001-001-007535160 | E30: 1.008202301e+48 | F30: 2023-08-10T21:55:26 | G30: 2023-08-10 | H30: 992678054001 | I30: $52.59 | J30: $0.01 | K30: $52.60
A31: 0968599020001 | B31: EMPRESA ELECTRICA PUBLICA ESTRATEGICA CORPORACION NACIONAL DE ELECTRICIDAD CNEL EP | C31: Factura | D31: 002-999-015182053 | E31: 1.008202301e+48 | F31: 2023-08-13T17:05:28 | G31: 2023-08-10 | H31: 992678054001 | I31: $9.24 | J31: 0 | K31: $9.24
A32: 0968599020001 | B32: EMPRESA ELECTRICA PUBLICA ESTRATEGICA CORPORACION NACIONAL DE ELECTRICIDAD CNEL EP | C32: Factura | D32: 002-999-015182260 | E32: 1.008202301e+48 | F32: 2023-08-13T17:05:27 | G32: 2023-08-10 | H32: 992678054001 | I32: $257.16 | J32: 0 | K32: $257.16
A33: 0968599020001 | B33: EMPRESA ELECTRICA PUBLICA ESTRATEGICA CORPORACION NACIONAL DE ELECTRICIDAD CNEL EP | C33: Factura | D33: 002-999-015181963 | E33: 1.008202301e+48 | F33: 2023-08-13T17:06:16 | G33: 2023-08-10 | H33: 992678054001 | I33: $329.15 | J33: 0 | K33: $329.15
A34: 0968599020001 | B34: EMPRESA ELECTRICA PUBLICA ESTRATEGICA CORPORACION NACIONAL DE ELECTRICIDAD CNEL EP | C34: Factura | D34: 002-999-015182054 | E34: 1.008202301e+48 | F34: 2023-08-13T17:05:28 | G34: 2023-08-10 | H34: 992678054001 | I34: $8.63 | J34: 0 | K34: $8.63
A35: 0991450009001 | B35: AGUAS DE SAMBORONDON AMAGUA C.E.M. | C35: Factura | D35: 001-001-007534720 | E35: 1.008202301e+48 | F35: 2023-08-10T21:23:31 | G35: 2023-08-10 | H35: 992678054001 | I35: $24.10 | J35: $0.01 | K35: $24.11
A36: 0991450009001 | B36: AGUAS DE SAMBORONDON AMAGUA C.E.M. | C36: Factura | D36: 001-001-007535464 | E36: 1.008202301e+48 | F36: 2023-08-10T22:11:18 | G36: 2023-08-10 | H36: 992678054001 | I36: $2.73 | J36: $0.01 | K36: $2.74
A37: 1791768892001 | B37: FERJEM SEGURIDAD CIA. LTDA. | C37: Factura | D37: 001-010-000003295 | E37: 1.008202301e+48 | F37: 2023-08-10T09:50:04 | G37: 2023-08-10 | H37: 992678054001 | I37: $265.00 | J37: $31.80 | K37: $296.80
A38: 1791768892001 | B38: FERJEM SEGURIDAD CIA. LTDA. | C38: Factura | D38: 001-010-000003296 | E38: 1.008202301e+48 | F38: 2023-08-10T09:50:46 | G38: 2023-08-10 | H38: 992678054001 | I38: $1,060.00 | J38: 0 | K38: $1,060.00
A39: 1790041220001 | B39: COMERCIAL KYWI S.A. | C39: Factura | D39: 033-909-000036420 | E39: 1.008202301e+48 | F39: 2023-08-10T14:01:54 | G39: 2023-08-10 | H39: 992678054001 | I39: $2.14 | J39: $0.26 | K39: $2.40
A40: 0101518660001 | B40: PESANTEZ CORDERO PEDRITO RAFAEL | C40: Factura | D40: 005-102-000505282 | E40: 1.108202301e+48 | F40: 2023-08-11T10:19:38 | G40: 2023-08-11 | H40: 992678054001 | I40: $5.81 | J40: $0.70 | K40: $6.51
A41: 0913523296001 | B41: SUAREZ LUQUE JOSE ENRIQUE | C41: Factura | D41: 001-001-000000014 | E41: 1.408202301e+48 | F41: 2023-08-14T12:28:27 | G41: 2023-08-14 | H41: 992678054001 | I41: $991.57 | J41: $118.99 | K41: $1,110.56
A42: 0992378395001 | B42: GAITALIN S.A. | C42: Factura | D42: 001-009-000908991 | E42: 1.508202301e+48 | F42: 2023-08-15T14:59:57 | G42: 2023-08-15 | H42: 992678054001 | I42: $8.93 | J42: $1.07 | K42: $10.00
A43: 0992378395001 | B43: GAITALIN S.A. | C43: Factura | D43: 001-009-000909933 | E43: 1.708202301e+48 | F43: 2023-08-17T13:37:14 | G43: 2023-08-17 | H43: 992678054001 | I43: $13.39 | J43: $1.61 | K43: $15.00
A44: 0990017514001 | B44: TIENDAS INDUSTRIALES ASOCIADAS TIA S. A. | C44: Factura | D44: 169-005-000866654 | E44: 1.708202301e+48 | F44: 2023-08-17T20:24:07 | G44: 2023-08-17 | H44: 992678054001 | I44: $11.80 | J44: $1.42 | K44: $13.22
A45: 0913989406001 | B45: FLORES GARCIA SANTOS EDMUNDO | C45: Factura | D45: 001-100-000017239 | E45: 1.808202301e+48 | F45: 2023-08-22T15:33:56 | G45: 2023-08-18 | H45: 992678054001 | I45: $0.98 | J45: $0.12 | K45: $1.10
A46: 0992739401001 | B46: ESTACION DE SERVICIOS ALPASO S.A. | C46: Factura | D46: 003-009-000135569 | E46: 2.108202301e+48 | F46: 2023-08-21T10:36:37 | G46: 2023-08-21 | H46: 992678054001 | I46: $10.71 | J46: $1.29 | K46: $12.00
A47: 1790041220001 | B47: COMERCIAL KYWI S.A. | C47: Factura | D47: 033-905-000202189 | E47: 2.108202301e+48 | F47: 2023-08-21T11:15:58 | G47: 2023-08-21 | H47: 992678054001 | I47: $8.84 | J47: $1.06 | K47: $9.90
A48: 0992732458001 | B48: MAXICOMBUST S.A. | C48: Factura | D48: 001-011-000236894 | E48: 2.108202301e+48 | F48: 2023-08-21T14:35:12 | G48: 2023-08-21 | H48: 992678054001 | I48: $6.96 | J48: $0.84 | K48: $7.80
A49: 0993074659001 | B49: DISTRIBUIDORA DE COMBUSTIBLES LIQUIDOS DISCOMLIQ S.A. | C49: Factura | D49: 002-015-000208516 | E49: 2.108202301e+48 | F49: 2023-08-21T15:25:34 | G49: 2023-08-21 | H49: 992678054001 | I49: $4.46 | J49: $0.54 | K49: $5.00
A50: 0993323233001 | B50: MOTORGAS S.A. | C50: Factura | D50: 002-001-000177723 | E50: 2.208202301e+48 | F50: 2023-08-22T19:01:57 | G50: 2023-08-22 | H50: 992678054001 | I50: $13.39 | J50: $1.61 | K50: $15.00
A51: 0800624520001 | B51: DE LA TORRE REINA JOSE RAMON | C51: Factura | D51: 001-100-000000001 | E51: 2.308202301e+48 | F51: 2023-08-23T10:48:39 | G51: 2023-08-23 | H51: 992678054001 | I51: $500.00 | J51: $60.00 | K51: $560.00
A52: 0992840234001 | B52: GETTAREQ S.A. | C52: Factura | D52: 202-110-000049563 | E52: 2.508202301e+48 | F52: 2023-08-25T12:28:52 | G52: 2023-08-25 | H52: 992678054001 | I52: $3.13 | J52: 0 | K52: $3.13
A53: 1315524486001 | B53: LOOR MENDOZA REINALDO SEBASTIAN | C53: Factura | D53: 001-003-000000083 | E53: 2.508202301e+48 | F53: 2023-08-25T16:04:05 | G53: 2023-08-25 | H53: 992678054001 | I53: $646.00 | J53: $77.52 | K53: $723.52
A54: 0993198382001 | B54: DISTRIBUIDORA PERIMETRAL DE COMBUSTIBLES LIQUIDOS DIPERCOMLIQ CIA. LTDA | C54: Factura | D54: 001-012-000860523 | E54: 2.708202301e+48 | F54: 2023-08-27T13:15:17 | G54: 2023-08-27 | H54: 992678054001 | I54: $2.68 | J54: $0.32 | K54: $3.00
A55: 1791768892001 | B55: FERJEM SEGURIDAD CIA. LTDA. | C55: Factura | D55: 001-010-000003308 | E55: 2.808202301e+48 | F55: 2023-08-28T11:14:12 | G55: 2023-08-28 | H55: 992678054001 | I55: $265.00 | J55: $31.80 | K55: $296.80
A56: 1791768892001 | B56: FERJEM SEGURIDAD CIA. LTDA. | C56: Factura | D56: 001-010-000003309 | E56: 2.808202301e+48 | F56: 2023-08-28T12:00:09 | G56: 2023-08-28 | H56: 992678054001 | I56: $1,060.00 | J56: 0 | K56: $1,060.00
A57: 0992732458001 | B57: MAXICOMBUST S.A. | C57: Factura | D57: 001-011-000241446 | E57: 2.808202301e+48 | F57: 2023-08-28T22:51:05 | G57: 2023-08-28 | H57: 992678054001 | I57: $6.66 | J57: $0.80 | K57: $7.46
A58: 0992625341001 | B58: TARDI S.A. | C58: Factura | D58: 001-100-000252560 | E58: 2.908202301e+48 | F58: 2023-08-29T11:16:57 | G58: 2023-08-29 | H58: 992678054001 | I58: $3.50 | J58: $0.42 | K58: $3.92
A59: 0992732458001 | B59: MAXICOMBUST S.A. | C59: Factura | D59: 001-011-000242256 | E59: 3.008202301e+48 | F59: 2023-08-30T09:21:12 | G59: 2023-08-30 | H59: 992678054001 | I59: $6.26 | J59: $0.75 | K59: $7.01
A60: 0990005737001 | B60: BANCO DEL PACIFICO S.A. | C60: Factura | D60: 113-001-194997206 | E60: 3.108202301e+48 | F60: 2023-08-31T15:09:18 | G60: 2023-08-31 | H60: 992678054001 | I60: $0.51 | J60: $0.06 | K60: $0.57
A61: 0990005737001 | B61: BANCO DEL PACIFICO S.A. | C61: Factura | D61: 113-001-194997147 | E61: 3.108202301e+48 | F61: 2023-08-31T15:09:14 | G61: 2023-08-31 | H61: 992678054001 | I61: $0.51 | J61: $0.06 | K61: $0.57
A62: 0990005737001 | B62: BANCO DEL PACIFICO S.A. | C62: Factura | D62: 113-001-194997174 | E62: 3.108202301e+48 | F62: 2023-08-31T15:09:11 | G62: 2023-08-31 | H62: 992678054001 | I62: $0.51 | J62: $0.06 | K62: $0.57
A63: 0990005737001 | B63: BANCO DEL PACIFICO S.A. | C63: Factura | D63: 113-001-194997231 | E63: 3.108202301e+48 | F63: 2023-08-31T15:09:07 | G63: 2023-08-31 | H63: 992678054001 | I63: $0.51 | J63: $0.06 | K63: $0.57
A64: 0991266577001 | B64: INTERMONT S.A. | C64: Factura | D64: 002-014-001726255 | E64: 3.108202301e+48 | F64: 2023-08-31T19:21:48 | G64: 2023-08-31 | H64: 992678054001 | I64: $4.46 | J64: $0.54 | K64: $5.00
A65: 0992378395001 | B65: GAITALIN S.A. | C65: Factura | D65: 001-010-000827765 | E65: 3.108202301e+48 | F65: 2023-08-31T19:07:19 | G65: 2023-08-31 | H65: 992678054001 | I65: $6.25 | J65: $0.75 | K65: $7.00
A66: 0992378395001 | B66: GAITALIN S.A. | C66: Factura | D66: 001-010-000827764 | E66: 3.108202301e+48 | F66: 2023-08-31T19:07:11 | G66: 2023-08-31 | H66: 992678054001 | I66: $13.39 | J66: $1.61 | K66: $15.00
I69: =SUM(I4:I68) -> $7,346.32 | J69: =SUM(J4:J68) -> $427.08 | K69: =SUM(K4:K68) -> $7,775.20

Sheet FACT. RECIBIDAS SEPTIEMBRE 2023
A2: RUC_EMISOR | B2: RAZON_SOCIAL_EMISOR | C2: TIPO_COMPROBANTE | D2: SERIE_COMPROBANTE | E2: CLAVE_ACCESO | F2: FECHA_AUTORIZACION | G2: FECHA_EMISION | H2: IDENTIFICACION_RECEPTOR | I2: VALOR_SIN_IMPUESTOS | J2: IVA | K2: IMPORTE_TOTAL | L2: NUMERO_DOCUMENTO_MODIFICADO
A3: 1791287541001 | B3: MEGADATOS S.A. | C3: Factura | D3: 001-011-039445110 | E3: 1.092023012e+47 | F3: 2023-09-01T12:15:47 | G3: 2023-09-01 | H3: 992678054001 | I3: $140.00 | J3: $16.80 | K3: $156.80
A4: 992539380001 | B4: ESCRITORNI S.A. | C4: Factura | D4: 001-005-002231281 | E4: 1.092023011e+47 | F4: 2023-09-01T21:58:41 | G4: 2023-09-01 | H4: 992678054001 | I4: $4.46 | J4: $0.54 | K4: $5.00
A5: 1791251237001 | B5: CONSORCIO ECUATORIANO DE TELECOMUNICACIONES S.A. CONECEL | C5: Factura | D5: 001-221-003483723 | E5: 1.092023012e+47 | F5: 2023-09-01T13:19:48 | G5: 2023-09-01 | H5: 992678054001 | I5: $58.07 | J5: $6.97 | K5: $65.04
A6: 1791251237001 | B6: CONSORCIO ECUATORIANO DE TELECOMUNICACIONES S.A. CONECEL | C6: Factura | D6: 001-221-003484680 | E6: 1.092023012e+47 | F6: 2023-09-01T13:40:58 | G6: 2023-09-01 | H6: 992678054001 | I6: $97.47 | J6: $11.91 | K6: $111.18
A7: 930717152001 | B7: CARABAJO AVELINO KATHERINE VANESSA | C7: Factura | D7: 001-003-000000589 | E7: 2.092023011e+47 | F7: 2023-09-02T09:01:08 | G7: 2023-09-02 | H7: 992678054001 | I7: $4.10 | J7: $0.49 | K7: $4.59
A8: 914150149001 | B8: CHAVEZ DELGADO SONIA MARIBEL | C8: Factura | D8: 001-002-000000642 | E8: 4.092023011e+47 | F8: 2023-09-04T12:24:26 | G8: 2023-09-04 | H8: 992678054001 | I8: $89.46 | J8: $5.46 | K8: $94.92
A9: 992378395001 | B9: GAITALIN S.A. | C9: Factura | D9: 001-009-000919044 | E9: 5.092023011e+47 | F9: 2023-09-05T14:04:19 | G9: 2023-09-05 | H9: 992678054001 | I9: $8.93 | J9: $1.07 | K9: $10.00
A10: 924380991001 | B10: VITERI CALLE CARLOS JOSE | C10: Factura | D10: 001-002-000000837 | E10: 5.092023011e+47 | F10: 2023-09-05T12:25:40 | G10: 2023-09-05 | H10: 992678054001 | I10: $71.99 | J10: $8.64 | K10: $80.63
A11: 992732458001 | B11: MAXICOMBUST S.A. | C11: Factura | D11: 001-011-000246217 | E11: 5.092023011e+47 | F11: 2023-09-05T15:47:04 | G11: 2023-09-05 | H11: 992678054001 | I11: $5.46 | J11: $0.66 | K11: $6.12
A12: 991266577001 | B12: INTERMONT S.A. | C12: Factura | D12: 002-017-001058091 | E12: 5.092023011e+47 | F12: 2023-09-05T08:55:18 | G12: 2023-09-05 | H12: 992678054001 | I12: $4.46 | J12: $0.54 | K12: $5.00
A13: 993074659001 | B13: DISTRIBUIDORA DE COMBUSTIBLES LIQUIDOS DISCOMLIQ S.A. | C13: Factura | D13: 002-012-000342448 | E13: 6.092023011e+47 | F13: 2023-09-06T14:58:40 | G13: 2023-09-06 | H13: 992678054001 | I13: $1.79 | J13: $0.21 | K13: $2.00
A14: 1790041220001 | B14: COMERCIAL KYWI S.A. | C14: Factura | D14: 033-906-000230633 | E14: 6.092023012e+47 | F14: 2023-09-06T13:57:20 | G14: 2023-09-06 | H14: 992678054001 | I14: $1.95 | J14: $0.23 | K14: $2.18
A15: 992378395001 | B15: GAITALIN S.A. | C15: Factura | D15: 001-008-000951690 | E15: 6.092023011e+47 | F15: 2023-09-06T14:05:23 | G15: 2023-09-06 | H15: 992678054001 | I15: $13.39 | J15: $1.61 | K15: $15.00
A16: 992717041001 | B16: BELICOF S.A. | C16: Factura | D16: 001-099-000000524 | E16: 7.092023011e+47 | F16: 2023-09-07T08:52:08 | G16: 2023-09-07 | H16: 992678054001 | I16: $149.70 | J16: $17.96 | K16: $167.66
A17: 1791256115001 | B17: OTECEL S.A. | C17: Factura | D17: 001-327-098953698 | E17: 8.092023012e+47 | F17: 2023-09-08T07:19:02 | G17: 2023-09-08 | H17: 992678054001 | I17: $50.00 | J17: $6.00 | K17: $56.00
A18: 992739401001 | B18: ESTACION DE SERVICIOS ALPASO S.A. | C18: Factura | D18: 003-001-000337663 | E18: 8.092023011e+47 | F18: 2023-09-08T08:06:09 | G18: 2023-09-08 | H18: 992678054001 | I18: $4.46 | J18: $0.54 | K18: $5.00
A19: 991450009001 | B19: AGUAS DE SAMBORONDON AMAGUA C.E.M. | C19: Factura | D19: 001-001-007598032 | E19: 9.092023011e+47 | F19: 2023-09-10T03:15:08 | G19: 2023-09-09 | H19: 992678054001 | I19: $15.55 | J19: $0.01 | K19: $15.56
A20: 991450009001 | B20: AGUAS DE SAMBORONDON AMAGUA C.E.M. | C20: Factura | D20: 001-001-007598031 | E20: 9.092023011e+47 | F20: 2023-09-10T03:15:03 | G20: 2023-09-09 | H20: 992678054001 | I20: $24.10 | J20: $0.01 | K20: $24.11
A21: 991450009001 | B21: AGUAS DE SAMBORONDON AMAGUA C.E.M. | C21: Factura | D21: 001-001-007598775 | E21: 9.092023011e+47 | F21: 2023-09-10T04:10:23 | G21: 2023-09-09 | H21: 992678054001 | I21: $2.73 | J21: $0.01 | K21: $2.74
A22: 991450009001 | B22: AGUAS DE SAMBORONDON AMAGUA C.E.M. | C22: Factura | D22: 001-001-007598602 | E22: 9.092023011e+47 | F22: 2023-09-10T03:57:38 | G22: 2023-09-09 | H22: 992678054001 | I22: $570.08 | J22: $1.36 | K22: $571.44
A23: 991450009001 | B23: AGUAS DE SAMBORONDON AMAGUA C.E.M. | C23: Factura | D23: 001-001-007598798 | E23: 9.092023011e+47 | F23: 2023-09-10T04:12:05 | G23: 2023-09-09 | H23: 992678054001 | I23: $5.58 | J23: $0.01 | K23: $5.59
A24: 991450009001 | B24: AGUAS DE SAMBORONDON AMAGUA C.E.M. | C24: Factura | D24: 001-001-007598471 | E24: 9.092023011e+47 | F24: 2023-09-10T03:47:43 | G24: 2023-09-09 | H24: 992678054001 | I24: $66.84 | J24: $0.01 | K24: $66.85
A25: 968599020001 | B25: EMPRESA ELECTRICA PUBLICA ESTRATEGICA CORPORACION NACIONAL DE ELECTRICIDAD CNEL EP | C25: Factura | D25: 002-999-015556492 | E25: 1.109202301e+48 | F25: 2023-09-13T18:06:32 | G25: 2023-09-11 | H25: 992678054001 | I25: $51.13 | J25: 0 | K25: $51.13
A26: 968599020001 | B26: EMPRESA ELECTRICA PUBLICA ESTRATEGICA CORPORACION NACIONAL DE ELECTRICIDAD CNEL EP | C26: Factura | D26: 002-999-015551845 | E26: 1.109202301e+48 | F26: 2023-09-13T18:24:06 | G26: 2023-09-11 | H26: 992678054001 | I26: $229.37 | J26: 0 | K26: $229.37
A27: 968599020001 | B27: EMPRESA ELECTRICA PUBLICA ESTRATEGICA CORPORACION NACIONAL DE ELECTRICIDAD CNEL EP | C27: Factura | D27: 002-999-015551846 | E27: 1.109202301e+48 | F27: 2023-09-13T18:24:32 | G27: 2023-09-11 | H27: 992678054001 | I27: $5.60 | J27: 0 | K27: $5.60
A28: 968599020001 | B28: EMPRESA ELECTRICA PUBLICA ESTRATEGICA CORPORACION NACIONAL DE ELECTRICIDAD CNEL EP | C28: Factura | D28: 002-999-015556934 | E28: 1.109202301e+48 | F28: 2023-09-13T18:24:09 | G28: 2023-09-11 | H28: 992678054001 | I28: $9.10 | J28: 0 | K28: $9.10
A29: 968599020001 | B29: EMPRESA ELECTRICA PUBLICA ESTRATEGICA CORPORACION NACIONAL DE ELECTRICIDAD CNEL EP | C29: Factura | D29: 002-999-015556417 | E29: 1.109202301e+48 | F29: 2023-09-13T18:26:22 | G29: 2023-09-11 | H29: 992678054001 | I29: $287.14 | J29: 0 | K29: $287.14
A30: 968599020001 | B30: EMPRESA ELECTRICA PUBLICA ESTRATEGICA CORPORACION NACIONAL DE ELECTRICIDAD CNEL EP | C30: Factura | D30: 002-999-015556566 | E30: 1.109202301e+48 | F30: 2023-09-13T18:52:26 | G30: 2023-09-11 | H30: 992678054001 | I30: $305.27 | J30: 0 | K30: $305.27
A31: 992378395001 | B31: GAITALIN S.A. | C31: Factura | D31: 001-008-000954243 | E31: 1.109202301e+48 | F31: 2023-09-11T14:16:41 | G31: 2023-09-11 | H31: 992678054001 | I31: $13.39 | J31: $1.61 | K31: $15.00
A32: 913199352001 | B32: CABRERA CARRION GLADYS XIMENA | C32: Factura | D32: 001-004-000223552 | E32: 1.209202301e+48 | F32: 2023-09-12T15:35:03 | G32: 2023-09-12 | H32: 992678054001 | I32: $9.37 | J32: $1.12 | K32: $10.49
A33: 992739401001 | B33: ESTACION DE SERVICIOS ALPASO S.A. | C33: Factura | D33: 003-001-000338750 | E33: 1.309202301e+48 | F33: 2023-09-13T09:10:07 | G33: 2023-09-13 | H33: 992678054001 | I33: $8.93 | J33: $1.07 | K33: $10.00
A34: 925398695001 | B34: YAGUAL BRUCEL SHIRLEY KATHERINE | C34: Factura | D34: 001-100-000002560 | E34: 1.309202301e+48 | F34: 2023-09-13T10:28:52 | G34: 2023-09-13 | H34: 992678054001 | I34: $179.35 | J34: $6.26 | K34: $185.61
A35: 992280778001 | B35: LIDERCOMPANY S.A. | C35: Factura | D35: 002-002-000017441 | E35: 1.309202301e+48 | F35: 2023-09-13T17:02:04 | G35: 2023-09-13 | H35: 992678054001 | I35: $26.79 | J35: $3.21 | K35: $30.00
A36: 913523296001 | B36: SUAREZ LUQUE JOSE ENRIQUE | C36: Factura | D36: 001-001-000000015 | E36: 1.409202301e+48 | F36: 2023-09-14T11:34:17 | G36: 2023-09-14 | H36: 992678054001 | I36: $991.57 | J36: $118.99 | K36: $1,110.56
A37: 912845260001 | B37: FIENCO LOOR HILDA JANETH | C37: Factura | D37: 001-100-000001213 | E37: 1.409202301e+48 | F37: 2023-09-14T14:40:24 | G37: 2023-09-14 | H37: 992678054001 | I37: $2.23 | J37: $0.27 | K37: $2.50
A38: 912845260001 | B38: FIENCO LOOR HILDA JANETH | C38: Factura | D38: 001-100-000001212 | E38: 1.409202301e+48 | F38: 2023-09-14T14:39:17 | G38: 2023-09-14 | H38: 992678054001 | I38: $1.39 | J38: $0.17 | K38: $1.56
A39: 1791310063001 | B39: DATAFAST S.A. | C39: Factura | D39: 001-003-000031668 | E39: 1.409202301e+48 | F39: 2023-09-18T03:10:26 | G39: 2023-09-14 | H39: 992678054001 | I39: $7.99 | J39: $0.96 | K39: $8.95
A40: 930717152001 | B40: CARABAJO AVELINO KATHERINE VANESSA | C40: Factura | D40: 001-002-000001653 | E40: 1.509202301e+48 | F40: 2023-09-15T15:35:59 | G40: 2023-09-15 | H40: 992678054001 | I40: $95.59 | J40: $11.47 | K40: $107.06
A41: 991331859001 | B41: ATIMASA S.A. | C41: Factura | D41: 187-004-000169290 | E41: 1.809202301e+48 | F41: 2023-09-18T12:38:57 | G41: 2023-09-18 | H41: 992678054001 | I41: $13.39 | J41: $1.61 | K41: $15.00
A42: 992378395001 | B42: GAITALIN S.A. | C42: Factura | D42: 001-009-000925827 | E42: 1.909202301e+48 | F42: 2023-09-19T14:31:10 | G42: 2023-09-19 | H42: 992678054001 | I42: $11.61 | J42: $1.39 | K42: $13.00
A43: 1790041220001 | B43: COMERCIAL KYWI S.A. | C43: Factura | D43: 033-909-000039530 | E43: 1.909202301e+48 | F43: 2023-09-19T14:27:30 | G43: 2023-09-19 | H43: 992678054001 | I43: $3.43 | J43: $0.41 | K43: $3.84
A44: 919673319001 | B44: SALAS SALAS SEVERO GIOVANNY | C44: Factura | D44: 004-002-000005538 | E44: 2.009202301e+48 | F44: 2023-09-20T10:27:42 | G44: 2023-09-20 | H44: 992678054001 | I44: $30.00 | J44: 0 | K44: $30.00
A45: 992539380001 | B45: ESCRITORNI S.A. | C45: Factura | D45: 001-005-002247409 | E45: 2.009202301e+48 | F45: 2023-09-20T16:09:42 | G45: 2023-09-20 | H45: 992678054001 | I45: $2.68 | J45: $0.32 | K45: $3.00
A46: 1791768892001 | B46: FERJEM SEGURIDAD CIA. LTDA. | C46: Factura | D46: 001-010-000003366 | E46: 2.109202301e+48 | F46: 2023-09-21T16:01:10 | G46: 2023-09-21 | H46: 992678054001 | I46: $1,060.00 | J46: 0 | K46: $1,060.00
A47: 1791768892001 | B47: FERJEM SEGURIDAD CIA. LTDA. | C47: Factura | D47: 001-010-000003365 | E47: 2.109202301e+48 | F47: 2023-09-21T16:01:41 | G47: 2023-09-21 | H47: 992678054001 | I47: $265.00 | J47: $31.80 | K47: $296.80
A48: 993134570001 | B48: COMERCIAL SALINAS COMSALINAS CIA. LTDA. | C48: Factura | D48: 001-002-000019716 | E48: 2.509202301e+48 | F48: 2023-09-25T13:18:01 | G48: 2023-09-25 | H48: 992678054001 | I48: $13.39 | J48: $1.61 | K48: $15.00
A49: 1791768892001 | B49: FERJEM SEGURIDAD CIA. LTDA. | C49: Factura | D49: 001-010-000003374 | E49: 2.609202301e+48 | F49: 2023-09-26T16:51:45 | G49: 2023-09-26 | H49: 992678054001 | I49: $265.00 | J49: $31.80 | K49: $296.80
A50: 990005737001 | B50: BANCO DEL PACIFICO S.A. | C50: Factura | D50: 113-001-196148028 | E50: 2.609202301e+48 | F50: 2023-09-26T16:41:05 | G50: 2023-09-26 | H50: 992678054001 | I50: $0.51 | J50: $0.06 | K50: $0.57
A51: 990005737001 | B51: BANCO DEL PACIFICO S.A. | C51: Factura | D51: 113-001-196148097 | E51: 2.609202301e+48 | F51: 2023-09-26T16:47:08 | G51: 2023-09-26 | H51: 992678054001 | I51: $0.51 | J51: $0.06 | K51: $0.57
A52: 990005737001 | B52: BANCO DEL PACIFICO S.A. | C52: Factura | D52: 113-001-196147814 | E52: 2.609202301e+48 | F52: 2023-09-26T16:31:09 | G52: 2023-09-26 | H52: 992678054001 | I52: $0.51 | J52: $0.06 | K52: $0.57
A53: 990005737001 | B53: BANCO DEL PACIFICO S.A. | C53: Factura | D53: 113-001-196147655 | E53: 2.609202301e+48 | F53: 2023-09-26T16:27:08 | G53: 2023-09-26 | H53: 992678054001 | I53: $0.51 | J53: $0.06 | K53: $0.57
A54: 990005737001 | B54: BANCO DEL PACIFICO S.A. | C54: Factura | D54: 113-001-196147960 | E54: 2.609202301e+48 | F54: 2023-09-26T16:37:08 | G54: 2023-09-26 | H54: 992678054001 | I54: $0.51 | J54: $0.06 | K54: $0.57
A55: 990005737001 | B55: BANCO DEL PACIFICO S.A. | C55: Factura | D55: 113-001-196148062 | E55: 2.609202301e+48 | F55: 2023-09-26T16:41:07 | G55: 2023-09-26 | H55: 992678054001 | I55: $0.51 | J55: $0.06 | K55: $0.57
A56: 990005737001 | B56: BANCO DEL PACIFICO S.A. | C56: Factura | D56: 113-001-196147735 | E56: 2.609202301e+48 | F56: 2023-09-26T16:27:11 | G56: 2023-09-26 | H56: 992678054001 | I56: $0.51 | J56: $0.06 | K56: $0.57
A57: 1791768892001 | B57: FERJEM SEGURIDAD CIA. LTDA. | C57: Factura | D57: 001-010-000003373 | E57: 2.609202301e+48 | F57: 2023-09-26T16:49:55 | G57: 2023-09-26 | H57: 992678054001 | I57: $1,060.00 | J57: 0 | K57: $1,060.00
A58: 992280778001 | B58: LIDERCOMPANY S.A. | C58: Factura | D58: 002-002-000017687 | E58: 2.609202301e+48 | F58: 2023-09-26T17:19:09 | G58: 2023-09-26 | H58: 992678054001 | I58: $13.39 | J58: $1.61 | K58: $15.00
A59: 992625341001 | B59: TARDI S.A. | C59: Factura | D59: 001-100-000255264 | E59: 2.709202301e+48 | F59: 2023-09-27T10:00:05 | G59: 2023-09-27 | H59: 992678054001 | I59: $3.50 | J59: $0.42 | K59: $3.92
A60: 1315524486001 | B60: LOOR MENDOZA REINALDO SEBASTIAN | C60: Factura | D60: 001-003-000000097 | E60: 2.709202301e+48 | F60: 2023-09-27T16:14:41 | G60: 2023-09-27 | H60: 992678054001 | I60: $646.00 | J60: $77.52 | K60: $723.52
A61: 992378395001 | B61: GAITALIN S.A. | C61: Factura | D61: 001-008-000962486 | E61: 2.709202301e+48 | F61: 2023-09-27T18:18:33 | G61: 2023-09-27 | H61: 992678054001 | I61: $13.39 | J61: $1.61 | K61: $15.00
A62: 1792060346001 | B62: MEGA SANTAMARIA S.A. | C62: Factura | D62: 031-077-000390897 | E62: 2.809202301e+48 | F62: 2023-09-29T07:12:43 | G62: 2023-09-28 | H62: 992678054001 | I62: $3.65 | J62: $0.31 | K62: $3.96
A63: 1792605504001 | B63: ADMINISTRACION ESTRATEGICA DE GASOLINERAS DEL ECUADOR ADESGAE CIA. LTDA. | C63: Factura | D63: 013-018-000025953 | E63: 2.909202301e+48 | F63: 2023-09-29T18:52:45 | G63: 2023-09-29 | H63: 992678054001 | I63: $7.45 | J63: $0.89 | K63: $8.34
I66: =SUM(I3:I65) -> $7,030.23 | J66: =SUM(J3:J65) -> $377.89 | K66: =SUM(K3:K65) -> $7,409.92

Sheet FACT. RECIBIDAS OCTUBRE 2023
A1: FACTURAS RECIBIDAS 2023
A2: RUC_EMISOR | B2: RAZON_SOCIAL_EMISOR | C2: TIPO_COMPROBANTE | D2: SERIE_COMPROBANTE | E2: CLAVE_ACCESO | F2: FECHA_AUTORIZACION | G2: FECHA_EMISION | H2: IDENTIFICACION_RECEPTOR | I2: VALOR_SIN_IMPUESTOS | J2: IVA | K2: IMPORTE_TOTAL | L2: NUMERO_DOCUMENTO_MODIFICADO
A3: 1791251237001 | B3: CONSORCIO ECUATORIANO DE TELECOMUNICACIONES S.A. CONECEL | C3: Factura | D3: 001-221-003505731 | E3: 1.102023012e+47 | F3: 2023-10-01T13:19:16 | G3: 2023-10-01 | H3: 992678054001 | I3: $58.35 | J3: $7.00 | K3: $65.35
A4: 1791287541001 | B4: MEGADATOS S.A. | C4: Factura | D4: 001-011-040235157 | E4: 1.102023012e+47 | F4: 2023-10-01T06:53:21 | G4: 2023-10-01 | H4: 992678054001 | I4: $140.00 | J4: $16.80 | K4: $156.80
A5: 1791251237001 | B5: CONSORCIO ECUATORIANO DE TELECOMUNICACIONES S.A. CONECEL | C5: Factura | D5: 001-221-003507012 | E5: 1.102023012e+47 | F5: 2023-10-01T13:42:57 | G5: 2023-10-01 | H5: 992678054001 | I5: $97.45 | J5: $11.91 | K5: $111.16
A6: 990976643001 | B6: LA CHIRIPA CHIRS S.A. | C6: Factura | D6: 005-012-000062686 | E6: 2.102023011e+47 | F6: 2023-10-02T10:42:14 | G6: 2023-10-02 | H6: 992678054001 | I6: $3.48 | J6: $0.42 | K6: $3.90
A7: 993074659001 | B7: DISTRIBUIDORA DE COMBUSTIBLES LIQUIDOS DISCOMLIQ S.A. | C7: Factura | D7: 002-014-000318587 | E7: 2.102023011e+47 | F7: 2023-10-02T11:05:10 | G7: 2023-10-02 | H7: 992678054001 | I7: $1.79 | J7: $0.21 | K7: $2.00
A8: 992378395001 | B8: GAITALIN S.A. | C8: Factura | D8: 001-013-000731102 | E8: 4.102023011e+47 | F8: 2023-10-04T10:51:23 | G8: 2023-10-04 | H8: 992678054001 | I8: $8.93 | J8: $1.07 | K8: $10.00
A9: 993366686001 | B9: GIGANTOPRINT S.A.S. | C9: Factura | D9: 001-900-000000444 | E9: 4.102023011e+47 | F9: 2023-10-04T17:48:52 | G9: 2023-10-04 | H9: 992678054001 | I9: $5.60 | J9: $0.67 | K9: $6.27
A10: 968599020001 | B10: EMPRESA ELECTRICA PUBLICA ESTRATEGICA CORPORACION NACIONAL DE ELECTRICIDAD CNEL EP | C10: Factura | D10: 002-999-015866395 | E10: 5.102023011e+47 | F10: 2023-10-09T17:38:11 | G10: 2023-10-05 | H10: 992678054001 | I10: $8.54 | J10: 0 | K10: $8.54
A11: 968599020001 | B11: EMPRESA ELECTRICA PUBLICA ESTRATEGICA CORPORACION NACIONAL DE ELECTRICIDAD CNEL EP | C11: Factura | D11: 002-999-015871480 | E11: 5.102023011e+47 | F11: 2023-10-09T17:38:11 | G11: 2023-10-05 | H11: 992678054001 | I11: $9.25 | J11: 0 | K11: $9.25
A12: 968599020001 | B12: EMPRESA ELECTRICA PUBLICA ESTRATEGICA CORPORACION NACIONAL DE ELECTRICIDAD CNEL EP | C12: Factura | D12: 002-999-015866394 | E12: 5.102023011e+47 | F12: 2023-10-09T17:38:10 | G12: 2023-10-05 | H12: 992678054001 | I12: $240.20 | J12: 0 | K12: $240.20
A13: 968599020001 | B13: EMPRESA ELECTRICA PUBLICA ESTRATEGICA CORPORACION NACIONAL DE ELECTRICIDAD CNEL EP | C13: Factura | D13: 002-999-015871038 | E13: 5.102023011e+47 | F13: 2023-10-09T17:37:12 | G13: 2023-10-05 | H13: 992678054001 | I13: $69.17 | J13: 0 | K13: $69.17
A14: 968599020001 | B14: EMPRESA ELECTRICA PUBLICA ESTRATEGICA CORPORACION NACIONAL DE ELECTRICIDAD CNEL EP | C14: Factura | D14: 002-999-015871112 | E14: 5.102023011e+47 | F14: 2023-10-09T17:37:06 | G14: 2023-10-05 | H14: 992678054001 | I14: $335.22 | J14: 0 | K14: $335.22
A15: 968599020001 | B15: EMPRESA ELECTRICA PUBLICA ESTRATEGICA CORPORACION NACIONAL DE ELECTRICIDAD CNEL EP | C15: Factura | D15: 002-999-015870963 | E15: 5.102023011e+47 | F15: 2023-10-09T17:36:26 | G15: 2023-10-05 | H15: 992678054001 | I15: $322.66 | J15: 0 | K15: $322.66
A16: 190072002001 | B16: GERARDO ORTIZ E HIJOS CIA LTDA | C16: Factura | D16: 037-905-000058673 | E16: 5.10202301e+47 | F16: 2023-10-05T19:23:01 | G16: 2023-10-05 | H16: 992678054001 | I16: $2.07 | J16: $0.25 | K16: $2.32
A17: 993074659001 | B17: DISTRIBUIDORA DE COMBUSTIBLES LIQUIDOS DISCOMLIQ S.A. | C17: Factura | D17: 002-012-000357130 | E17: 5.102023011e+47 | F17: 2023-10-05T11:13:22 | G17: 2023-10-05 | H17: 992678054001 | I17: $1.79 | J17: $0.21 | K17: $2.00
A18: 1791310063001 | B18: DATAFAST S.A. | C18: Factura | D18: 001-003-000086325 | E18: 5.102023012e+47 | F18: 2023-10-10T18:25:30 | G18: 2023-10-05 | H18: 992678054001 | I18: $7.99 | J18: $0.96 | K18: $8.95
A19: 991331859001 | B19: ATIMASA S.A. | C19: Factura | D19: 239-005-000272383 | E19: 6.102023011e+47 | F19: 2023-10-06T11:46:11 | G19: 2023-10-06 | H19: 992678054001 | I19: $17.86 | J19: $2.14 | K19: $20.00
A20: 1790041220001 | B20: COMERCIAL KYWI S.A. | C20: Factura | D20: 033-910-000022518 | E20: 6.102023012e+47 | F20: 2023-10-06T12:49:17 | G20: 2023-10-06 | H20: 992678054001 | I20: $8.09 | J20: $0.97 | K20: $9.06
A21: 1791256115001 | B21: OTECEL S.A. | C21: Factura | D21: 001-327-099909260 | E21: 8.102023012e+47 | F21: 2023-10-08T07:02:28 | G21: 2023-10-08 | H21: 992678054001 | I21: $50.00 | J21: $6.00 | K21: $56.00
A22: 992411686001 | B22: HORMICORP S. A. HORMIGONES Y PREFABRICADOS | C22: Factura | D22: 002-103-000004735 | E22: 1.010202301e+48 | F22: 2023-10-10T09:45:22 | G22: 2023-10-10 | H22: 992678054001 | I22: $73.07 | J22: $8.77 | K22: $81.84
A23: 992186070001 | B23: MEGAMETALES S.A. | C23: Factura | D23: 018-100-000026446 | E23: 1.010202301e+48 | F23: 2023-10-10T23:36:29 | G23: 2023-10-10 | H23: 992678054001 | I23: $50.17 | J23: $6.02 | K23: $56.19
A24: 991450009001 | B24: AGUAS DE SAMBORONDON AMAGUA C.E.M. | C24: Factura | D24: 001-001-007661688 | E24: 1.110202301e+48 | F24: 2023-10-11T21:59:02 | G24: 2023-10-11 | H24: 992678054001 | I24: $24.10 | J24: $0.01 | K24: $24.11
A25: 991450009001 | B25: AGUAS DE SAMBORONDON AMAGUA C.E.M. | C25: Factura | D25: 001-001-007661689 | E25: 1.110202301e+48 | F25: 2023-10-11T21:59:07 | G25: 2023-10-11 | H25: 992678054001 | I25: $14.13 | J25: $0.01 | K25: $14.14
A26: 991450009001 | B26: AGUAS DE SAMBORONDON AMAGUA C.E.M. | C26: Factura | D26: 001-001-007662259 | E26: 1.110202301e+48 | F26: 2023-10-11T22:38:45 | G26: 2023-10-11 | H26: 992678054001 | I26: $552.32 | J26: $1.36 | K26: $553.68
A27: 991450009001 | B27: AGUAS DE SAMBORONDON AMAGUA C.E.M. | C27: Factura | D27: 001-001-007662455 | E27: 1.110202301e+48 | F27: 2023-10-11T22:52:16 | G27: 2023-10-11 | H27: 992678054001 | I27: $4.15 | J27: $0.01 | K27: $4.16
A28: 991450009001 | B28: AGUAS DE SAMBORONDON AMAGUA C.E.M. | C28: Factura | D28: 001-001-007662128 | E28: 1.110202301e+48 | F28: 2023-10-11T22:29:39 | G28: 2023-10-11 | H28: 992678054001 | I28: $92.71 | J28: $0.01 | K28: $92.72
A29: 991450009001 | B29: AGUAS DE SAMBORONDON AMAGUA C.E.M. | C29: Factura | D29: 001-001-007662432 | E29: 1.110202301e+48 | F29: 2023-10-11T22:50:37 | G29: 2023-10-11 | H29: 992678054001 | I29: $2.73 | J29: $0.01 | K29: $2.74
A30: 930717152001 | B30: CARABAJO AVELINO KATHERINE VANESSA | C30: Factura | D30: 001-002-000001730 | E30: 1.110202301e+48 | F30: 2023-10-11T10:38:50 | G30: 2023-10-11 | H30: 992678054001 | I30: $34.56 | J30: $4.15 | K30: $38.71
A31: 992378395001 | B31: GAITALIN S.A. | C31: Factura | D31: 001-012-000511468 | E31: 1.210202301e+48 | F31: 2023-10-12T13:17:23 | G31: 2023-10-12 | H31: 992678054001 | I31: $13.39 | J31: $1.61 | K31: $15.00
A32: 992378395001 | B32: GAITALIN S.A. | C32: Factura | D32: 001-012-000511469 | E32: 1.210202301e+48 | F32: 2023-10-12T13:17:27 | G32: 2023-10-12 | H32: 992678054001 | I32: $11.61 | J32: $1.39 | K32: $13.00
A33: 991280472001 | B33: COOPERATIVA DE TRANSPORTE BRISAS DE SANTAY PANORAMA | C33: Factura | D33: 002-022-000580736 | E33: 1.210202301e+48 | F33: 2023-10-12T11:07:10 | G33: 2023-10-12 | H33: 992678054001 | I33: $2.23 | J33: $0.27 | K33: $2.50
A34: 1791768892001 | B34: FERJEM SEGURIDAD CIA. LTDA. | C34: Factura | D34: 001-010-000003428 | E34: 1.210202301e+48 | F34: 2023-10-12T12:02:06 | G34: 2023-10-12 | H34: 992678054001 | I34: $265.00 | J34: $31.80 | K34: $296.80
A35: 1791768892001 | B35: FERJEM SEGURIDAD CIA. LTDA. | C35: Factura | D35: 001-010-000003427 | E35: 1.210202301e+48 | F35: 2023-10-12T12:00:48 | G35: 2023-10-12 | H35: 992678054001 | I35: $1,060.00 | J35: 0 | K35: $1,060.00
A36: 913523296001 | B36: SUAREZ LUQUE JOSE ENRIQUE | C36: Factura | D36: 001-001-000000017 | E36: 1.210202301e+48 | F36: 2023-10-12T12:12:31 | G36: 2023-10-12 | H36: 992678054001 | I36: $991.57 | J36: $118.99 | K36: $1,110.56
A37: 992717041001 | B37: BELICOF S.A. | C37: Factura | D37: 001-099-000000580 | E37: 1.310202301e+48 | F37: 2023-10-13T08:13:08 | G37: 2023-10-13 | H37: 992678054001 | I37: $149.70 | J37: $17.96 | K37: $167.66
A38: 912845260001 | B38: FIENCO LOOR HILDA JANETH | C38: Factura | D38: 001-100-000001328 | E38: 1.310202301e+48 | F38: 2023-10-13T08:31:19 | G38: 2023-10-13 | H38: 992678054001 | I38: $6.29 | J38: $0.75 | K38: $7.04
A39: 926561598001 | B39: GARCIA NAVARRETE JAIRON JONATHAN | C39: Factura | D39: 002-002-000000089 | E39: 1.610202301e+48 | F39: 2023-10-16T14:45:57 | G39: 2023-10-16 | H39: 992678054001 | I39: $6.60 | J39: 0 | K39: $6.60
A40: 926561598001 | B40: GARCIA NAVARRETE JAIRON JONATHAN | C40: Factura | D40: 002-002-000000093 | E40: 1.710202301e+48 | F40: 2023-10-17T08:29:28 | G40: 2023-10-17 | H40: 992678054001 | I40: $1.40 | J40: 0 | K40: $1.40
A41: 926561598001 | B41: GARCIA NAVARRETE JAIRON JONATHAN | C41: Factura | D41: 002-002-000000092 | E41: 1.710202301e+48 | F41: 2023-10-17T08:27:56 | G41: 2023-10-17 | H41: 992678054001 | I41: $8.90 | J41: 0 | K41: $8.90
A42: 992378395001 | B42: GAITALIN S.A. | C42: Factura | D42: 001-011-000597064 | E42: 1.810202301e+48 | F42: 2023-10-18T13:35:24 | G42: 2023-10-18 | H42: 992678054001 | I42: $11.61 | J42: $1.39 | K42: $13.00
A43: 992378395001 | B43: GAITALIN S.A. | C43: Factura | D43: 001-011-000597065 | E43: 1.810202301e+48 | F43: 2023-10-18T13:35:29 | G43: 2023-10-18 | H43: 992678054001 | I43: $13.39 | J43: $1.61 | K43: $15.00
A44: 913989406001 | B44: FLORES GARCIA SANTOS EDMUNDO | C44: Factura | D44: 001-100-000019426 | E44: 1.810202301e+48 | F44: 2023-10-21T16:47:02 | G44: 2023-10-18 | H44: 992678054001 | I44: $1.10 | J44: $0.13 | K44: $1.23
A45: 930717152001 | B45: CARABAJO AVELINO KATHERINE VANESSA | C45: Factura | D45: 001-002-000001757 | E45: 1.910202301e+48 | F45: 2023-10-19T15:24:49 | G45: 2023-10-19 | H45: 992678054001 | I45: $82.65 | J45: $9.92 | K45: $92.57
A46: 908514441001 | B46: VACACELA DIAZ ANGEL ARTURO | C46: Factura | D46: 001-002-000000034 | E46: 1.910202301e+48 | F46: 2023-10-19T06:06:07 | G46: 2023-10-19 | H46: 992678054001 | I46: $278.21 | J46: 0 | K46: $278.21
A47: 992560754001 | B47: ZUKALO S.A. | C47: Factura | D47: 001-002-000092358 | E47: 1.910202301e+48 | F47: 2023-10-19T19:36:12 | G47: 2023-10-19 | H47: 992678054001 | I47: $23.72 | J47: $2.85 | K47: $26.57
A48: 993366686001 | B48: GIGANTOPRINT S.A.S. | C48: Factura | D48: 001-900-000000465 | E48: 2.110202301e+48 | F48: 2023-10-21T13:34:22 | G48: 2023-10-21 | H48: 992678054001 | I48: $8.39 | J48: $1.01 | K48: $9.40
A49: 991331859001 | B49: ATIMASA S.A. | C49: Factura | D49: 239-006-000239099 | E49: 2.310202301e+48 | F49: 2023-10-24T09:26:47 | G49: 2023-10-23 | H49: 992678054001 | I49: $13.39 | J49: $1.61 | K49: $15.00
A50: 926561598001 | B50: GARCIA NAVARRETE JAIRON JONATHAN | C50: Factura | D50: 002-002-000000107 | E50: 2.310202301e+48 | F50: 2023-10-23T14:52:37 | G50: 2023-10-23 | H50: 992678054001 | I50: $5.40 | J50: 0 | K50: $5.40
A51: 101518660001 | B51: PESANTEZ CORDERO PEDRITO RAFAEL | C51: Factura | D51: 005-103-000440338 | E51: 2.410202301e+48 | F51: 2023-10-24T09:55:30 | G51: 2023-10-24 | H51: 992678054001 | I51: $8.93 | J51: $1.07 | K51: $10.00
A52: 992625341001 | B52: TARDI S.A. | C52: Factura | D52: 001-100-000257712 | E52: 2.410202301e+48 | F52: 2023-10-24T10:01:40 | G52: 2023-10-24 | H52: 992678054001 | I52: $5.04 | J52: $0.60 | K52: $5.64
A53: 910447812001 | B53: CARVAJAL AYALA MARIA DEL CARMEN | C53: Factura | D53: 001-002-000071072 | E53: 2.510202301e+48 | F53: 2023-10-25T15:02:22 | G53: 2023-10-25 | H53: 992678054001 | I53: $3.58 | J53: $0.43 | K53: $4.01
A54: 1791768892001 | B54: FERJEM SEGURIDAD CIA. LTDA. | C54: Factura | D54: 001-010-000003436 | E54: 2.510202301e+48 | F54: 2023-10-25T10:57:53 | G54: 2023-10-25 | H54: 992678054001 | I54: $265.00 | J54: $31.80 | K54: $296.80
A55: 1791768892001 | B55: FERJEM SEGURIDAD CIA. LTDA. | C55: Factura | D55: 001-010-000003435 | E55: 2.510202301e+48 | F55: 2023-10-25T10:56:59 | G55: 2023-10-25 | H55: 992678054001 | I55: $1,060.00 | J55: 0 | K55: $1,060.00
A56: 1793133843001 | B56: FOTOMAXX VISAS CIA.LTDA. | C56: Factura | D56: 002-002-000018680 | E56: 2.610202301e+48 | F56: 2023-10-26T09:02:14 | G56: 2023-10-26 | H56: 992678054001 | I56: $0.45 | J56: $0.05 | K56: $0.50
A57: 992624337001 | B57: COSTAKARIM S.A. | C57: Factura | D57: 004-001-000211711 | E57: 2.710202301e+48 | F57: 2023-10-27T08:31:15 | G57: 2023-10-27 | H57: 992678054001 | I57: $8.93 | J57: $1.07 | K57: $10.00
A58: 912845260001 | B58: FIENCO LOOR HILDA JANETH | C58: Factura | D58: 001-100-000001423 | E58: 2.710202301e+48 | F58: 2023-10-27T10:15:03 | G58: 2023-10-27 | H58: 992678054001 | I58: $5.40 | J58: $0.65 | K58: $6.05
A59: 993074659001 | B59: DISTRIBUIDORA DE COMBUSTIBLES LIQUIDOS DISCOMLIQ S.A. | C59: Factura | D59: 002-012-000369913 | E59: 3.010202301e+48 | F59: 2023-10-30T09:13:21 | G59: 2023-10-30 | H59: 992678054001 | I59: $1.79 | J59: $0.21 | K59: $2.00
A60: 1315524486001 | B60: LOOR MENDOZA REINALDO SEBASTIAN | C60: Factura | D60: 001-003-000000109 | E60: 3.010202301e+48 | F60: 2023-10-30T09:07:08 | G60: 2023-10-30 | H60: 992678054001 | I60: $646.00 | J60: $77.52 | K60: $723.52
A61: 990005737001 | B61: BANCO DEL PACIFICO S.A. | C61: Factura | D61: 113-001-197399895 | E61: 3.110202301e+48 | F61: 2023-10-31T14:46:59 | G61: 2023-10-31 | H61: 992678054001 | I61: $0.51 | J61: $0.06 | K61: $0.57
A62: 990005737001 | B62: BANCO DEL PACIFICO S.A. | C62: Factura | D62: 113-001-197399929 | E62: 3.110202301e+48 | F62: 2023-10-31T14:46:59 | G62: 2023-10-31 | H62: 992678054001 | I62: $0.51 | J62: $0.06 | K62: $0.57
A63: 990005737001 | B63: BANCO DEL PACIFICO S.A. | C63: Factura | D63: 113-001-197399834 | E63: 3.110202301e+48 | F63: 2023-10-31T14:47:10 | G63: 2023-10-31 | H63: 992678054001 | I63: $0.51 | J63: $0.06 | K63: $0.57
I66: =SUM(I3:I65) -> $7,197.58 | J66: =SUM(J3:J65) -> $373.83 | K66: =SUM(K3:K65) -> $7,573.21

Sheet FACT. RECIBIDAS NOVIEMBRE 2023
A2: RUC_EMISOR | B2: RAZON_SOCIAL_EMISOR | C2: TIPO_COMPROBANTE | D2: SERIE_COMPROBANTE | E2: CLAVE_ACCESO | F2: FECHA_AUTORIZACION | G2: FECHA_EMISION | H2: IDENTIFICACION_RECEPTOR | I2: VALOR_SIN_IMPUESTOS | J2: IVA | K2: IMPORTE_TOTAL | L2: NUMERO_DOCUMENTO_MODIFICADO
A3: 1791251237001 | B3: CONSORCIO ECUATORIANO DE TELECOMUNICACIONES S.A. CONECEL | C3: Factura | D3: 001-221-003527394 | E3: 1.112023012e+47 | F3: 2023-11-01T11:01:10 | G3: 2023-11-01 | H3: 992678054001 | I3: $59.58 | J3: $7.15 | K3: $66.73
A4: 1791251237001 | B4: CONSORCIO ECUATORIANO DE TELECOMUNICACIONES S.A. CONECEL | C4: Factura | D4: 001-221-003529611 | E4: 1.112023012e+47 | F4: 2023-11-01T11:33:31 | G4: 2023-11-01 | H4: 992678054001 | I4: $92.91 | J4: $11.37 | K4: $106.08
A5: 1791287541001 | B5: MEGADATOS S.A. | C5: Factura | D5: 001-011-041023064 | E5: 1.112023012e+47 | F5: 2023-11-01T12:07:07 | G5: 2023-11-01 | H5: 992678054001 | I5: $140.00 | J5: $16.80 | K5: $156.80
A6: 992739401001 | B6: ESTACION DE SERVICIOS ALPASO S.A. | C6: Factura | D6: 003-005-000463578 | E6: 1.112023011e+47 | F6: 2023-11-01T08:38:14 | G6: 2023-11-01 | H6: 992678054001 | I6: $4.29 | J6: $0.51 | K6: $4.80
A7: 992739401001 | B7: ESTACION DE SERVICIOS ALPASO S.A. | C7: Factura | D7: 003-005-000463579 | E7: 1.112023011e+47 | F7: 2023-11-01T08:40:10 | G7: 2023-11-01 | H7: 992678054001 | I7: $8.93 | J7: $1.07 | K7: $10.00
A8: 1791310063001 | B8: DATAFAST S.A. | C8: Factura | D8: 001-003-000115764 | E8: 5.112023012e+47 | F8: 2023-11-07T18:46:03 | G8: 2023-11-05 | H8: 992678054001 | I8: $7.99 | J8: $0.96 | K8: $8.95
A9: 992378395001 | B9: GAITALIN S.A. | C9: Factura | D9: 001-008-000981916 | E9: 6.112023011e+47 | F9: 2023-11-06T14:14:43 | G9: 2023-11-06 | H9: 992678054001 | I9: $8.93 | J9: $1.07 | K9: $10.00
A10: 992378395001 | B10: GAITALIN S.A. | C10: Factura | D10: 001-009-000948434 | E10: 6.112023011e+47 | F10: 2023-11-06T20:08:22 | G10: 2023-11-06 | H10: 992678054001 | I10: $13.39 | J10: $1.61 | K10: $15.00
A11: 1791256115001 | B11: OTECEL S.A. | C11: Factura | D11: 001-327-100798117 | E11: 8.112023012e+47 | F11: 2023-11-08T09:14:32 | G11: 2023-11-08 | H11: 992678054001 | I11: $50.00 | J11: $6.00 | K11: $56.00
A12: 910447812001 | B12: CARVAJAL AYALA MARIA DEL CARMEN | C12: Factura | D12: 001-002-000071461 | E12: 8.112023011e+47 | F12: 2023-11-08T17:09:02 | G12: 2023-11-08 | H12: 992678054001 | I12: $7.16 | J12: $0.86 | K12: $8.02
A13: 910447812001 | B13: CARVAJAL AYALA MARIA DEL CARMEN | C13: Factura | D13: 001-002-000071459 | E13: 8.112023011e+47 | F13: 2023-11-08T16:59:52 | G13: 2023-11-08 | H13: 992678054001 | I13: $21.48 | J13: $2.58 | K13: $24.06
A14: 992531355001 | B14: PRODUFUENTE S.A. | C14: Factura | D14: 001-102-000806380 | E14: 8.112023011e+47 | F14: 2023-11-08T17:51:56 | G14: 2023-11-08 | H14: 992678054001 | I14: $17.86 | J14: $2.14 | K14: $20.00
A15: 993074659001 | B15: DISTRIBUIDORA DE COMBUSTIBLES LIQUIDOS DISCOMLIQ S.A. | C15: Factura | D15: 002-015-000236847 | E15: 1.011202301e+48 | F15: 2023-11-10T11:59:23 | G15: 2023-11-10 | H15: 992678054001 | I15: $1.79 | J15: $0.21 | K15: $2.00
A16: 992378395001 | B16: GAITALIN S.A. | C16: Factura | D16: 001-010-000858195 | E16: 1.011202301e+48 | F16: 2023-11-10T15:09:46 | G16: 2023-11-10 | H16: 992678054001 | I16: $4.46 | J16: $0.54 | K16: $5.00
A17: 925398695001 | B17: YAGUAL BRUCEL SHIRLEY KATHERINE | C17: Factura | D17: 001-100-000003841 | E17: 1.011202301e+48 | F17: 2023-11-10T10:15:22 | G17: 2023-11-10 | H17: 992678054001 | I17: $2.64 | J17: 0 | K17: $2.64
A18: 991450009001 | B18: AGUAS DE SAMBORONDON AMAGUA C.E.M. | C18: Factura | D18: 001-001-007725516 | E18: 1.111202301e+48 | F18: 2023-11-12T01:30:21 | G18: 2023-11-11 | H18: 992678054001 | I18: $15.66 | J18: $0.01 | K18: $15.67
A19: 991450009001 | B19: AGUAS DE SAMBORONDON AMAGUA C.E.M. | C19: Factura | D19: 001-001-007726282 | E19: 1.111202301e+48 | F19: 2023-11-12T02:28:22 | G19: 2023-11-11 | H19: 992678054001 | I19: $5.60 | J19: $0.01 | K19: $5.61
A20: 991450009001 | B20: AGUAS DE SAMBORONDON AMAGUA C.E.M. | C20: Factura | D20: 001-001-007726259 | E20: 1.111202301e+48 | F20: 2023-11-12T02:26:48 | G20: 2023-11-11 | H20: 992678054001 | I20: $2.73 | J20: $0.01 | K20: $2.74
A21: 991450009001 | B21: AGUAS DE SAMBORONDON AMAGUA C.E.M. | C21: Factura | D21: 001-001-007725515 | E21: 1.111202301e+48 | F21: 2023-11-12T01:30:14 | G21: 2023-11-11 | H21: 992678054001 | I21: $24.10 | J21: $0.01 | K21: $24.11
A22: 991256911001 | B22: COMERCIO Y PREDIOS COMPRED S.A. | C22: Factura | D22: 001-012-001285011 | E22: 1.111202301e+48 | F22: 2023-11-11T11:00:42 | G22: 2023-11-11 | H22: 992678054001 | I22: $4.46 | J22: $0.54 | K22: $5.00
A23: 991450009001 | B23: AGUAS DE SAMBORONDON AMAGUA C.E.M. | C23: Factura | D23: 001-001-007725955 | E23: 1.111202301e+48 | F23: 2023-11-12T02:04:35 | G23: 2023-11-11 | H23: 992678054001 | I23: $63.07 | J23: $0.01 | K23: $63.08
A24: 991450009001 | B24: AGUAS DE SAMBORONDON AMAGUA C.E.M. | C24: Factura | D24: 001-001-007726086 | E24: 1.111202301e+48 | F24: 2023-11-12T02:14:12 | G24: 2023-11-11 | H24: 992678054001 | I24: $544.19 | J24: $0.01 | K24: $544.20
A25: 1791768892001 | B25: FERJEM SEGURIDAD CIA. LTDA. | C25: Factura | D25: 001-010-000003493 | E25: 1.311202301e+48 | F25: 2023-11-13T10:20:36 | G25: 2023-11-13 | H25: 992678054001 | I25: $265.00 | J25: $31.80 | K25: $296.80
A26: 1791768892001 | B26: FERJEM SEGURIDAD CIA. LTDA. | C26: Factura | D26: 001-010-000003492 | E26: 1.311202301e+48 | F26: 2023-11-13T10:19:47 | G26: 2023-11-13 | H26: 992678054001 | I26: $1,060.00 | J26: 0 | K26: $1,060.00
A27: 968599020001 | B27: EMPRESA ELECTRICA PUBLICA ESTRATEGICA CORPORACION NACIONAL DE ELECTRICIDAD CNEL EP | C27: Factura | D27: 002-999-016377650 | E27: 1.411202301e+48 | F27: 2023-11-16T03:58:02 | G27: 2023-11-14 | H27: 992678054001 | I27: $57.37 | J27: 0 | K27: $57.37
A28: 968599020001 | B28: EMPRESA ELECTRICA PUBLICA ESTRATEGICA CORPORACION NACIONAL DE ELECTRICIDAD CNEL EP | C28: Factura | D28: 002-999-016373012 | E28: 1.411202301e+48 | F28: 2023-11-16T03:58:15 | G28: 2023-11-14 | H28: 992678054001 | I28: $259.01 | J28: 0 | K28: $259.01
A29: 968599020001 | B29: EMPRESA ELECTRICA PUBLICA ESTRATEGICA CORPORACION NACIONAL DE ELECTRICIDAD CNEL EP | C29: Factura | D29: 002-999-016373013 | E29: 1.411202301e+48 | F29: 2023-11-16T03:58:15 | G29: 2023-11-14 | H29: 992678054001 | I29: $8.64 | J29: 0 | K29: $8.64
A30: 913523296001 | B30: SUAREZ LUQUE JOSE ENRIQUE | C30: Factura | D30: 001-001-000000018 | E30: 1.411202301e+48 | F30: 2023-11-14T17:01:35 | G30: 2023-11-14 | H30: 992678054001 | I30: $991.57 | J30: $118.99 | K30: $1,110.56
A31: 968599020001 | B31: EMPRESA ELECTRICA PUBLICA ESTRATEGICA CORPORACION NACIONAL DE ELECTRICIDAD CNEL EP | C31: Factura | D31: 002-999-016377575 | E31: 1.411202301e+48 | F31: 2023-11-16T03:58:10 | G31: 2023-11-14 | H31: 992678054001 | I31: $278.56 | J31: 0 | K31: $278.56
A32: 968599020001 | B32: EMPRESA ELECTRICA PUBLICA ESTRATEGICA CORPORACION NACIONAL DE ELECTRICIDAD CNEL EP | C32: Factura | D32: 002-999-016378092 | E32: 1.411202301e+48 | F32: 2023-11-16T03:58:15 | G32: 2023-11-14 | H32: 992678054001 | I32: $9.15 | J32: 0 | K32: $9.15
A33: 992378395001 | B33: GAITALIN S.A. | C33: Factura | D33: 001-008-000985786 | E33: 1.411202301e+48 | F33: 2023-11-14T14:07:45 | G33: 2023-11-14 | H33: 992678054001 | I33: $8.93 | J33: $1.07 | K33: $10.00
A34: 992378395001 | B34: GAITALIN S.A. | C34: Factura | D34: 001-008-000985787 | E34: 1.411202301e+48 | F34: 2023-11-14T14:07:49 | G34: 2023-11-14 | H34: 992678054001 | I34: $13.39 | J34: $1.61 | K34: $15.00
A35: 968599020001 | B35: EMPRESA ELECTRICA PUBLICA ESTRATEGICA CORPORACION NACIONAL DE ELECTRICIDAD CNEL EP | C35: Factura | D35: 002-999-016377724 | E35: 1.411202301e+48 | F35: 2023-11-16T03:56:00 | G35: 2023-11-14 | H35: 992678054001 | I35: $278.50 | J35: 0 | K35: $278.50
A36: 992717041001 | B36: BELICOF S.A. | C36: Factura | D36: 001-099-000000638 | E36: 1.711202301e+48 | F36: 2023-11-17T09:19:27 | G36: 2023-11-17 | H36: 992678054001 | I36: $149.70 | J36: $17.96 | K36: $167.66
A37: 992378395001 | B37: GAITALIN S.A. | C37: Factura | D37: 001-013-000747546 | E37: 2.111202301e+48 | F37: 2023-11-21T14:01:08 | G37: 2023-11-21 | H37: 992678054001 | I37: $8.93 | J37: $1.07 | K37: $10.00
A38: 992378395001 | B38: GAITALIN S.A. | C38: Factura | D38: 001-010-000863275 | E38: 2.111202301e+48 | F38: 2023-11-21T18:32:02 | G38: 2023-11-21 | H38: 992678054001 | I38: $13.39 | J38: $1.61 | K38: $15.00
A39: 912845260001 | B39: FIENCO LOOR HILDA JANETH | C39: Factura | D39: 001-100-000001533 | E39: 2.211202301e+48 | F39: 2023-11-22T11:06:44 | G39: 2023-11-22 | H39: 992678054001 | I39: $10.89 | J39: $1.31 | K39: $12.20
A40: 926561598001 | B40: GARCIA NAVARRETE JAIRON JONATHAN | C40: Factura | D40: 002-002-000000170 | E40: 2.211202301e+48 | F40: 2023-11-22T11:20:14 | G40: 2023-11-22 | H40: 992678054001 | I40: $12.15 | J40: 0 | K40: $12.15
A41: 925398695001 | B41: YAGUAL BRUCEL SHIRLEY KATHERINE | C41: Factura | D41: 001-100-000004098 | E41: 2.311202301e+48 | F41: 2023-11-23T10:34:30 | G41: 2023-11-23 | H41: 992678054001 | I41: $10.95 | J41: $1.31 | K41: $12.26
A42: 1791768892001 | B42: FERJEM SEGURIDAD CIA. LTDA. | C42: Factura | D42: 001-010-000003536 | E42: 2.711202301e+48 | F42: 2023-11-27T14:07:21 | G42: 2023-11-27 | H42: 992678054001 | I42: $265.00 | J42: $31.80 | K42: $296.80
A43: 1791768892001 | B43: FERJEM SEGURIDAD CIA. LTDA. | C43: Factura | D43: 001-010-000003537 | E43: 2.711202301e+48 | F43: 2023-11-27T14:09:08 | G43: 2023-11-27 | H43: 992678054001 | I43: $1,060.00 | J43: 0 | K43: $1,060.00
A44: 991331859001 | B44: ATIMASA S.A. | C44: Factura | D44: 044-013-001153813 | E44: 2.711202301e+48 | F44: 2023-11-27T18:56:43 | G44: 2023-11-27 | H44: 992678054001 | I44: $8.93 | J44: $1.07 | K44: $10.00
A45: 1315524486001 | B45: LOOR MENDOZA REINALDO SEBASTIAN | C45: Factura | D45: 001-003-000000118 | E45: 2.811202301e+48 | F45: 2023-11-28T12:27:48 | G45: 2023-11-28 | H45: 992678054001 | I45: $646.00 | J45: $77.52 | K45: $723.52
A46: 992739401001 | B46: ESTACION DE SERVICIOS ALPASO S.A. | C46: Factura | D46: 003-002-000253038 | E46: 2.911202301e+48 | F46: 2023-11-29T09:10:21 | G46: 2023-11-29 | H46: 992678054001 | I46: $13.39 | J46: $1.61 | K46: $15.00
A47: 926561598001 | B47: GARCIA NAVARRETE JAIRON JONATHAN | C47: Factura | D47: 002-002-000000203 | E47: 2.911202301e+48 | F47: 2023-11-29T14:02:11 | G47: 2023-11-29 | H47: 992678054001 | I47: $8.85 | J47: 0 | K47: $8.85
A48: 925398695001 | B48: YAGUAL BRUCEL SHIRLEY KATHERINE | C48: Factura | D48: 001-100-000004256 | E48: 3.011202301e+48 | F48: 2023-11-30T11:57:33 | G48: 2023-11-30 | H48: 992678054001 | I48: $5.00 | J48: 0 | K48: $5.00
A49: 926561598001 | B49: GARCIA NAVARRETE JAIRON JONATHAN | C49: Factura | D49: 002-002-000000211 | E49: 3.011202301e+48 | F49: 2023-11-30T10:44:08 | G49: 2023-11-30 | H49: 992678054001 | I49: $3.00 | J49: 0 | K49: $3.00
I51: =SUM(I3:I50) -> $6,547.52 | J51: =SUM(J3:J50) -> $342.20 | K51: =SUM(K3:K50) -> $6,891.52

Sheet FACT. RECIBIDAS DICIEMBRE 2023
A1: FACTURAS RECIBIDAS DICIEMBRE 2023
A3: RUC_EMISOR | B3: RAZON_SOCIAL_EMISOR | C3: TIPO_COMPROBANTE | D3: SERIE_COMPROBANTE | E3: CLAVE_ACCESO | F3: FECHA_AUTORIZACION | G3: FECHA_EMISION | H3: IDENTIFICACION_RECEPTOR | I3: VALOR_SIN_IMPUESTOS | J3: IVA | K3: IMPORTE_TOTAL
A4: 1791287541001 | B4: MEGADATOS S.A. | C4: Factura | D4: 001-011-041810632 | E4: 1.122023012e+47 | F4: 2023-12-01T11:06:47 | G4: 2023-12-01 | H4: 992678054001 | I4: $140.00 | J4: $16.80 | K4: $156.80
A5: 1791251237001 | B5: CONSORCIO ECUATORIANO DE TELECOMUNICACIONES S.A. CONECEL | C5: Factura | D5: 001-221-003548400 | E5: 1.122023012e+47 | F5: 2023-12-01T14:03:57 | G5: 2023-12-01 | H5: 992678054001 | I5: $59.57 | J5: $7.15 | K5: $66.72
A6: 1791251237001 | B6: CONSORCIO ECUATORIANO DE TELECOMUNICACIONES S.A. CONECEL | C6: Factura | D6: 001-221-003549796 | E6: 1.122023012e+47 | F6: 2023-12-01T14:21:09 | G6: 2023-12-01 | H6: 992678054001 | I6: $92.38 | J6: $11.30 | K6: $105.48
A7: 926561598001 | B7: GARCIA NAVARRETE JAIRON JONATHAN | C7: Factura | D7: 002-002-000000222 | E7: 1.122023011e+47 | F7: 2023-12-01T11:46:59 | G7: 2023-12-01 | H7: 992678054001 | I7: $4.50 | J7: 0 | K7: $4.50
A8: 992822252001 | B8: GESURYMACA S.A. | C8: Factura | D8: 004-112-000397310 | E8: 5.122023011e+47 | F8: 2023-12-05T11:12:17 | G8: 2023-12-05 | H8: 992678054001 | I8: $8.93 | J8: $1.07 | K8: $10.00
A9: 926561598001 | B9: GARCIA NAVARRETE JAIRON JONATHAN | C9: Factura | D9: 002-002-000000227 | E9: 5.122023011e+47 | F9: 2023-12-05T10:10:51 | G9: 2023-12-05 | H9: 992678054001 | I9: $2.45 | J9: 0 | K9: $2.45
A10: 1790041220001 | B10: COMERCIAL KYWI S.A. | C10: Factura | D10: 033-902-000532037 | E10: 6.122023012e+47 | F10: 2023-12-06T14:22:14 | G10: 2023-12-06 | H10: 992678054001 | I10: $5.87 | J10: $0.70 | K10: $6.57
A11: 992378395001 | B11: GAITALIN S.A. | C11: Factura | D11: 001-013-000753237 | E11: 7.122023011e+47 | F11: 2023-12-07T20:49:18 | G11: 2023-12-07 | H11: 992678054001 | I11: $13.39 | J11: $1.61 | K11: $15.00
A12: 968599020001 | B12: EMPRESA ELECTRICA PUBLICA ESTRATEGICA CORPORACION NACIONAL DE ELECTRICIDAD CNEL EP | C12: Factura | D12: 002-999-016637215 | E12: 7.122023011e+47 | F12: 2023-12-13T08:51:08 | G12: 2023-12-07 | H12: 992678054001 | I12: $248.51 | J12: 0 | K12: $248.51
A13: 968599020001 | B13: EMPRESA ELECTRICA PUBLICA ESTRATEGICA CORPORACION NACIONAL DE ELECTRICIDAD CNEL EP | C13: Factura | D13: 002-999-016637216 | E13: 7.122023011e+47 | F13: 2023-12-13T08:51:09 | G13: 2023-12-07 | H13: 992678054001 | I13: $6.05 | J13: 0 | K13: $6.05
A14: 968599020001 | B14: EMPRESA ELECTRICA PUBLICA ESTRATEGICA CORPORACION NACIONAL DE ELECTRICIDAD CNEL EP | C14: Factura | D14: 002-999-016642286 | E14: 7.122023011e+47 | F14: 2023-12-13T08:51:09 | G14: 2023-12-07 | H14: 992678054001 | I14: $6.15 | J14: 0 | K14: $6.15
A15: 968599020001 | B15: EMPRESA ELECTRICA PUBLICA ESTRATEGICA CORPORACION NACIONAL DE ELECTRICIDAD CNEL EP | C15: Factura | D15: 002-999-016641918 | E15: 7.122023011e+47 | F15: 2023-12-13T08:12:30 | G15: 2023-12-07 | H15: 992678054001 | I15: $319.10 | J15: 0 | K15: $319.10
A16: 968599020001 | B16: EMPRESA ELECTRICA PUBLICA ESTRATEGICA CORPORACION NACIONAL DE ELECTRICIDAD CNEL EP | C16: Factura | D16: 002-999-016641771 | E16: 7.122023011e+47 | F16: 2023-12-13T08:14:42 | G16: 2023-12-07 | H16: 992678054001 | I16: $319.22 | J16: 0 | K16: $319.22
A17: 968599020001 | B17: EMPRESA ELECTRICA PUBLICA ESTRATEGICA CORPORACION NACIONAL DE ELECTRICIDAD CNEL EP | C17: Factura | D17: 002-999-016641846 | E17: 7.122023011e+47 | F17: 2023-12-13T08:02:34 | G17: 2023-12-07 | H17: 992678054001 | I17: $51.31 | J17: 0 | K17: $51.31
A18: 1791310063001 | B18: DATAFAST S.A. | C18: Factura | D18: 001-003-000174558 | E18: 8.122023012e+47 | F18: 2023-12-08T06:14:32 | G18: 2023-12-08 | H18: 992678054001 | I18: $7.99 | J18: $0.96 | K18: $8.95
A19: 1791256115001 | B19: OTECEL S.A. | C19: Factura | D19: 001-327-101684445 | E19: 8.122023012e+47 | F19: 2023-12-08T08:25:32 | G19: 2023-12-08 | H19: 992678054001 | I19: $50.00 | J19: $6.00 | K19: $56.00
A20: 992739401001 | B20: ESTACION DE SERVICIOS ALPASO S.A. | C20: Factura | D20: 003-009-000149367 | E20: 1.112202301e+48 | F20: 2023-12-11T19:43:00 | G20: 2023-12-11 | H20: 992678054001 | I20: $8.93 | J20: $1.07 | K20: $10.00
A21: 991450009001 | B21: AGUAS DE SAMBORONDON AMAGUA C.E.M. | C21: Factura | D21: 001-001-007790327 | E21: 1.212202301e+48 | F21: 2023-12-13T03:55:35 | G21: 2023-12-12 | H21: 992678054001 | I21: $2.73 | J21: $0.01 | K21: $2.74
A22: 991450009001 | B22: AGUAS DE SAMBORONDON AMAGUA C.E.M. | C22: Factura | D22: 001-001-007790153 | E22: 1.212202301e+48 | F22: 2023-12-13T03:42:40 | G22: 2023-12-12 | H22: 992678054001 | I22: $554.85 | J22: $0.01 | K22: $554.86
A23: 1791768892001 | B23: FERJEM SEGURIDAD CIA. LTDA. | C23: Factura | D23: 001-010-000003562 | E23: 1.212202301e+48 | F23: 2023-12-12T08:50:33 | G23: 2023-12-12 | H23: 992678054001 | I23: $1,060.00 | J23: 0 | K23: $1,060.00
A24: 1791768892001 | B24: FERJEM SEGURIDAD CIA. LTDA. | C24: Factura | D24: 001-010-000003563 | E24: 1.212202301e+48 | F24: 2023-12-12T08:51:14 | G24: 2023-12-12 | H24: 992678054001 | I24: $265.00 | J24: $31.80 | K24: $296.80
A25: 991450009001 | B25: AGUAS DE SAMBORONDON AMAGUA C.E.M. | C25: Factura | D25: 001-001-007789582 | E25: 1.212202301e+48 | F25: 2023-12-13T02:59:25 | G25: 2023-12-12 | H25: 992678054001 | I25: $24.10 | J25: $0.01 | K25: $24.11
A26: 991450009001 | B26: AGUAS DE SAMBORONDON AMAGUA C.E.M. | C26: Factura | D26: 001-001-007789583 | E26: 1.212202301e+48 | F26: 2023-12-13T02:59:28 | G26: 2023-12-12 | H26: 992678054001 | I26: $14.23 | J26: $0.01 | K26: $14.24
A27: 991450009001 | B27: AGUAS DE SAMBORONDON AMAGUA C.E.M. | C27: Factura | D27: 001-001-007790022 | E27: 1.212202301e+48 | F27: 2023-12-13T03:32:42 | G27: 2023-12-12 | H27: 992678054001 | I27: $53.01 | J27: $0.01 | K27: $53.02
A28: 991450009001 | B28: AGUAS DE SAMBORONDON AMAGUA C.E.M. | C28: Factura | D28: 001-001-007790350 | E28: 1.212202301e+48 | F28: 2023-12-13T03:57:16 | G28: 2023-12-12 | H28: 992678054001 | I28: $4.17 | J28: $0.01 | K28: $4.18
A29: 990865477001 | B29: LIRIS S.A. | C29: Factura | D29: 029-004-000285275 | E29: 1.312202301e+48 | F29: 2023-12-13T22:28:56 | G29: 2023-12-13 | H29: 992678054001 | I29: $17.85 | J29: $2.14 | K29: $19.99
A30: 913523296001 | B30: SUAREZ LUQUE JOSE ENRIQUE | C30: Factura | D30: 001-001-000000019 | E30: 1.412202301e+48 | F30: 2023-12-14T12:31:03 | G30: 2023-12-14 | H30: 992678054001 | I30: $991.57 | J30: $118.99 | K30: $1,110.56
A31: 992739401001 | B31: ESTACION DE SERVICIOS ALPASO S.A. | C31: Factura | D31: 003-002-000256473 | E31: 1.412202301e+48 | F31: 2023-12-14T14:55:22 | G31: 2023-12-14 | H31: 992678054001 | I31: $15.00 | J31: $1.80 | K31: $16.80
A32: 190072002001 | B32: GERARDO ORTIZ E HIJOS CIA LTDA | C32: Factura | D32: 037-909-000063011 | E32: 1.512202301e+48 | F32: 2023-12-15T16:52:32 | G32: 2023-12-15 | H32: 992678054001 | I32: $31.07 | J32: $3.73 | K32: $34.80
A33: 190072002001 | B33: GERARDO ORTIZ E HIJOS CIA LTDA | C33: Factura | D33: 037-912-000028561 | E33: 1.512202301e+48 | F33: 2023-12-15T15:02:12 | G33: 2023-12-15 | H33: 992678054001 | I33: $29.87 | J33: $3.58 | K33: $33.45
A34: 906525555001 | B34: AMAGUAYA LLAMUCA ANGEL | C34: Factura | D34: 001-002-000006322 | E34: 1.512202301e+48 | F34: 2023-12-15T18:58:29 | G34: 2023-12-15 | H34: 992678054001 | I34: $2.68 | J34: $0.32 | K34: $3.00
A35: 990017514001 | B35: TIENDAS INDUSTRIALES ASOCIADAS TIA S. A. | C35: Factura | D35: 227-010-000140262 | E35: 1.612202301e+48 | F35: 2023-12-16T17:50:09 | G35: 2023-12-16 | H35: 992678054001 | I35: $14.02 | J35: $0.80 | K35: $14.82
A36: 101518660001 | B36: PESANTEZ CORDERO PEDRITO RAFAEL | C36: Factura | D36: 005-103-000467659 | E36: 1.812202301e+48 | F36: 2023-12-19T10:37:22 | G36: 2023-12-18 | H36: 992678054001 | I36: $8.93 | J36: $1.07 | K36: $10.00
A37: 992739401001 | B37: ESTACION DE SERVICIOS ALPASO S.A. | C37: Factura | D37: 003-006-000270593 | E37: 1.812202301e+48 | F37: 2023-12-18T08:40:21 | G37: 2023-12-18 | H37: 992678054001 | I37: $3.57 | J37: $0.43 | K37: $4.00
A38: 992739401001 | B38: ESTACION DE SERVICIOS ALPASO S.A. | C38: Factura | D38: 003-010-000213331 | E38: 2.012202301e+48 | F38: 2023-12-20T23:40:09 | G38: 2023-12-20 | H38: 992678054001 | I38: $13.39 | J38: $1.61 | K38: $15.00
A39: 1801916600001 | B39: URBINA BERTHA CECILIA TRINIDAD | C39: Factura | D39: 004-100-000191903 | E39: 2.012202301e+48 | F39: 2023-12-21T11:27:52 | G39: 2023-12-20 | H39: 992678054001 | I39: $6.77 | J39: $0.81 | K39: $7.58
A40: 993028932001 | B40: ESTSERHMIGUEL S.A. | C40: Factura | D40: 003-004-002396455 | E40: 2.112202301e+48 | F40: 2023-12-24T23:03:35 | G40: 2023-12-21 | H40: 992678054001 | I40: $4.46 | J40: $0.54 | K40: $5.00
A41: 990005737001 | B41: BANCO DEL PACIFICO S.A. | C41: Factura | D41: 113-001-199580367 | E41: 2.112202301e+48 | F41: 2023-12-21T13:27:17 | G41: 2023-12-21 | H41: 992678054001 | I41: $0.51 | J41: $0.06 | K41: $0.57
A42: 990005737001 | B42: BANCO DEL PACIFICO S.A. | C42: Factura | D42: 113-001-199580260 | E42: 2.112202301e+48 | F42: 2023-12-21T13:23:31 | G42: 2023-12-21 | H42: 992678054001 | I42: $0.51 | J42: $0.06 | K42: $0.57
A43: 990005737001 | B43: BANCO DEL PACIFICO S.A. | C43: Factura | D43: 113-001-199580275 | E43: 2.112202301e+48 | F43: 2023-12-21T13:23:25 | G43: 2023-12-21 | H43: 992678054001 | I43: $0.51 | J43: $0.06 | K43: $0.57
A44: 990005737001 | B44: BANCO DEL PACIFICO S.A. | C44: Factura | D44: 113-001-199580199 | E44: 2.112202301e+48 | F44: 2023-12-21T13:23:17 | G44: 2023-12-21 | H44: 992678054001 | I44: $0.51 | J44: $0.06 | K44: $0.57
A45: 990005737001 | B45: BANCO DEL PACIFICO S.A. | C45: Factura | D45: 113-001-199580240 | E45: 2.112202301e+48 | F45: 2023-12-21T13:23:26 | G45: 2023-12-21 | H45: 992678054001 | I45: $0.51 | J45: $0.06 | K45: $0.57
A46: 990005737001 | B46: BANCO DEL PACIFICO S.A. | C46: Factura | D46: 113-001-199580380 | E46: 2.112202301e+48 | F46: 2023-12-21T13:27:21 | G46: 2023-12-21 | H46: 992678054001 | I46: $0.51 | J46: $0.06 | K46: $0.57
A47: 990005737001 | B47: BANCO DEL PACIFICO S.A. | C47: Factura | D47: 113-001-199580302 | E47: 2.112202301e+48 | F47: 2023-12-21T13:23:06 | G47: 2023-12-21 | H47: 992678054001 | I47: $0.51 | J47: $0.06 | K47: $0.57
A48: 990005737001 | B48: BANCO DEL PACIFICO S.A. | C48: Factura | D48: 113-001-199580221 | E48: 2.112202301e+48 | F48: 2023-12-21T13:23:39 | G48: 2023-12-21 | H48: 992678054001 | I48: $0.51 | J48: $0.06 | K48: $0.57
A49: 990005737001 | B49: BANCO DEL PACIFICO S.A. | C49: Factura | D49: 113-001-199580348 | E49: 2.112202301e+48 | F49: 2023-12-21T13:23:08 | G49: 2023-12-21 | H49: 992678054001 | I49: $0.51 | J49: $0.06 | K49: $0.57
A50: 990005737001 | B50: BANCO DEL PACIFICO S.A. | C50: Factura | D50: 113-001-199580415 | E50: 2.112202301e+48 | F50: 2023-12-21T13:27:13 | G50: 2023-12-21 | H50: 992678054001 | I50: $0.51 | J50: $0.06 | K50: $0.57
A51: 990005737001 | B51: BANCO DEL PACIFICO S.A. | C51: Factura | D51: 113-001-199580442 | E51: 2.112202301e+48 | F51: 2023-12-21T13:27:18 | G51: 2023-12-21 | H51: 992678054001 | I51: $0.51 | J51: $0.06 | K51: $0.57
A52: 990005737001 | B52: BANCO DEL PACIFICO S.A. | C52: Factura | D52: 113-001-199580326 | E52: 2.112202301e+48 | F52: 2023-12-21T13:23:33 | G52: 2023-12-21 | H52: 992678054001 | I52: $0.51 | J52: $0.06 | K52: $0.57
A53: 990005737001 | B53: BANCO DEL PACIFICO S.A. | C53: Factura | D53: 113-001-199580431 | E53: 2.112202301e+48 | F53: 2023-12-21T13:27:20 | G53: 2023-12-21 | H53: 992678054001 | I53: $0.51 | J53: $0.06 | K53: $0.57
A54: 1791768892001 | B54: FERJEM SEGURIDAD CIA. LTDA. | C54: Factura | D54: 001-010-000003574 | E54: 2.612202301e+48 | F54: 2023-12-26T11:01:12 | G54: 2023-12-26 | H54: 992678054001 | I54: $265.00 | J54: $31.80 | K54: $296.80
A55: 1791768892001 | B55: FERJEM SEGURIDAD CIA. LTDA. | C55: Factura | D55: 001-010-000003575 | E55: 2.612202301e+48 | F55: 2023-12-26T11:02:43 | G55: 2023-12-26 | H55: 992678054001 | I55: $1,060.00 | J55: 0 | K55: $1,060.00
A56: 913523296001 | B56: SUAREZ LUQUE JOSE ENRIQUE | C56: Factura | D56: 001-001-000000020 | E56: 2.612202301e+48 | F56: 2023-12-26T14:16:53 | G56: 2023-12-26 | H56: 992678054001 | I56: $991.57 | J56: $118.99 | K56: $1,110.56
A57: 926561598001 | B57: GARCIA NAVARRETE JAIRON JONATHAN | C57: Factura | D57: 002-002-000000288 | E57: 2.612202301e+48 | F57: 2023-12-26T14:57:21 | G57: 2023-12-26 | H57: 992678054001 | I57: $3.25 | J57: 0 | K57: $3.25
A58: 1315524486001 | B58: LOOR MENDOZA REINALDO SEBASTIAN | C58: Factura | D58: 001-003-000000126 | E58: 2.712202301e+48 | F58: 2023-12-27T15:43:27 | G58: 2023-12-27 | H58: 992678054001 | I58: $646.00 | J58: $77.52 | K58: $723.52
A59: 1790041220001 | B59: COMERCIAL KYWI S.A. | C59: Factura | D59: 033-902-000538078 | E59: 2.812202301e+48 | F59: 2023-12-28T15:34:26 | G59: 2023-12-28 | H59: 992678054001 | I59: $4.43 | J59: $0.53 | K59: $4.96
A60: 990976643001 | B60: LA CHIRIPA CHIRS S.A. | C60: Factura | D60: 005-011-000081125 | E60: 2.812202301e+48 | F60: 2023-12-28T08:21:00 | G60: 2023-12-28 | H60: 992678054001 | I60: $7.14 | J60: $0.86 | K60: $8.00
A61: 990976643001 | B61: LA CHIRIPA CHIRS S.A. | C61: Factura | D61: 005-011-000081124 | E61: 2.812202301e+48 | F61: 2023-12-28T08:20:15 | G61: 2023-12-28 | H61: 992678054001 | I61: $13.39 | J61: $1.61 | K61: $15.00
A62: 993366686001 | B62: GIGANTOPRINT S.A.S. | C62: Factura | D62: 001-900-000000555 | E62: 2.912202301e+48 | F62: 2023-12-29T12:09:35 | G62: 2023-12-29 | H62: 992678054001 | I62: $13.80 | J62: $1.66 | K62: $15.46
I64: =SUM(I4:I63) -> $7,472.83 | J64: =SUM(J4:J63) -> $448.09 | K64: =SUM(K4:K63) -> $7,922.72

Sheet DETALLE ENERO A JULIO 2023
A1: ASOCIACION DE PROPIETARIOS DE INMUEBLES DE LA URBANIZACION CATALUNA
A2: Codigo Cta. | B2: Detalle Cuentas | C2: ENERO | E2: FEBRERO | G2: MARZO | I2: ABRIL | K2: MAYO | M2: JUNIO | O2: JULIO | Q2: TOTAL
A3: 4 | B3: Ingresos | C3: =+C5+C10+C16 -> 34,325.09 | E3: =+E5+E10+E16 -> 26,868.09 | G3: =+G5+G10+G16 -> 32,594.04 | I3: =+I5+I10+I16 -> 31,081.52 | K3: =+K5+K10+K16 -> 28,116.52 | M3: =+M5+M10+M16 -> 30,353.50 | O3: =+O5+O10+O16 -> 27,106.00 | Q3: =SUM(C3:O3) -> 210,444.76
A4: 4.1 | B4: Ingresos de Actividades Ordinarias | C4: =+C5 -> 34,232.50 | E4: =+E5 -> 26,702.00 | G4: =+G5 -> 32,285.50 | I4: =+I5 -> 30,786.00 | K4: =+K5 -> 27,935.00 | M4: =+M5 -> 30,265.00 | O4: =+O5 -> 27,061.00 | Q4: =SUM(C4:O4) -> 209,267.00
A5: 4.1.2 | B5: INGRESOS ORDINARIOS DE LA URBANIZACION | C5: =SUM(C6:D9) -> 34,232.50 | E5: =SUM(E6:F9) -> 26,702.00 | G5: =SUM(G6:H9) -> 32,285.50 | I5: =SUM(I6:J9) -> 30,786.00 | K5: =SUM(K6:L9) -> 27,935.00 | M5: =SUM(M6:N9) -> 30,265.00 | O5: =SUM(O6:P9) -> 27,061.00 | Q5: 209,267.00
A6: 4.1.2.1 | B6: Ingreso por Alicuotas | C6: 33,695.00 | E6: 26,012.00 | G6: 31,453.00 | I6: 30,151.00 | K6: 27,185.00 | M6: 29,090.00 | O6: 26,291.00 | Q6: 203,877.00
A7: 4.1.2.2 | B7: Ingreso uso de área Social | C7: 20.00 | E7: 35.00 | G7: 100.00 | I7: 15.00 | K7: 0.00 | M7: 0.00 | O7: 0.00 | Q7: 170.00
A8: 4.1.2.3 | B8: Ingresos por TAGS- Accesos a Urbanización | C8: 420.00 | E8: 525.00 | G8: 435.00 | I8: 420.00 | K8: 480.00 | M8: 795.00 | O8: 495.00 | Q8: 3,570.00
A9: 4.1.2.4 | B9: Alquiler Parque Acuático | C9: 97.50 | E9: 130.00 | G9: 297.50 | I9: 200.00 | K9: 270.00 | M9: 380.00 | O9: 275.00 | Q9: 1,650.00
A10: 4.2 | B10: Otros Ingresos | C10: =SUM(C11:D15) -> 92.32 | E10: =SUM(E11:F15) -> 165.75 | G10: =SUM(G11:H15) -> 308.07 | I10: =SUM(I11:J15) -> 295.50 | K10: =SUM(K11:L15) -> 181.50 | M10: =SUM(M11:N15) -> 88.50 | O10: =SUM(O11:P15) -> 45.00 | Q10: 1,176.64
A11: 4.2.1 | B11: Cursos vacacionales | C11: 0.00 | E11: 0.00 | G11: 100.00 | I11: 0.00 | K11: 0.00 | M11: 0.00 | O11: 0.00 | Q11: 100.00
A12: 4.2.3 | B12: Ingresos multas empleados | C12: 0.00 | E12: 0.00 | G12: 0.00 | I12: 0.00 | K12: 0.00 | M12: 0.00 | O12: 0.00 | Q12: 0.00
A13: 4.2.4 | B13: Ingresos varios | C13: 0.07 | E13: 0.00 | G13: 0.07 | I13: 0.00 | K13: 0.00 | M13: 0.00 | O13: 0.00 | Q13: 0.14
A14: 4.2.5 | B14: Ingreso uso de cancha de futball S/F (incluye Escuela de Futbol) | C14: 92.25 | E14: 108.75 | G14: 156.25 | I14: 172.50 | K14: 0.00 | M14: 0.00 | O14: 45.00 | Q14: 574.75
A15: 4.2.6 | B15: Ingreso por Uso de Cancha Múltiple (Incluye escuela de Basket) | C15: 0.00 | E15: 57.00 | G15: 51.75 | I15: 123.00 | K15: 181.50 | M15: 88.50 | O15: 0.00 | Q15: 501.75
A16: 4.3 | B16: Otros Ingresos Financieros | C16: =SUM(C17:D18) -> 0.27 | E16: =SUM(E17:F18) -> 0.34 | G16: =SUM(G17:H18) -> 0.47 | I16: =SUM(I17:J18) -> 0.02 | K16: =SUM(K17:L18) -> 0.02 | M16: =SUM(M17:N18) -> 0.00 | O16: =SUM(O17:P18) -> 0.00 | Q16: 1.12
A17: 4.3.1 | B17: Cobros tarjetas de credito | C17: 0.19 | E17: 0.00 | G17: 0.00 | I17: 0.00 | K17: 0.00 | M17: 0.00 | O17: 0.00 | Q17: 0.19
A18: 4.3.2 | B18: Intereses cta horro | C18: 0.08 | E18: 0.34 | G18: 0.47 | I18: 0.02 | K18: 0.02 | M18: 0.00 | O18: 0.00 | Q18: 0.93
A19: 4.4 | B19: Ingresos por Operaciones Discontinuadas | C19: 0.00 | E19: 0.00 | G19: 0.00 | I19: 0.00 | K19: 0.00 | M19: 0.00 | O19: 0.00 | Q19: 0.00
C21: VALORES | D21: FACTURAS ELECTRONICAS /FISICAS | E21: VALORES | F21: FACTURAS ELECTRONICAS /FISICAS | G21: VALORES | H21: FACTURAS ELECTRONICAS /FISICAS | I21: VALORES | J21: FACTURAS ELECTRONICAS /FISICAS | K21: VALORES | L21: FACTURAS ELECTRONICAS /FISICAS | M21: VALORES | N21: FACTURAS ELECTRONICAS /FISICAS | O21: VALORES | P21: FACTURAS ELECTRONICAS /FISICAS | Q21: TOTAL
A22: 5 | B22: COSTOS Y GASTOS | C22: =+C23+C100 -> $27,197.17 | E22: =+E23+E100 -> $28,974.95 | G22: =+G23+G100 -> $29,950.96 | I22: =+I23+I100 -> $34,613.64 | K22: =+K23+K100 -> $27,296.48 | M22: =+M23+M100 -> $26,001.69 | O22: =+O23+O100 -> $26,158.10 | Q22: =SUM(C22:O22) -> $200,192.99
A23: 5.1 | B23: COSTOS DE LA URBANIZACION | C23: =+C24+C49 -> $21,897.18 | E23: =+E24+E49 -> $24,926.15 | G23: =+G24+G49 -> $25,098.17 | I23: =+I24+I49 -> $23,446.11 | K23: =+K24+K49 -> $22,962.68 | M23: =+M24+M49 -> $21,764.08 | O23: =+O24+O49 -> $22,494.22 | Q23: =SUM(C23:O23) -> $162,588.59
A24: 5.1.1 | B24: COSTOS DEL PERSONAL OPERATIVO | C24: =+C25+C30+C39+C45 -> $13,142.88 | E24: =+E25+E30+E39+E45 -> $14,152.39 | G24: =+G25+G30+G39+G45 -> $16,524.98 | I24: =+I25+I30+I39+I45 -> $14,597.45 | K24: =+K25+K30+K39+K45 -> $13,820.76 | M24: =+M25+M30+M39+M45 -> $13,153.07 | O24: =+O25+O30+O39+O45 -> $13,986.05 | Q24: $99,377.58
A25: 5.1.1.1 | B25: REMUNERACIONES PERSONAL OPERATIVO | C25: =SUM(C26:C29) -> $9,106.91 | E25: =SUM(E26:E29) -> $9,449.52 | G25: =SUM(G26:G29) -> $10,904.93 | I25: =SUM(I26:I29) -> $10,099.11 | K25: =SUM(K26:K29) -> $9,833.29 | M25: =SUM(M26:M29) -> $9,103.42 | O25: =SUM(O26:O29) -> $9,512.60 | Q25: $68,009.78
A26: 5.1.1.1.1 | B26: Sueldos y salarios Guardianía | C26: $4,992.49 | D26: ROLES | E26: $4,989.60 | F26: ROLES | G26: $4,568.49 | H26: ROLES | I26: $4,568.49 | J26: ROLES | K26: $5,028.50 | L26: ROLES | M26: $4,561.43 | N26: ROLES | O26: $5,031.71 | P26: ROLES | Q26: $33,740.71
A27: 5.1.1.1.2 | B27: Sueldos y Salarios Mantenimiento | C27: $2,700.22 | D27: ROLES | E27: $2,700.04 | F27: ROLES | G27: $3,251.49 | H27: ROLES | I27: $2,721.89 | J27: ROLES | K27: $2,705.65 | L27: ROLES | M27: $2,265.47 | N27: ROLES | O27: $2,255.68 | P27: ROLES | Q27: $18,600.44
A28: 5.1.1.1.3 | B28: Horas Extras - Guardianía | C28: $1,320.45 | D28: ROLES | E28: $1,221.74 | F28: ROLES | G28: $1,943.97 | H28: ROLES | I28: $1,730.58 | J28: ROLES | K28: $1,643.51 | L28: ROLES | M28: $1,745.87 | N28: ROLES | O28: $1,858.65 | P28: ROLES | Q28: $11,464.77
A29: 5.1.1.1.4 | B29: Horas Extras Mantenimiento | C29: $93.75 | D29: ROLES | E29: $538.14 | F29: ROLES | G29: $1,140.98 | H29: ROLES | I29: $1,078.15 | J29: ROLES | K29: $455.63 | L29: ROLES | M29: $530.65 | N29: ROLES | O29: $366.56 | P29: ROLES | Q29: $4,203.86
A30: 5.1.1.2 | B30: BENEFICIOS SOCIALES PERSONAL OPERATIVO | C30: =SUM(C31:C38) -> $2,099.88 | E30: =SUM(E31:E38) -> $2,859.08 | G30: =SUM(G31:G38) -> $3,521.10 | I30: =SUM(I31:I38) -> $2,297.35 | K30: =SUM(K31:K38) -> $2,080.45 | M30: =SUM(M31:M38) -> $2,195.13 | O30: =SUM(O31:O38) -> $2,629.67 | Q30: $17,682.66
A31: 5.1.1.2.1 | B31: 13ER Sueldo - Guardiania | C31: $593.08 | D31: ROLES | E31: $517.62 | F31: ROLES | G31: $577.81 | H31: ROLES | I31: $626.68 | J31: ROLES | K31: $552.79 | L31: ROLES | M31: $561.31 | N31: ROLES | O31: $570.70 | P31: ROLES | Q31: $3,999.99
A32: 5.1.1.2.2 | B32: 13er Sueldo - Mantenimiento | C32: $232.75 | D32: ROLES | E32: $269.85 | F32: ROLES | G32: $320.09 | H32: ROLES | I32: $314.85 | J32: ROLES | K32: $262.97 | L32: ROLES | M32: $411.73 | N32: ROLES | O32: $580.13 | P32: ROLES | Q32: $2,392.37
A33: 5.1.1.2.3 | B33: 14to Sueldo - Guardiania | C33: $412.50 | D33: ROLES | E33: $757.17 | F33: ROLES | G33: $1,012.48 | H33: ROLES | I33: $412.50 | J33: ROLES | K33: $412.50 | L33: ROLES | M33: $412.50 | N33: ROLES | O33: $412.50 | P33: ROLES | Q33: $3,832.15
A34: 5.1.1.2.4 | B34: 14to Sueldo - Mantenimiento | C34: $225.00 | D34: ROLES | E34: $613.67 | F34: ROLES | G34: $925.00 | H34: ROLES | I34: $225.00 | J34: ROLES | K34: $225.00 | L34: ROLES | M34: $187.50 | N34: ROLES | O34: $328.75 | P34: ROLES | Q34: $2,729.92
A35: 5.1.1.2.5 | B35: Vacaciones - Guardiania | C35: $386.82 | D35: ROLES | E35: $338.78 | F35: ROLES | G35: $377.41 | H35: ROLES | I35: $407.62 | J35: ROLES | K35: $360.71 | L35: ROLES | M35: $369.06 | N35: ROLES | O35: $376.25 | P35: ROLES | Q35: $2,616.65
A36: 5.1.1.2.6 | B36: Vacaciones - Mantenimiento | C36: $150.65 | D36: ROLES | E36: $172.66 | F36: ROLES | G36: $200.56 | H36: ROLES | I36: $197.71 | J36: ROLES | K36: $168.59 | L36: ROLES | M36: $157.87 | N36: ROLES | O36: $266.68 | P36: ROLES | Q36: $1,314.72
A37: 5.1.1.2.7 | B37: Secap - Iece Guardiania | C37: $71.15 | D37: ROLES | E37: $109.53 | F37: ROLES | G37: $69.34 | H37: ROLES | I37: $75.21 | J37: ROLES | K37: $66.34 | L37: ROLES | M37: $67.35 | N37: ROLES | O37: $68.49 | P37: ROLES | Q37: $527.41
A38: 5.1.1.2.8 | B38: Secap - Iece Mantenimiento | C38: $27.93 | D38: ROLES | E38: $79.80 | F38: ROLES | G38: $38.41 | H38: ROLES | I38: $37.78 | J38: ROLES | K38: $31.55 | L38: ROLES | M38: $27.81 | N38: ROLES | O38: $26.17 | P38: ROLES | Q38: $269.45
A39: 5.1.1.3 | B39: APORTES AL IESS PERSONAL OPERATIVO | C39: =SUM(C40:C43) -> $1,930.47 | E39: =SUM(E40:E43) -> $1,840.79 | G39: =SUM(G40:G43) -> $2,098.95 | I39: =SUM(I40:I43) -> $2,200.99 | K39: =SUM(K40:K43) -> $1,907.02 | M39: =SUM(M40:M43) -> $1,853.77 | O39: =SUM(O40:O43) -> $1,843.78 | Q39: $13,675.77
A40: 5.1.1.3.1 | B40: Aporte patronal - Guardianía | C40: $793.54 | D40: ROLES | E40: $692.58 | F40: ROLES | G40: $773.12 | H40: ROLES | I40: $838.51 | J40: ROLES | K40: $739.66 | L40: ROLES | M40: $751.01 | N40: ROLES | O40: $763.59 | P40: ROLES | Q40: $5,352.01
A41: 5.1.1.3.2 | B41: Aporte patronal - Mantenimiento | C41: $311.43 | D41: ROLES | E41: $361.05 | F41: ROLES | G41: $428.28 | H41: ROLES | I41: $421.29 | J41: ROLES | K41: $351.87 | L41: ROLES | M41: $310.06 | N41: ROLES | O41: $291.76 | P41: ROLES | Q41: $2,475.74
A42: 5.1.1.3.3 | B42: Fondo de Reserva - Guardianía | C42: $592.84 | D42: ROLES | E42: $517.42 | F42: ROLES | G42: $577.58 | H42: ROLES | I42: $626.45 | J42: ROLES | K42: $552.60 | L42: ROLES | M42: $561.06 | N42: ROLES | O42: $570.45 | P42: ROLES | Q42: $3,998.40
A43: 5.1.1.3.4 | B43: Fondo de Reserva - Mantenimiento | C43: $232.66 | D43: ROLES | E43: $269.74 | F43: ROLES | G43: $319.97 | H43: ROLES | I43: $314.74 | J43: ROLES | K43: $262.89 | L43: ROLES | M43: $231.64 | N43: ROLES | O43: $217.98 | P43: ROLES | Q43: $1,849.62
A44: 5.1.1.4 | B44: BONIFICAC. POR DESAHUC. INDEMNIZAC. PER | C44: =+C45 -> $5.62 | E44: =+E45 -> $3.00 | G44: =+G45 -> 0 | I44: =+I45 -> 0 | K44: =+K45 -> 0 | M44: =+M45 -> $0.75 | O44: 0 | Q44: $9.37
A45: 5.1.1.5 | B45: OTROS COSTOS DEL PERSONAL OPERATIVO | C45: =SUM(C46:C48) -> $5.62 | D45: =SUM(D46:D48) -> 0 | E45: =SUM(E46:E48) -> $3.00 | F45: 0 | G45: =SUM(G46:G48) -> 0 | I45: =SUM(I46:I48) -> 0 | K45: =SUM(K46:K48) -> 0 | M45: $0.75 | O45: 0 | Q45: $9.37
A46: 5.1.1.5.3 | B46: Alimentación - Guardias | E46: 0 | G46: 0 | I46: 0 | K46: 0 | M46: $0.75 | N46: DNA -APIUC COMPRA DE AZUCAR | O46: 0 | Q46: $0.75
A47: 5.1.1.5.4 | B47: Alimentación - Mantenimiento | E47: $3.00 | F47: DNA-22022023 APIUC COMPRA DE BEBIDAS PARA PERSONAL | G47: 0 | I47: 0 | K47: 0 | M47: 0 | O47: 0 | Q47: $3.00
A48: 5.1.1.5.7 | B48: Otras Bonificaciones - Guardianía | C48: $5.62 | D48: ROLES HORA EXTRAS | E48: 0 | G48: 0 | I48: 0 | K48: 0 | M48: 0 | O48: 0 | Q48: $5.62
A49: 5.1.2 | B49: COSTOS GENERALES DE LA URBANIZACION | C49: =+C50+C59+C77+C90+C92 -> $8,754.30 | E49: =+E50+E59+E77+E90+E92 -> $10,773.76 | G49: =+G50+G59+G77+G90+G92 -> $8,573.19 | I49: =+I50+I59+I77+I90+I92 -> $8,848.66 | K49: =+K50+K59+K77+K90+K92 -> $9,141.92 | M49: =+M50+M59+M77+M90+M92 -> $8,611.01 | O49: =+O50+O59+O77+O90+O92 -> $8,508.17 | Q49: $63,211.01
A50: 5.1.2.1 | B50: SUMINISTROS Y MATERIALES | C50: =SUM(C51:C58) -> $533.12 | E50: =SUM(E51:E58) -> $1,501.14 | G50: =SUM(G51:G58) -> $799.51 | I50: =SUM(I51:I58) -> $363.63 | K50: =SUM(K51:K58) -> $1,306.31 | M50: =SUM(M51:M58) -> $352.55 | O50: =SUM(O51:O58) -> $180.21 | Q50: $5,036.47
A51: 5.1.2.1.1 | B51: Útiles de aseo y Limpieza Urbanización | E51: 0 | G51: 0 | I51: $175.90 | J51: FACT FISICA 002-001-000000191 CRESPO BURGOS CATHERINE ELIZABETH | K51: 0 | M51: 0 | O51: 0 | Q51: $175.90
A52: 5.1.2.1.2 | B52: Químicos para piscinas | E52: $123.00 | F52: FACT ELECTRONICA 002-200-000000932 FIGUEROA TUMBACO ALEJANDRO NEMECIO | G52: $161.00 | H52: FACT ELECTRONICA 002-200-000001153 FIGUEROA TUMBACO ALEJANDRO NEMECIO | I52: 0 | K52: 0 | M52: 0 | O52: 0 | Q52: $284.00
A53: 5.1.2.1.3 | B53: Materiales para área Social | E53: 0 | G53: $30.00 | H53: FACT FISICA 001-001-000000065 VILLON VELASTEGUI JORGE EMILIO | I53: 0 | K53: 0 | M53: 0 | O53: 0 | Q53: $30.00
A54: 5.1.2.1.4 | B54: Materiales para guardianía | E54: 0 | G54: 0 | I54: $3.12 | J54: FACT ELECTRONICA 138-035-000281246 EL ROSADO | K54: 0 | M54: 0 | O54: 0 | Q54: $3.12
A55: 5.1.2.1.5 | B55: Plantas e insumos varios, Fumigación - Jardin | C55: $25.00 | D55: F.FISICA ESTEBAN DELGADO Nro. 001-001-000000359 | E55: $1,145.39 | F55: FAC 001-004-000198626 GLADYS XIMENA CABRERA CARRION FAC 001-001-000000103DORIS PLASTY FAC 003-100-000263061URBINA BERTHA CECILIA TRINIDAD FAC 001-001-000000100 | G55: $25.27 | H55: FACELECTRONICA 138-038-000523912 EL ROSADO FAC 001-100-000238827 TARDI S.A. | I55: $114.06 | J55: FAC ELECTRONICA 001-010-000000251 QUIMICOS SUPERIOR FAC 003-100-000269280 URBINA BERTHA CECILIA TRINIDAD | K55: 0 | M55: $18.47 | N55: FAC ELECTRONICA 033-904-000333587 FAC 033-908-000086864COMERCIAL KYWI S.A. FAC 001-100-000244421 TARDI S.A. | O55: $19.79 | P55: FAC 001-100-000001364 PINARGOTE VERA HIPOLITO FAC 004-100-000179855 URBINA BERTHA CECILIA TRINIDAD | Q55: $1,347.98
A56: 5.1.2.1.7 | B56: Herramientas varias | C56: 0 | E56: 0 | G56: 0 | I56: 0 | K56: 0 | M56: 0 | O56: 0 | Q56: 0
A57: 5.1.2.1.8 | B57: Combustibles | C57: $101.77 | D57: MOVILIZACION DE ADMINISTRACION FF GAITALIN MAXICOMBUS COSTAKARIM | E57: $61.59 | F57: FACTURAS ELECTRONICA 001-008-000852243-FAC 001-010-000749813-FAC 001-010-000749812 GAITALIN FAC 005-004-000162458 LA CHIRIPA CHIRS S.A.077-005-001659288ATIMASA S.A. | G57: $97.31 | H57: FACTURAS ELECTRONICA FAC 003-008-000133108-003-005-000394271-003-008-000136872 ESTACION DE SERVICIOS ALPASO S.A.FAC 001-009-000832528-001-013-000662643-001-013-000664309 GAITALIN S.A. 005-103-000346834 Pedrito Rafael Pesantez Cordero | I57: $55.53 | J57: FACTURAS ELECTRONICA 001-008-000878633 001-008-000881034 001-012-000473641 001-009-000853727 GAITALIN S.A. 004-001-000094557 COSTAKARIM S.A. | K57: $68.56 | L57: FACTURAS ELECTRONICAS 001-012-000479789- 001-013-000677033 GAITALIN S.A. 001-011-001145372 001-011-001145369 COMERCIO Y PREDIOS COMPRED S.A. 003-003-000262440 003-010-000181298 ESTACION DE SERVICIOS ALPASO S.A. | M57: $165.54 | N57: FACTURAS ELECTRONICAS 007-013-000036518 005-011-000028506 005-011-000028505 LA CHIRIPA CHIRS S.A 001-011-000544670 001-011-000546988 001-011-000546989 001-012-000481527 001-011-000552189 001-008-000908598 001-011-000552187 GAITALIN 003-002-000219033 003-007-000275400 003-002-000221340 003-001-000322298 ESTACION DE SERVICIOS ALPASO S.A. | O57: $117.84 | P57: FACTURAS ELECTRONICAS 004-001-000153448 004-001-000153447 COSTAKARIM S.A.001-011-000560268 001-008-000919555 001-008-000919557 001-012-000493365 001-010-000812438 001-009-000901948 001-009-000901947 GAITALIN S.A. 003-008-000147655 ESTACION DE SERVICIOS ALPASO S.A. | Q57: $668.14
A58: 5.1.2.1.9 | B58: Otros insumos para mantenimientos | C58: $406.35 | D58: FACTURAS FISICAS FAC 002-001-000012627 CRESPO BURGOS CATHERINE ELIZABETH FAC 002-001-000054685 HORMICORP S.A. FAC 002-003-000000366 YEPEZ ALAVA VICTOR EMILIO FAC 001-004-000196757 GLADYS XIMENA CABRERA CARRION | E58: $171.16 | F58: FACTURAS FISICA 002-001-000012876 CRESPO BURGOS CATHERINE ELIZABETH FACTURAS ELECTRONICA 138-032-000153156 CORPORACION EL ROSADO S.A. 116-010-000196473 GETTAREQ S.A. | G58: $485.93 | H58: FACTURA FISICA 001-004-000200632 GLADYS XIMENA CABRERA CARRION NVE 002-001-000000069 CRESPO BURGOS CATHERINE ELIZABETH | I58: $15.02 | J58: FAC ELECTRONICA 033-904-000325264 KIWI 001-100-000000289 | K58: $1,237.75 | L58: FAC ELECTRONICA 001-010-000001316 GLOBALCESPED S.A. 001-100-000241482 TARDI S.A | M58: $168.54 | N58: FACTURA ELECTRONICA 033-906-000219202 KIWI FACTURA FISICA NVE 002-001-000000356 002-001-000000417 CRESPO BURGOS CATHERINE ELIZABETH | O58: $42.58 | P58: FACTURA FISICA 001-004-000217037 001-004-000001661 GLADYS XIMENA CABRERA CARRION FACTURA ELECTRONICA 033-906-000222616 COMERCIAL KYWI S.A. | Q58: $2,527.33
A59: 5.1.2.2 | B59: MANTENIMIENTOS GENERALES URBANIZACION | C59: =+C60+C66 -> $1,274.76 | E59: =+E60+E66 -> $2,028.67 | G59: =+G60+G66 -> $1,568.21 | I59: =+I60+I66 -> $1,301.10 | K59: =+K60+K66 -> $813.13 | M59: =+M60+M66 -> $887.98 | O59: =+O60+O66 -> $1,466.13 | Q59: $9,339.98
A60: 5.1.2.2.2 | B60: Mantenim. Y Reparac. Maquin y Equipos | C60: =SUM(C61:C65) -> $183.00 | E60: =SUM(E61:E65) -> $787.00 | G60: =SUM(G61:G65) -> $107.00 | I60: =SUM(I61:I65) -> $206.10 | K60: =SUM(K61:K65) -> $25.30 | M60: =SUM(M61:M65) -> $39.08 | O60: =SUM(O61:O65) -> $20.14 | Q60: $1,367.62
A61: 5.1.2.2.2.3 | B61: Manteniminto corta cesped | C61: $55.00 | D61: DNA 062023APIUC FACT001-001-000000485 OCHOA JOSE DNA 062023 APIUCMOTO PODADORA DE RUEDAS REFUERZO PLATINA, SOLDADA Y AFILADA DE CHUCHILLA | G61: 0 | I61: 0 | K61: 0 | M61: 0 | O61: 0 | Q61: $55.00
A62: 5.1.2.2.2.7 | B62: Mantenimiento Cámaras de seguridad y cer | C62: 0 | G62: 0 | I62: 0 | K62: 0 | M62: 0 | O62: 0 | Q62: 0
A63: 5.1.2.2.2.9 | B63: Mantenimiento parlantes | C63: 0 | G63: 0 | I63: $119.00 | J63: FACTURA ELECTRONICA 015-011-000021582 MASSUHIMPORTECH SA | K63: 0 | M63: 0 | O63: 0 | Q63: $119.00
A64: 5.1.2.2.2.10 | B64: Mantenimiento Bicicletas | C64: $48.00 | D64: DNA 01052023 MANO DE OBRA DNA 01052023 COMPRA LLANTA Y TUBO DNA 31012023 LLANTA TUBO DNA 31012023 LLANTA TUBO | E64: $42.00 | F64: FACTURAS FISICA NVE 001-001-000003544 VULCANIZADORA SERVI PARCHE | G64: $47.00 | H64: FACTURAS FISICA NVE001-001-000003600 VULCANIZADORA SERVI PARCHE | I64: $62.10 | J64: FACTURAS FISICA NVE002-001-000000677 FERRILUVE | K64: $25.30 | L64: FACTURAS FISICA NVE 001-001-000001637 DESIDERIO MERA MARGARITA ELENA NVE 001-001-000000549 DESIDERIO MERA JUNITA DEL ROCIO DNA 17052023 APIUC | M64: $36.08 | N64: FACTURA ELECTRONICA 001-100-000000544 SARCO ROCAFUERTE ROCIO PATRICIA DNA 28062023 APIUC | O64: $2.80 | P64: FACTURA FISICA NVE 002-001-000001619 FERRILUVE | Q64: $263.28
A65: 5.1.2.2.2.12 | B65: Mantenimiento Equipos GYM | C65: $80.00 | D65: DNA 21102022 SONIA ROSERO COMPRA DE STEP PARA GYM | E65: $745.00 | F65: FACTURA ELECTRONICA 001-010-000001189 FACT FISICA NVE 002-001-000000012 COBEÑA CUETO RODOLFO FABIAN | G65: $60.00 | H65: DNA 02032023 DNA 31032023 APIUC | I65: $25.00 | J65: DNA 180-420-000000023 APIUC | K65: 0 | M65: $3.00 | N65: DNA 07062023 DNA 0407 APIUC | O65: $17.34 | P65: FACTURA ELECTRONICA 033-909-000035736 KYWI | Q65: $930.34
A66: 5.1.2.2.4 | B66: Mantenim. de Instalaciones | C66: =SUM(C67:C76) -> $1,091.76 | E66: =SUM(E67:E76) -> $1,241.67 | G66: =SUM(G67:G76) -> $1,461.21 | I66: =SUM(I67:I76) -> $1,095.00 | K66: =SUM(K67:K76) -> $787.83 | M66: =SUM(M67:M76) -> $848.90 | O66: =SUM(O67:O76) -> $1,445.99 | Q66: $7,972.36
A67: 5.1.2.2.4.1 | B67: Pintada de Urbanización y sus areas | C67: 0 | E67: 0 | G67: 0 | I67: 0 | K67: 0 | M67: $6.77 | N67: FACTURA ELECTRONICA 138-039-000648120 EL ROSADO | O67: 0 | Q67: $6.77
A68: 5.1.2.2.4.3 | B68: Barras de acceso Garita | C68: 0 | E68: 0 | G68: $359.00 | H68: FAC ELECTRONICA 001-002-000006354 AUTOMATISMOS AC-ACTIVA S.A. AUTOMOTICSA | I68: $60.00 | J68: FAC ELECTRONICA 001-002-000002645 ELECTRONICA SIETE S.A. ELECTROSIET | K68: $120.00 | L68: FAC ELECTRONICA 001-002-000006523 AUTOMATISMOS AC-ACTIVA S.A. AUTOMOTICSA | M68: $150.00 | N68: FAC ELECTRONICA 001-002-000002795 ELECTRONICA SIETE S.A. ELECTROSIET | O68: 0 | Q68: $689.00
A69: 5.1.2.2.4.4 | B69: Mantenimiento Jardinerias | C69: $23.99 | D69: FAC 001-001-000632894 FLORES GARCIA SANTOS EDMUNDO COMPRA DE AGUA MINERAL - PERSONAL DE JARDINERIA FAC 001-001-000000484 OCHOA ARELLANO JOSE ANTONIO MANTENIMIENTO MOTOBOMBA PREVENTIVO | E69: 0 | G69: $75.58 | H69: FACTURA ELECTRONICA 002-002-000013960 LIDERCOMPANY S.A. | I69: $199.00 | J69: NVE 001-001-000000544 OCHOA ARELLANO JOSE ANTONIO | K69: 0 | M69: 0 | O69: $155.14 | P69: FACTURAS ELECTRONICAS 001-100-000001318 YAGUAL BRUCEL SHIRLEY KATHERINE 018-100-000015257 MEGAMETALES S.A. 033-907-000085932 KYWI | Q69: $453.71
A70: 5.1.2.2.4.5 | B70: Mantenimiento Piscinas | C70: $650.00 | D70: FAC ELECTRONICA 001-002-000002169 ARQUIPOOLS CIA. LTDA. MANTENIMIENTOI MENSUAL DE PISCINA | E70: $844.67 | F70: FACTURAS ELECTRONICA 002-002-000002398 FACTURAS FISICA 001-001-000000002 001-001-000000001 JARAMILLO RAMIREZ EDEN GABRIEL | G70: $1,007.50 | H70: NVE 001-001-000000004 NVE 001-001-000000005 JARAMILLO RAMIREZ EDEN GABRIEL | I70: $646.00 | J70: NVE 001-001-000000006 JARAMILLO RAMIREZ EDEN GABRIEL FACTURA ELECTRONICA AGUAMUNDO | K70: $646.00 | L70: FACTURA ELECTRONICA 001-003-000000052 AGUAMUNDO | M70: $646.00 | N70: FAC ELECTRONICA 001-003-000000062 AGUAMUNDO | O70: $1,146.00 | P70: FAC ELECTRONICA 001-003-000000073 AGUAMUNDO NVE 001-001-000000009 JARAMILLO RAMIREZ EDEN GABRIEL | Q70: $5,586.17
A71: 5.1.2.2.4.6 | B71: Mantenimiento Banderas APIUC | C71: 0 | E71: 0 | G71: 0 | I71: 0 | K71: 0 | M71: 0 | O71: $112.00 | P71: FISICA NV001-001-000000050 ORQUEDA CHASIN NOELIA DANIELA | Q71: $112.00
A72: 5.1.2.2.4.7 | B72: Mantenimiento canchas de futball | C72: $417.77 | D72: FACTURAS ELECTRONICAS FAC 001-004-000196913 FAC 001-004-000196880 FAC 001-004-000196974 GLADYS XIMENA CABRERA CARRION | E72: $315.00 | F72: LQC 010-220-000000023 LUIS REYES | G72: 0 | I72: 0 | K72: 0 | M72: 0 | O72: 0 | Q72: $732.77
A73: 5.1.2.2.4.8 | B73: Mantenimiento Parque acuático | C73: 0 | E73: $42.00 | F73: FAC FISICA 001-001-000000002 JARAMILLO RAMIREZ EDEN GABRIEL | G73: 0 | I73: $100.00 | J73: FAC 001-001-000000014 VELASCO PEREZ JOHNNY VINICIO | K73: 0 | M73: 0 | O73: $2.85 | P73: NVE 002-001-000001619 FERRILUVE | Q73: $144.85
A74: 5.1.2.2.4.9 | B74: Mantenimientos de la Garita | C74: 0 | E74: $40.00 | F74: DNA 22022023 APIUC | G74: $19.13 | H74: FAC ELECTRONICA 116-010-000197717 116-010-000197562 GETTAREQ S.A. 138-021-000367858 EL ROSADO FACTURA FISICA NVE 001-001-000003629 VULCANIZADORA SERVI PARCHE | I74: 0 | K74: $21.83 | L74: DNA 17052023 APIUC | M74: $2.14 | N74: FAC ELECTRONICA 033-906-000215425 KYWI | O74: 0 | Q74: $83.10
A75: 5.1.2.2.4.10 | B75: Mantenimiento Cancha Multiple (Basket/Voll | C75: 0 | E75: 0 | G75: 0 | I75: $90.00 | J75: DNA 250-420-000000023 RUGEL ZUÑIGA WALTER OSWALDO | K75: 0 | M75: $40.00 | N75: DNA 280-620-000000023 DNA 28062023 APIUC | O75: 0 | Q75: $130.00
A76: 5.1.2.2.4.12 | B76: Mantenimiento de Oficina de Administración | C76: 0 | E76: 0 | G76: 0 | I76: 0 | K76: 0 | M76: $3.99 | N76: FAC ELECTRONICA 018-100-000011338 MEGAMETALES | O76: $30.00 | P76: NVE 001-001-000000011 ROSADO SOBREVILLA LUIS ALBERTO | Q76: $33.99
A77: 5.1.2.3 | B77: SERVICIOS BASICOS | C77: =SUM(C78:C89) -> $1,487.42 | E77: =SUM(E78:E89) -> $1,394.55 | G77: =SUM(G78:G89) -> $1,590.77 | I77: =SUM(I78:I89) -> $1,805.66 | K77: =SUM(K78:K89) -> $1,681.48 | M77: =SUM(M78:M89) -> $1,766.39 | O77: =SUM(O78:O89) -> $1,715.12 | Q77: $11,441.39
A78: 5.1.2.3.1 | B78: Energia Planta De Tratamiento Sum.1647262 | C78: $274.31 | D78: FACTURAS ELECTRONICA FAC 002-999-012659804 | E78: $273.33 | F78: FAC ELECTRONICA 002-999-012976860 CNEL | G78: $272.50 | H78: FAC ELECTRONICA 002-999-013318830 CNEL | I78: $276.74 | J78: FAC ELECTRONICA 002-999-013658811 CNEL | K78: $410.45 | L78: FAC ELECTRONICA 002-999-014046310 CNEL | M78: $314.51 | N78: FAC ELECTRONICA 002-999-014426263 CNEL | O78: $290.31 | P78: FAC ELECTRONICA 002-999-014765106 002-999-014765105 CNEL | Q78: $2,112.15
A79: 5.1.2.3.2 | B79: EnergÍa Área Social Sum.2918919 | C79: $303.60 | D79: FACTURAS ELECTRONICA FAC 002-999-012664571 | E79: $302.17 | F79: FAC ELECTRONICA 002-999-012981627 CNEL | G79: $374.86 | H79: FAC ELECTRONICA 002-999-013323599 CNEL | I79: $316.89 | J79: FAC ELECTRONICA 002-999-013663575 CNEL | K79: $306.95 | L79: FAC ELECTRONICA 002-999-014046109 CNEL | M79: $331.94 | N79: FAC ELECTRONICA 002-999-014491692 CNEL | O79: $316.57 | P79: FAC ELECTRONICA 002-999-014769842 CNEL | Q79: $2,252.98
A80: 5.1.2.3.3 | B80: Energia Parq.Acuatico Sum.380513-1 Mz 31 S | C80: $304.91 | D80: FACTURAS ELECTRONICA FAC 002-999-012664421 | E80: $313.22 | F80: FAC ELECTRONICA 002-999-012981477 CNEL | G80: $393.77 | H80: FAC ELECTRONICA 002-999-013323449 CNEL | I80: $445.57 | J80: FAC ELECTRONICA 002-999-013663425 CNEL | K80: $341.42 | L80: FAC ELECTRONICA 002-999-014046017 CNEL | M80: $394.52 | N80: FAC ELECTRONICA 002-999-014430863 CNEL | O80: $365.96 | P80: FAC ELECTRONICA 002-999-014769693 CNEL | Q80: $2,559.37
A81: 5.1.2.3.4 | B81: Energia Bomba De Riego Sum 418848-9 Mz 4 | C81: $66.03 | D81: FACTURAS ELECTRONICA FAC 002-999-012664496 | E81: $22.36 | F81: FAC ELECTRONICA 002-999-012981552 CNEL | G81: $12.45 | H81: FAC ELECTRONICA 002-999-013323524 CNEL | I81: $18.57 | J81: FAC ELECTRONICA 002-999-013663500 CNEL | K81: 0 | L81: FAC ELECTRONICA 002-999-012981477 CNEL | M81: $18.71 | N81: FAC ELECTRONICA FAC 002-999-014046292 002-999-014430938 CNEL | O81: $18.23 | P81: FAC ELECTRONICA 002-999-014769768 CNEL | Q81: $156.35
A82: 5.1.2.3.5 | B82: Energia Cerco Electrico Sum. 1647266-2 Mz 5 | C82: $13.78 | D82: FACTURA ELECTRONICA FAC 002-999-012664942 | E82: $13.72 | F82: FAC ELECTRONICA 002-999-012981998 CNEL | G82: $13.72 | H82: FAC ELECTRONICA 002-999-013323972 CNEL | I82: $14.01 | J82: FAC ELECTRONICA 002-999-013663946 CNEL | K82: $13.64 | L82: FAC ELECTRONICA 002-999-014046107 CNEL | M82: $13.87 | N82: FAC ELECTRONICA 002-999-014431382 CNEL | O82: $20.16 | P82: FAC ELECTRONICA 002-999-014770212 CNEL | Q82: $102.90
A83: 5.1.2.3.6 | B83: Energia Cerco Electrico Sum.1647268-9 Mz 1 | C83: $13.01 | D83: FACTURA ELECTRONICA FAC 002-999-012659805 | E83: $12.84 | F83: FAC ELECTRONICA 002-999-012976861 CNEL | G83: $12.96 | H83: FAC ELECTRONICA 002-999-013318831 CNEL | I83: $13.46 | J83: FAC ELECTRONICA 002-999-013658812 CNEL | K83: $13.09 | L83: FAC ELECTRONICA 002-999-014046108 CNEL | M83: $13.00 | N83: FAC ELECTRONICA 002-999-014426264 CNEL | O83: 0 | Q83: $78.36
A84: 5.1.2.3.8 | B84: Agua Guardiania-garita | C84: $15.35 | D84: FACTURA ELECTRONICA FAC 001-001-007099677 | E84: $14.06 | F84: FACTURAS ELECTRICAS FAC 001-001-007161045 AMAGUA | G84: $12.62 | H84: FACTURAS ELECTRICAS FAC 001-001-007222499 AMAGUA | I84: $12.62 | J84: FACTURAS ELECTRICAS FAC 001-001-007284339 AMAGUA | K84: $12.66 | L84: FACTURAS ELECTRICAS FAC 001-001-007346377 AMAGUA | M84: $14.08 | N84: FACTURAS ELECTRICAS FAC 001-001-007408876 AMAGUA | O84: $15.49 | P84: FACTURAS ELECTRICAS FAC 001-001-007471704 AMAGUA | Q84: $96.88
A85: 5.1.2.3.9 | B85: Agua Planta De Tratamiento | C85: $2.74 | D85: FACTURAS ELECTRONICAS FAC 001-001-007100420 | E85: $2.73 | F85: FACTURAS ELECTRICAS FAC 001-001-007161788 AMAGUA | G85: $2.73 | H85: FACTURAS ELECTRICAS FAC 001-001-007223242 AMAGUA | I85: $2.73 | J85: FACTURAS ELECTRICAS FAC 001-001-007285082 AMAGUA | K85: $2.73 | L85: FACTURAS ELECTRICAS FAC 001-001-007347120 AMAGUA | M85: $2.73 | N85: FACTURAS ELECTRICAS FAC 001-001-007409619 AMAGUA | O85: $2.73 | P85: FACTURAS ELECTRICAS FAC 001-001-007472447 AMAGUA | Q85: $19.12
A86: 5.1.2.3.10 | B86: Agua Parque Acuatico | C86: $64.40 | D86: FACTURAS ELECTRONICAS FAC 001-001-007100116 | E86: $69.24 | F86: FACTURAS ELECTRICAS FAC 001-001-007161484 AMAGUA | G86: $69.15 | H86: FACTURAS ELECTRICAS FAC001-001-007222938 AMAGUA | I86: $63.50 | J86: FACTURAS ELECTRICAS FAC 001-001-007284778 AMAGUA | K86: $75.06 | L86: FACTURAS ELECTRICAS FAC 001-001-007346816 AMAGUA | M86: $55.20 | N86: FACTURAS ELECTRICAS FAC 001-001-007409315 AMAGUA | O86: $41.02 | P86: FACTURAS ELECTRICAS FAC 001-001-007472143 AMAGUA | Q86: $437.57
A87: 5.1.2.3.11 | B87: Agua Area Social | C87: $361.80 | D87: FACTURAS ELECTRONICAS FAC 001-001-007100247 | E87: $346.78 | F87: FACTURAS ELECTRICAS FAC 001-001-007161615 AMAGUA | G87: $358.92 | H87: FACTURAS ELECTRICAS FAC 001-001-007223069AMAGUA | I87: $574.61 | J87: FACTURAS ELECTRICAS FAC 001-001-007284909 AMAGUA | K87: $381.62 | L87: FACTURAS ELECTRICAS FAC 001-001-007346947 AMAGUA | M87: $485.84 | N87: FACTURAS ELECTRICAS FAC 001-001-007409446 AMAGUA | O87: $513.98 | P87: FACTURAS ELECTRICAS FAC 001-001-007472274 AMAGUA | Q87: =SUM(C87:O87) -> $3,023.55
A88: 5.1.2.3.12 | B88: Agua Macro | C88: $24.10 | D88: FACTURAS ELECTRONICAS FAC 001-001-007099676 | E88: $24.10 | F88: FACTURAS ELECTRICAS FAC 001-001-007161044 AMAGUA | G88: $24.10 | H88: FACTURAS ELECTRICAS FAC 001-001-007222498 AMAGUA | I88: $24.10 | J88: FACTURAS ELECTRICAS FAC 001-001-007284338 AMAGUA | K88: $24.10 | L88: FACTURAS ELECTRICAS FAC 001-001-007346376 AMAGUA | M88: $24.10 | N88: FACTURAS ELECTRICAS FAC 001-001-007408875 AMAGUA | O88: $24.10 | P88: FACTURAS ELECTRICAS FAC 001-001-007471703 AMAGUA | Q88: $168.70
A89: 5.1.2.3.13 | B89: Telefono Guardiania-garita | C89: $43.39 | D89: FACTURAS ELECTRONICAS FAC 001-221-000000327 | E89: 0 | G89: $42.99 | H89: FACTURA ELECTRONICA 001-221-003334027 CONECEL | I89: $42.86 | J89: FACTURA ELECTRONICA 001-221-003363314 CONECEL | K89: $99.76 | L89: FACTURA ELECTRONICA 001-221-003391652 CONECEL | M89: $97.89 | N89: FACTURA ELECTRONICA 001-221-003420736CONECEL | O89: $106.57 | P89: FACTURA ELECTRONICA 001-221-003441978 CONECEL FAC 138-035-000296636 CORPORACION EL ROSADO | Q89: $433.46
A90: 5.1.2.4 | B90: COSTOS RELACIONADOS A INGRESOS URBANI | C90: =+C91 -> 0 | E90: =SUM(E91) -> $299.40 | G90: =SUM(G91) -> $149.70 | I90: =SUM(I91) -> $149.70 | K90: =SUM(K91) -> $149.70 | M90: =SUM(M91) -> $299.40 | O90: =SUM(O91) -> $149.70 | Q90: $1,197.60
A91: 5.1.2.4.4 | B91: Tag Automóviles -Tarjetas De Proximidad | C91: 0 | E91: $299.40 | F91: FACTURAS ELECTRONICAS 001-099-000000181 001-099-000000215 BELICOF | G91: $149.70 | H91: FACTURAS ELECTRONICAS 001-099-000000249 BELICOF | I91: $149.70 | J91: FACTURAS ELECTRONICAS 001-993-000000306 BELICOF | K91: $149.70 | L91: FACTURAS ELECTRONICAS 001-099-000000343 BELICOF | M91: $299.40 | N91: FACTURAS ELECTRONICAS 001-099-000000396 001-099-000000423 BELICOF | O91: $149.70 | P91: FACTURAS ELECTRONICAS 001-099-000000454 BELICOF | Q91: $1,197.60
A92: 5.1.2.5 | B92: COSTOS POR SERVICIOS DE TERCEROS | C92: =SUM(C93:C98) -> $5,459.00 | E92: =SUM(E93:E98) -> $5,550.00 | G92: =SUM(G93:G98) -> $4,465.00 | I92: =SUM(I93:I98) -> $5,228.57 | K92: =SUM(K93:K98) -> $5,191.30 | M92: =SUM(M93:M98) -> $5,304.69 | O92: =SUM(O93:O98) -> $4,997.01 | Q92: $36,195.57
A93: 5.1.2.5.1 | B93: Servicios prestados guardianía | C93: $1,100.00 | D93: FAC FISIC. 001-001-000000012 HECTOR EDUARDO VELASCO NVE 001-001-000000010 CANDELARIO BAIDAL JAYRON | E93: $2,665.00 | F93: PAGOS ROLES SERVICIOS PRESTADOS | G93: $2,730.00 | H93: PAGOS ROLES SERVICIOS PRESTADOS | I93: $2,200.00 | J93: PAGOS ROLES SERVICIOS PRESTADOS | K93: $1,700.00 | L93: PAGOS ROLES SERVICIOS PRESTADOS | M93: $2,200.00 | N93: PAGOS ROLES SERVICIOS PRESTADOS | O93: $2,200.00 | P93: PAGOS ROLES SERVICIOS PRESTADOS | Q93: $14,795.00
A94: 5.1.2.5.2 | B94: Servicios De Seguridad | C94: $4,359.00 | D94: ROLES DE PERSONAL FERJEM SEGURIDAD FACTURAS FISICAS | E94: $2,885.00 | F94: FACTURAS ELECTRONICAS 001-010-000002897 001-010-000002896 001-010-000002911 001-010-000002910 FERJEM | G94: $1,720.00 | H94: FACTURAS ELECTRONICAS 001-010-000002951 001-010-000002950 001-010-000002974 001-010-000002973 FERJEM | I94: $2,850.00 | J94: FACTURAS ELECTRONICAS 001-010-000003032 001-010-000003031 001-010-000003049 001-010-000003050 FERJEM | K94: $3,250.00 | L94: FACTURAS ELECTRONICAS 001-010-000003095 001-010-000003094 001-010-000003115 001-002-000000380 001-010-000003142 FERJEM | M94: $3,000.00 | N94: FACTURAS ELECTRONICAS 001-010-000003157 001-010-000003158 001-002-000000441 001-010-000003172 001-010-000003171 FERJEM | O94: $2,750.00 | P94: FACTURAS ELECTRONICAS 001-010-000003218 001-010-000003219 001-002-000000496 001-010-000003235 001-010-000003234 FERJEM | Q94: $20,814.00
A95: 5.1.2.5.3 | B95: Fumigacion De Urbanizacion | C95: 0 | E95: 0 | G95: 0 | I95: 0 | K95: 0 | M95: 0 | O95: 0 | Q95: 0
A96: 5.1.2.5.4 | B96: Servicios De Desalojo Deshechos | C96: 0 | E96: 0 | G96: $15.00 | H96: DNA 15032023 DNA 31032023 APIUC | I96: 0 | K96: $10.00 | L96: DNA 17052023 APIUC | M96: $40.00 | N96: DNA 12062023 DNA 28062023 APIUC | O96: 0 | Q96: $65.00
A97: 5.1.2.5.5 | B97: Gastos eventos para Propietarios | C97: 0 | E97: 0 | G97: 0 | I97: 0 | K97: $231.30 | L97: FACTURAS FISICAS 001-014-000229138 NVE 001-001-000000083 VILLON VELASTEGUI JORGE EMILIO NVE 001-001-000000008 AGUIRRE BRITO MARLENE PAOLA FAC 037-906-000041285 037-906-000041308GERARDO ORTIZ E HIJOS CIA LTDA | M97: $64.69 | N97: FACTURAS FISICAS NVE 001-001-000000093 VILLON VELASTEGUI JORGE EMILIO FACTUAS ELECTRONICAS 009-003-000479459 GRUVALCORP S. FAC 138-013-000185151 CORPORACION EL ROSADO S.A. | O97: $47.01 | P97: NVE 001-001-000000120 VILLON VELASTEGUI JORGE EMILIO FACTURAS ELECTRONICAS FAC 227-005-000054445 TIENDAS INDUSTRIALES ASOCIADAS TIA S. A. | Q97: $343.00
A98: 5.1.2.5.6 | B98: GASTOS DE CAPACITACION DE PERSONAL | C98: 0 | E98: 0 | G98: 0 | I98: $178.57 | J98: FACTURAS ELECTRONICAS 001-001-000000265 HERRERA SUAREZ IVAN OSWALDO | K98: 0 | M98: 0 | O98: 0 | Q98: $178.57
A99: 5.2 | B99: GASTOS | Q99: 0
A100: 5.2.1 | B100: GASTOS ACTIVIDADES ORDINARIAS | C100: =+C101+C137+C141 -> $5,299.99 | E100: =+E101+E137+E141 -> $4,048.80 | G100: =+G101+G137+G141 -> $4,852.79 | I100: =+I101+I137+I141 -> $11,167.53 | K100: =+K101+K137+K141 -> $4,333.80 | M100: =+M101+M137+M141 -> $4,237.61 | O100: =+O101+O137+O141 -> $3,663.88 | Q100: $37,604.40
A101: 5.2.1.2 | B101: GASTOS ADMINISTRATIVOS | C101: =+C102+C108+C113+C118+C120+C125+C130 -> $5,029.40 | E101: =+E102+E108+E113+E118+E120+E125+E130 -> $4,038.42 | G101: =+G102+G108+G113+G118+G120+G125+G130 -> $4,824.90 | I101: =+I102+I108+I113+I118+I120+I125+I130 -> $11,138.81 | K101: =+K102+K108+K113+K118+K120+K125+K130 -> $4,309.39 | M101: =+M102+M108+M113+M118+M120+M125+M130 -> $4,180.28 | O101: =+O102+O108+O113+O118+O120+O125+O130 -> $3,632.74 | Q101: $37,153.94
A102: 5.2.1.2.1 | B102: SUMINISTROS Y MATERIALES ADMINISTRATIVOS | C102: =SUM(C103:C107) -> $80.68 | E102: =SUM(E103:E107) -> $151.18 | G102: =SUM(G103:G107) -> $20.00 | I102: =SUM(I103:I107) -> $240.83 | K102: =SUM(K103:K107) -> $80.10 | M102: =SUM(M103:M107) -> $66.26 | O102: =SUM(O103:O107) -> $292.55 | Q102: $931.60
A103: 5.2.1.2.1.1 | B103: Medicinas -Botiquin, Repelentes, etc | C103: 0 | E103: 0 | G103: 0 | I103: 0 | K103: 0 | M103: 0 | O103: 0 | Q103: 0
A104: 5.2.1.2.1.2 | B104: Botellón de Agua Para Consumo | C104: $54.45 | D104: FAC ELECTRONICA 001-001-000013982 QUINTO MOLINA - DNA 30012023 APIUC | E104: $61.20 | F104: FACTURAS FISICAS 001-001-000014267 AGUALIFE S.A. | G104: 0 | I104: $58.50 | J104: FACTURAS FISICAS NVE 001-001-000001653 AGUALIFE S.A. | K104: $61.20 | L104: FACTURAS FISICAS NVE 001-001-000002162 AGUALIFE S.A. NVE 002-001-000000039 SARMIENTO ZAPATA DANNY MAURICIO | M104: 0 | O104: $5.40 | P104: FACTURAS FISICAS DNA 0107 APIUC | Q104: $240.75
A105: 5.2.1.2.1.3 | B105: Utiles De Aseo y Limpieza oficinas | C105: 0 | E105: 0 | G105: 0 | I105: 0 | K105: 0 | M105: 0 | O105: $287.15 | P105: FACTURAS FISICAS NVE 002-001-000000642 | Q105: $287.15
A106: 5.2.1.2.1.5 | B106: Suministros de oficina | C106: $26.23 | D106: FAC ELECTRONICA 001-002-000000128 CHAVEZ DELGADO SONIA MARIBEL | E106: $49.98 | F106: FAC ELECTRONICA 001-002-000000209 CHAVEZ DELGADO SONIA MARIBEL | G106: 0 | I106: $173.00 | J106: FAC ELECTRONICA 001-002-000000297 CHAVEZ DELGADO SONIA MARIBEL FAC 008-009-000041369 CIA IMPORTADORA REGALADO S.A. COMIRSA FAC 001-002-000000329 CHAVEZ DELGADO SONIA MARIBEL FAC 001-001-000000874 B&T PAPELERIA SUMINISTROS | K106: 0 | M106: $66.26 | N106: FACTURAS ELECTRONICAS FAC 008-010-000065010 CIA IMPORTADORA REGALADO S.A. COMIRSA FAC 001-002-000000494 CHAVEZ DELGADO SONIA MARIBEL | O106: 0 | Q106: $315.47
A107: 5.2.1.2.1.6 | B107: Impresión y papelería | C107: 0 | E107: $40.00 | F107: FAC FISICA 001-001-000000039 TECHSERVICES | G107: $20.00 | H107: DNA 31032023 APIUC | I107: $9.33 | J107: FAC 008-009-000041543 CIA IMPORTADORA REGALADO S.A. COMIRSA | K107: $18.90 | L107: FAC 001-900-000000244 GIGANTOPRINT S.A.S. | M107: 0 | O107: 0 | Q107: $88.23
A108: 5.2.1.2.2 | B108: MANTENIMIENTOS EQUIPOS ADMINISTRATIVOS | C108: =SUM(C109:C112) -> $50.00 | E108: =SUM(E109:E112) -> 0 | G108: =SUM(G109:G112) -> 0 | I108: =SUM(I109:I112) -> $31.25 | K108: =SUM(K109:K112) -> 0 | M108: =SUM(M109:M112) -> $10.00 | O108: =SUM(O109:O112) -> $91.12 | Q108: $182.37
A109: 5.2.1.2.2.3 | B109: Mantenim. Y Reparac. Eq de Computación | C109: 0 | E109: 0 | G109: 0 | I109: $31.25 | J109: FACTURA FISICA 001-001-000000872 CASTRO ORTEGA JOSE JAVIER | K109: 0 | M109: 0 | O109: 0 | Q109: $31.25
A110: 5.2.1.2.2.4 | B110: Mantenimiento Aire acondicionado | C110: $50.00 | D110: FAC FISICA 001-001-000000104 CEPEDA GUERRERO EDUARDO FRANCISCO | E110: 0 | G110: 0 | I110: 0 | K110: 0 | M110: 0 | O110: 0 | Q110: $50.00
A111: 5.2.1.2.2.5 | B111: Mantenimiento de instalaciones oficina | C111: 0 | E111: 0 | G111: 0 | I111: 0 | K111: 0 | M111: 0 | O111: $7.79 | P111: FACTURA ELECTRONICA 138-030-000144505 EL ROSADO | Q111: $7.79
A112: 5.2.1.2.2.6 | B112: 6 Mantenimiento de area social | C112: 0 | E112: 0 | G112: 0 | I112: 0 | K112: 0 | M112: $10.00 | N112: DNA 2906 APIUC | O112: $83.33 | P112: NVE 001-001-000000010 JARAMILLO RAMIREZ EDEN GABRIEL | Q112: $93.33
A113: 5.2.1.2.33 | B113: SERVICIOS BASICOS ADMINISTRATIVOS | C113: =SUM(C114:C117) -> $246.92 | E113: =SUM(E114:E117) -> $291.40 | G113: =SUM(G114:G117) -> $203.23 | I113: =SUM(I114:I117) -> $248.00 | K113: =SUM(K114:K117) -> $251.14 | M113: =SUM(M114:M117) -> $251.94 | O113: =SUM(O114:O117) -> $252.57 | Q113: $1,745.20
A114: 5.2.1.2.33.1 | B114: Agua Para Administración | C114: $4.14 | D114: FAC FISICA 001-001-007100443 AGUAS DE SAMBORONDON AMAGUA C.E.M. | E114: $4.15 | F114: FAC ELECTRONICA 001-001-007161811 AMAGUA | G114: $5.56 | H114: FAC ELECTRONICA001-001-007223265 AMAGUA | I114: $4.14 | J114: FAC ELECTRONICA001-001-007285105 AMAGUA | K114: $5.57 | L114: FAC ELECTRONICA 001-001-007347143 AMAGUA | M114: $4.15 | N114: FAC ELECTRONICA001-001-007409642 AMAGUA | O114: $4.15 | P114: FAC ELECTRONICA 001-001-007472470 AMAGUA | Q114: $31.86
A115: 5.2.1.2.33.2 | B115: Teléfono Administración-oficina | C115: $102.78 | D115: FAC ELECTRONICA 001-221-003276365+001-327-091808354 CONECEL | E115: $102.25 | F115: FACTURAS ELECTRONICAS 001-221-003304023 001-221-003305677 CONECEL | G115: $57.67 | H115: FACTURAS ELECTRONICAS 001-221-003333166 CONECEL | I115: $58.86 | J115: FACTURAS ELECTRONICAS 001-221-003361645CONECEL | K115: $58.24 | L115: FACTURAS ELECTRONICAS 001-221-003388252 CONECEL | M115: $57.79 | N115: FACTURAS ELECTRONICAS001-221-003413606 CONECEL | O115: $58.42 | P115: FACTURAS ELECTRONICAS 001-221-003437549CONECEL | Q115: $496.01
A116: 5.2.1.2.33.3 | B116: Internet | C116: $140.00 | D116: FAC ELECTRONICA 001-011-032943011 MEGADATOS | E116: $140.00 | F116: FAC ELECTRONICA 001-011-033717560 MEGADATOS | G116: $140.00 | H116: FAC ELECTRONICA MEGADATOS 001-011-034498756 | I116: $140.00 | J116: FACT ELECTRONICA 001-011-035302935 MEGADATOS | K116: $140.00 | L116: FAC ELECTRONICA MEGADATOS 001-011-036321261 | M116: $140.00 | N116: FAC ELECTRONICA MEGADATOS 001-011-003713292 | O116: $140.00 | P116: FAC ELECTRONICA MEGADATOS 001-327-097259017 | Q116: $980.00
A117: 5.2.1.2.33.4 | B117: Celular-plan | C117: 0 | E117: $45.00 | F117: FACTURA ELECTRONICA OTECEL FAC 001-327-092797979 | G117: 0 | I117: $45.00 | J117: FACTURA ELECTRONICA OTECEL FAC 001-327-094560598 | K117: $47.33 | L117: FACTURA ELECTRONICA OTECEL FAC 001-327-095477809 | M117: $50.00 | N117: FACTURA ELECTRONICA OTECEL FAC 001-327-096367613 | O117: $50.00 | P117: FACTURA ELECTRONICA OTECEL FAC 001-327-092797979 | Q117: $237.33
A118: 5.2.1.2.34 | B118: HONORARIOS PROFESIONALES | C118: =SUM(C119) -> 0 | E118: =SUM(E119) -> $450.00 | G118: =SUM(G119) -> $400.00 | I118: =SUM(I119) -> $5,989.98 | K118: =SUM(K119) -> $500.00 | M118: =SUM(M119) -> $500.00 | O118: =SUM(O119) -> 0 | Q118: $7,839.98
A119: 5.2.1.2.34.5 | B119: Honorarios Servicios Varios -Administrat. | C119: 0 | E119: $450.00 | F119: FACTURAS FISICAS FAC 001-001-000000009 AB.JOSE RAMON DE LA TORRE REINA | G119: $400.00 | H119: FACTURAS FISICAS 001-001-000000011 AB.JOSE RAMON DE LA TORRE REINA | I119: $5,989.98 | J119: FAC 001-100-000000035 JARAMILLO ESCOBAR CARLOS EDUARDO FAC 001-001-000000013 AB.JOSE RAMON DE LA TORRE REINA | K119: $500.00 | L119: FACTURAS FISICAS FAC 001-001-000000014 AB.JOSE RAMON DE LA TORRE REINA | M119: $500.00 | N119: FACTURAS FISICAS FAC 001-001-000000015 AB.JOSE RAMON DE LA TORRE REINA | O119: 0 | Q119: $7,839.98
A120: 5.2.1.2.35 | B120: DEPRECIACIONES | C120: =SUM(C121:C124) -> $981.99 | E120: =SUM(E121:E124) -> $981.99 | G120: =SUM(G121:G124) -> $981.99 | I120: =SUM(I121:I124) -> $1,251.99 | K120: =SUM(K121:K124) -> $981.99 | M120: =SUM(M121:M124) -> $981.99 | O120: =SUM(O121:O124) -> $981.99 | Q120: $7,143.93
A121: 5.2.1.2.35.1 | B121: Depreciaciones Muebles y enseres | C121: $22.14 | D121: ASI 202301000061 | E121: $22.14 | F121: ASI 202302000040 | G121: $22.14 | H121: ASI 202303000042 | I121: $22.14 | J121: ASI 202304000009 | K121: $22.14 | L121: ASI 202305000013 | M121: $22.14 | N121: ASI 202306000011 | O121: $22.14 | P121: ASI 202307000008 | Q121: $154.98
A122: 5.2.1.2.35.2 | B122: Depreciaciones Maquinarias y Equipos | C122: $846.64 | D122: ASI 202301000061 | E122: $846.64 | F122: ASI 202302000040 | G122: $846.64 | H122: ASI 202303000042 | I122: $846.64 | J122: ASI 202304000009 | K122: $846.64 | L122: ASI 202305000013 | M122: $846.64 | N122: ASI 202306000011 | O122: $846.64 | P122: ASI 202307000008 | Q122: $5,926.48
A123: 5.2.1.2.35.3 | B123: Depreciaciones Equipos de Computo | C123: $39.05 | D123: ASI 202301000061 | E123: $39.05 | F123: ASI 202302000040 | G123: $39.05 | H123: ASI 202303000042 | I123: $309.05 | J123: ASI 202304000009 | K123: $39.05 | L123: ASI 202305000013 | M123: $39.05 | N123: ASI 202306000011 | O123: $39.05 | P123: ASI 202307000008 | Q123: $543.35
A124: 5.2.1.2.35.6 | B124: Depreciaciones Instalaciones de la Urbaniza | C124: $74.16 | D124: ASI 202301000061 | E124: $74.16 | F124: ASI 202302000040 | G124: $74.16 | H124: ASI 202303000042 | I124: $74.16 | J124: ASI 202304000009 | K124: $74.16 | L124: ASI 202305000013 | M124: $74.16 | N124: ASI 202306000011 | O124: $74.16 | P124: ASI 202307000008 | Q124: $519.12
A125: 5.2.1.2.36 | B125: SERVICIOS PRESTADOS ADMINISTRATIVOS | C125: =SUM(C126:C129) -> $2,974.13 | E125: =SUM(E126:E129) -> $1,701.39 | G125: =SUM(G126:G129) -> $2,531.96 | I125: =SUM(I126:I129) -> $1,899.56 | K125: =SUM(K126:K129) -> $1,899.56 | M125: =SUM(M126:M129) -> $1,899.56 | O125: =SUM(O126:O129) -> $1,483.80 | Q125: $14,389.96
A126: 5.2.1.2.36.1 | B126: Servicios prestados contables y administ | C126: $2,966.14 | D126: FAC ELECTRONICAS 001-001-000000001 FAC 001-001-000000002-FAC 001-001-000000003 SUAREZ LUQUE JOSE ENRIQUE FACTURA FISICA FAC 001-001-000000003 GABRIELA VIRGINIA PILCO CONTRERAS | E126: $1,693.40 | F126: FAC ELECTRONICA 001-001-000000004 GABRIELA VIRGINIA PILCO CONTRERAS FACTURAS 001-001-000000004 SUAREZ LUQUE JOSE ENRIQUE | G126: $1,891.57 | H126: FAC ELECTRONICA 001-001-000000007 SUAREZ LUQUE JOSE ENRIQUE FAC 001-001-000000005 GABRIELA VIRGINIA PILCO CONTRERAS | I126: $1,891.57 | J126: FAC ELECTRONICA 001-001-000000006 GABRIELA VIRGINIA PILCO CONTRERAS FAC 001-001-000000008 SUAREZ LUQUE JOSE ENRIQUE | K126: $1,891.57 | L126: FAC 001-001-000000009 SUAREZ LUQUE JOSE ENRIQUE FAC 001-001-000000007 GABRIELA VIRGINIA PILCO CONTRERAS | M126: $1,891.57 | N126: FAC ELECTRONICA 001-001-000000012 SUAREZ LUQUE JOSE ENRIQUE FAC 001-001-000000008 GABRIELA VIRGINIA PILCO CONTRERAS | O126: $1,441.57 | P126: FAC ELECTRONICA 001-001-000000013 SUAREZ LUQUE JOSE ENRIQUE FAC 001-001-000000009 GABRIELA VIRGINIA PILCO CONTRERAS | Q126: $13,667.39
A127: 5.2.1.2.36.2 | B127: Sistema contable | C127: 0 | E127: 0 | G127: $632.40 | H127: FAC ELECTRONICA 001-001-000418803 CONTIFICO | I127: 0 | K127: 0 | M127: 0 | O127: $34.24 | P127: FAC ELECTRONICA 001-002-000082677 CONTIFICO | Q127: $666.64
A128: 5.2.1.2.36.3 | B128: Serv. Conex. Datamovil | C128: $7.99 | D128: FAC ELECTRONICA 001-002-003437864 DATAFAST | E128: $7.99 | F128: FAC ELECTRONICA 001-002-003491814 DATAFAST | G128: $7.99 | H128: FAC ELECTRONICA 001-002-003545542 DATAFAST | I128: $7.99 | J128: FAC ELECTRONICA 001-002-003600351 DATAFAST | K128: $7.99 | L128: FAC ELECTRONICA 001-002-003653537 DATAFAST | M128: $7.99 | N128: FAC ELECTRONICA 001-002-003707888 DATAFAST | O128: $7.99 | P128: FAC ELECTRONICA 001-002-003762867 DATAFAST | Q128: $55.93
A129: 5.2.1.2.36.4 | B129: Pagina Web Urbanización | C129: 0 | E129: 0 | G129: 0 | I129: 0 | K129: 0 | M129: 0 | O129: 0 | Q129: 0
A130: 5.2.1.2.37 | B130: OTROS SERVICIOS ADMINISTRATIVOS | C130: =SUM(C131:C136) -> $695.68 | E130: =SUM(E131:E136) -> $462.46 | G130: =SUM(G131:G136) -> $687.72 | I130: =SUM(I131:I136) -> $1,477.20 | K130: =SUM(K131:K136) -> $596.60 | M130: =SUM(M131:M136) -> $470.53 | O130: =SUM(O131:O136) -> $530.71 | Q130: $4,920.90
A131: 5.2.1.2.37.1 | B131: Movilizaciones y Transporte Administrat. | C131: $100.00 | D131: FAC FISICA 001-001-000000008 AB.JOSE RAMON DE LA TORRE REINA | E131: $100.00 | F131: FAC FISICA 001-001-000000010 AB.JOSE RAMON DE LA TORRE REINA | G131: $124.25 | H131: FAC FISICA 001-001-000000010 AB.JOSE RAMON DE LA TORRE REINA | I131: $108.46 | J131: FAC FISICAFAC 001-001-000000012 AB.JOSE RAMON DE LA TORRE REINA | K131: 0 | M131: 0 | O131: 0 | Q131: $432.71
A132: 5.2.1.2.37.3 | B132: Copias ,Escaneos, Lonas, Banners, etc | C132: 0 | E132: 0 | G132: $40.00 | H132: FAC ELECTRONICA 001-900-000000118 GIGANTOPRINT S.A.S. | I132: $11.70 | J132: DNA 18042023 APIUC | K132: 0 | M132: 0 | O132: $28.76 | P132: FAC ELECTRONICA 001-900-000000338 GIGANTOPRINT S.A.S. | Q132: $80.46
A133: 5.2.1.2.37.4 | B133: Gastos Navideños- cenas y bonos | C133: $3.49 | D133: FACTURA ELECTRONICA 176-113-000130149 LA FAVORITA | E133: 0 | G133: 0 | I133: 0 | K133: 0 | M133: 0 | O133: 0 | Q133: $3.49
A134: 5.2.1.2.37.6 | B134: Otros Gastos Administrativos - Bonos | C134: $32.26 | D134: FAC FISICA 138-032-000139308 CORPORACION EL ROSADO S.A. | E134: 0 | G134: $32.34 | H134: FAC ELECTRONICA 033-904-000308332 KIWI | I134: $57.60 | J134: NVE 001-001-000000072 VILLON VELASTEGUI JORGE EMILIO | K134: 0 | M134: 0 | O134: $12.00 | P134: NVE 001-001-000000119 GARCIA MIKRANDA KERLYN JACQUELINE | Q134: $134.20
A135: 5.2.1.2.37.9 | B135: IVA cargado al Gasto | C135: $559.93 | E135: $362.46 | G135: $466.99 | I135: $1,166.80 | K135: $583.60 | M135: $470.53 | O135: $488.29 | Q135: $4,098.60
A136: 5.2.1.2.37.11 | B136: Refrigerios o alimentación administ | C136: 0 | E136: 0 | G136: $24.14 | H136: FAC FISICA 001-001-000631519 FLORES GARCIA SANTOS EDMUNDO | I136: $132.64 | J136: FAC 001-001-000002353 SANCHEZ RODAS JOSE ANTONIO | K136: $13.00 | L136: DNA 0711 APIUC | M136: 0 | O136: $1.66 | P136: FAC 001-100-000015252 FLORES GARCIA SANTOS EDMUNDO | Q136: $171.44
A137: 5.2.1.3 | B137: GASTOS FINANCIEROS | C137: =SUM(C138:C139) -> $197.66 | E137: =SUM(E138:E139) -> $9.97 | G137: =SUM(G138:G139) -> $1.80 | I137: =SUM(I138:I139) -> $1.79 | K137: =SUM(K138:K139) -> $1.79 | M137: =SUM(M138:M139) -> $9.57 | O137: =SUM(O138:O139) -> $8.56 | Q137: $231.14
A138: 5.2.1.3.1 | B138: Comisiones Instituc. del Sist. financiero Privad | C138: $32.08 | D138: FACT ELECTR.113-001-185961959- 113-001-185962015-113-001-185962067 113-001-185962121 113-001-185962171BANCO PACIFICO | E138: $9.97 | F138: DNA 13022023- 220-220-000000023 APIUC | G138: $1.80 | H138: DNA 13022023- 220-220-000000023 APIUC | I138: $1.79 | J138: DNA 27042023 APIUC | K138: $1.79 | L138: DNA 17052023 APIUC | M138: $9.57 | N138: DNA 07062023 APIUC | O138: $8.56 | P138: DNA 5701 DNA 2507 COMISION PACIFICO | Q138: $65.56
A139: 5.2.1.3.8 | B139: Otros gastos Financieros | C139: $165.58 | D139: FAC ELECTRONICA 001-001-000000002 GABRIELA VIRGINIA PILCO CONTRERAS | E139: 0 | G139: 0 | I139: 0 | K139: 0 | M139: 0 | O139: 0 | Q139: $165.58
A140: 5.2.2 | B140: GASTOS NO OPERACIONALES | C140: =+C141 -> $72.93 | E140: =+E141 -> $0.41 | G140: =+G141 -> $26.09 | I140: =+I141 -> $26.93 | K140: =+K141 -> $22.62 | M140: =+M141 -> $47.76 | O140: =+O141 -> $22.58 | Q140: $219.32
A141: 5.2.2.1 | B141: OTROS GASTOS | C141: =SUM(C142:C145) -> $72.93 | E141: =SUM(E142:E145) -> $0.41 | G141: =SUM(G142:G145) -> $26.09 | I141: =SUM(I142:I145) -> $26.93 | K141: =SUM(K142:K145) -> $22.62 | M141: =SUM(M142:M145) -> $47.76 | O141: =SUM(O142:O145) -> $22.58 | Q141: $219.32
A142: 5.2.2.1.2 | B142: Intereses y multas varias | C142: $45.49 | D142: EGR 202301000071 IESS | E142: 0 | G142: 0 | I142: 0 | K142: 0 | M142: 0 | O142: 0 | Q142: $45.49
A143: 5.2.2.1.4 | B143: Intereses y multas IESS | C143: $27.44 | E143: $0.41 | G143: $26.09 | I143: $26.93 | K143: $22.62 | M143: $21.66 | O143: $22.58 | Q143: $147.73
A144: 5.2.2.1.9 | B144: Gastos de Gestión | C144: 0 | E144: 0 | G144: 0 | I144: 0 | K144: 0 | M144: $12.00 | N144: DNA 28062023 ASOCIACION DE PROPIETARIOS DE INMUEBLES DE LA URBANIZACION CATALUÑA | O144: 0 | Q144: $12.00
A145: 5.2.2.1.10 | B145: Retenciones Asumidas | C145: 0 | E145: 0 | G145: 0 | I145: 0 | K145: 0 | M145: $14.10 | O145: 0 | Q145: $14.10
B146: PERDIDAS / GANANCIAS | C146: =+C3-C22 -> $7,127.92 | E146: =+E3-E22 -> -$2,106.86 | G146: =+G3-G22 -> $2,643.08 | I146: =+I3-I22 -> -$3,532.12 | K146: =+K3-K22 -> $820.04 | M146: =+M3-M22 -> $4,351.81 | O146: =+O3-O22 -> $947.90 | Q146: =+Q3-Q22 -> $10,251.77

Sheet DETALLE DE AGOSTO A DICI 2023
A1: ASOCIACION DE PROPIETARIOS DE INMUEBLES DE LA URBANIZACION CATALUNA
A2: Codigo Cta. | B2: Detalle Cuentas | C2: AGOSTO | E2: SEPTIEMBRE | G2: OCTUBRE | I2: NOVIEMBRE | K2: DICIEMBRE | M2: TOTAL | N2: TOTAL EN-JULIO | O2: TOTAL AÑO
A3: 4 | B3: Ingresos | C3: 25,083.00 | E3: 28,678.00 | G3: 22,893.00 | I3: 24,906.90 | K3: 36,319.00 | M3: =SUM(C3:L3) -> 137,879.90 | N3: =+'DETALLE ENERO A JULIO 2023'!Q3 -> 210,444.76 | O3: =+N3+M3 -> 348,324.66
A4: 4.1 | B4: Ingresos de Actividades Ordinarias | C4: =+C5 -> 24,985.50 | E4: =+E5 -> 28,510.00 | G4: =+G5 -> 22,755.00 | I4: =+I5 -> 24,742.50 | K4: =+K5 -> 36,319.00 | M4: =SUM(C4:L4) -> 137,312.00 | N4: =+'DETALLE ENERO A JULIO 2023'!Q4 -> 209,267.00 | O4: =+N4+M4 -> 346,579.00
A5: 4.1.2 | B5: INGRESOS ORDINARIOS DE LA URBANIZACION | C5: =SUM(C6:D9) -> 24,985.50 | E5: =SUM(E6:F9) -> 28,510.00 | G5: =SUM(G6:H9) -> 22,755.00 | I5: =SUM(I6:J9) -> 24,742.50 | K5: =SUM(K6:L9) -> 36,319.00 | M5: 137,312.00 | N5: =+'DETALLE ENERO A JULIO 2023'!Q5 -> 209,267.00 | O5: 346,579.00
A6: 4.1.2.1 | B6: Ingreso por Alicuotas | C6: 24,163.00 | E6: 27,420.00 | G6: 22,155.00 | I6: 23,817.50 | K6: 35,784.00 | M6: =SUM(C6:L6) -> 133,339.50 | N6: =+'DETALLE ENERO A JULIO 2023'!Q6 -> 203,877.00 | O6: 337,216.50
A7: 4.1.2.2 | B7: Ingreso uso de área Social | C7: 97.50 | E7: 0.00 | G7: 0.00 | I7: 100.00 | K7: 0.00 | M7: =SUM(C7:L7) -> 197.50 | N7: =+'DETALLE ENERO A JULIO 2023'!Q7 -> 170.00 | O7: 367.50
A8: 4.1.2.3 | B8: Ingresos por TAGS- Accesos a Urbanización | C8: 405.00 | E8: 450.00 | G8: 480.00 | I8: 300.00 | K8: 390.00 | M8: 2,025.00 | N8: =+'DETALLE ENERO A JULIO 2023'!Q8 -> 3,570.00 | O8: 5,595.00
A9: 4.1.2.4 | B9: Alquiler Parque Acuático | C9: 320.00 | E9: 640.00 | G9: 120.00 | I9: 525.00 | K9: 145.00 | M9: 1,750.00 | N9: =+'DETALLE ENERO A JULIO 2023'!Q9 -> 1,650.00 | O9: 3,400.00
A10: 4.2 | B10: Otros Ingresos | C10: =SUM(C11:D15) -> 97.50 | E10: =SUM(E11:F15) -> 168.00 | G10: =SUM(G11:H15) -> 138.00 | I10: =SUM(I11:J15) -> 164.40 | K10: =SUM(K11:L15) -> 0.00 | M10: 567.90 | N10: =+'DETALLE ENERO A JULIO 2023'!Q10 -> 1,176.64 | O10: 1,744.54
A11: 4.2.1 | B11: Cursos vacacionales | C11: 0.00 | E11: 0.00 | G11: 0.00 | I11: 0.00 | K11: 0.00 | M11: 0.00 | N11: =+'DETALLE ENERO A JULIO 2023'!Q11 -> 100.00 | O11: 100.00
A12: 4.2.3 | B12: Ingresos multas empleados | C12: 0.00 | E12: 30.00 | G12: 0.00 | I12: 13.65 | K12: 0.00 | M12: 43.65 | N12: =+'DETALLE ENERO A JULIO 2023'!Q12 -> 0.00 | O12: 43.65
A13: 4.2.4 | B13: Ingresos varios | C13: 0.00 | E13: 0.00 | G13: 0.00 | I13: 0.00 | K13: 0.00 | M13: 0.00 | N13: =+'DETALLE ENERO A JULIO 2023'!Q13 -> 0.14 | O13: 0.14
A14: 4.2.5 | B14: Ingreso uso de cancha de futball S/F (incluye Escuela de Futbol) | C14: 0.00 | E14: 0.00 | G14: 0.00 | I14: 36.00 | K14: 0.00 | M14: 36.00 | N14: =+'DETALLE ENERO A JULIO 2023'!Q14 -> 574.75 | O14: 610.75
A15: 4.2.6 | B15: Ingreso por Uso de Cancha Múltiple (Incluye escuela de Basket) | C15: 97.50 | E15: 138.00 | G15: 138.00 | I15: 114.75 | K15: 0.00 | M15: 488.25 | N15: =+'DETALLE ENERO A JULIO 2023'!Q15 -> 501.75 | O15: 990.00
A16: 4.3 | B16: Otros Ingresos Financieros | C16: =SUM(C17:D18) -> 0.00 | E16: =SUM(E17:F18) -> 0.00 | G16: =SUM(G17:H18) -> 0.00 | I16: =SUM(I17:J18) -> 0.00 | K16: =SUM(K17:L18) -> 0.00 | M16: 0.00 | N16: =+'DETALLE ENERO A JULIO 2023'!Q16 -> 1.12 | O16: 1.12
A17: 4.3.1 | B17: Cobros tarjetas de credito | C17: 0.00 | E17: 0.00 | G17: 0.00 | I17: 0.00 | K17: 0.00 | M17: 0.00 | N17: =+'DETALLE ENERO A JULIO 2023'!Q17 -> 0.19 | O17: 0.19
A18: 4.3.2 | B18: Intereses cta horro | C18: 0.00 | E18: 0.00 | G18: 0.00 | I18: 0.00 | K18: 0.00 | M18: 0.00 | N18: =+'DETALLE ENERO A JULIO 2023'!Q18 -> 0.93 | O18: 0.93
A19: 4.4 | B19: Ingresos por Operaciones Discontinuadas | C19: 0.00 | E19: 0.00 | G19: 0.00 | I19: 0.00 | K19: 0.00 | M19: 0.00 | N19: =+'DETALLE ENERO A JULIO 2023'!Q19 -> 0.00 | O19: 0.00
A21: . | B21: COSTOS Y GASTOS | C21: VALORES | D21: FACTURAS FISICA / ELECTRONICA | E21: VALORES | F21: FACTURAS FISICA / ELECTRONICA | G21: VALORES | H21: FACTURAS FISICA / ELECTRONICA | I21: VALORES | J21: FACTURAS FISICA / ELECTRONICA | K21: VALORES | L21: FACTURAS FISICA / ELECTRONICA | M21: TOTAL | N21: =+'DETALLE ENERO A JULIO 2023'!Q21 -> TOTAL
A22: 5 | B22: COSTOS Y GASTOS | C22: =+C23+C100+C141 -> $26,240.53 | D22: =26240.53-C22 -> 0 | E22: =+E23+E100+E141 -> $27,083.95 | G22: =+G23+G100+G141 -> $26,269.50 | I22: =+I23+I100+I141 -> $26,304.53 | K22: =+K23+K100+K141 -> $34,657.07 | M22: =SUM(C22:L22) -> 140,555.58 | N22: =+'DETALLE ENERO A JULIO 2023'!Q22 -> 200,192.99 | O22: =+M22+N22 -> 340,748.57
A23: 5.1 | B23: COSTOS DE LA URBANIZACION | C23: =+C24+C49 -> $21,976.10 | E23: =+E24+E49 -> $22,847.81 | G23: =+G24+G49 -> $22,185.14 | I23: =+I24+I49 -> $22,418.55 | K23: =+K24+K49 -> $22,189.35 | M23: =SUM(C23:K23) -> $111,616.95 | N23: =+'DETALLE ENERO A JULIO 2023'!Q23 -> 162,588.59 | O23: =+M23+N23 -> 274,205.54
A24: 5.1.1 | B24: COSTOS DEL PERSONAL OPERATIVO | C24: =+C25+C30+C39+C45 -> $13,568.33 | E24: =+E25+E30+E39+E45 -> $13,665.74 | G24: =+G25+G30+G39+G45 -> $13,696.26 | I24: =+I25+I30+I39+I45 -> $14,401.32 | K24: =+K25+K30+K39+K45 -> $14,614.75 | M24: =SUM(C24:K24) -> $69,946.40 | N24: =+'DETALLE ENERO A JULIO 2023'!Q24 -> 99,377.58 | O24: 169,323.98
A25: 5.1.1.1 | B25: REMUNERACIONES PERSONAL OPERATIVO | C25: =SUM(C26:C29) -> $9,650.69 | E25: =SUM(E26:E29) -> $9,690.60 | G25: =SUM(G26:G29) -> $9,871.54 | I25: =SUM(I26:I29) -> $10,157.67 | K25: =SUM(K26:K29) -> $10,450.12 | M25: $49,820.62 | N25: =+'DETALLE ENERO A JULIO 2023'!Q25 -> 68,009.78 | O25: 117,830.40
A26: 5.1.1.1.1 | B26: Sueldos y salarios Guardianía | C26: $4,989.60 | D26: ROLES | E26: $5,039.60 | F26: ROLES | G26: $4,989.60 | H26: ROLES | I26: $4,994.60 | J26: ROLES | K26: $5,089.60 | L26: ROLES | M26: $25,103.00 | N26: =+'DETALLE ENERO A JULIO 2023'!Q26 -> 33,740.71 | O26: 58,843.71
A27: 5.1.1.1.2 | B27: Sueldos y Salarios Mantenimiento | C27: $2,255.45 | D27: ROLES | E27: $2,250.04 | F27: ROLES | G27: $2,750.04 | H27: ROLES | I27: $2,753.11 | J27: ROLES | K27: $2,250.04 | L27: ROLES | M27: $12,258.68 | N27: =+'DETALLE ENERO A JULIO 2023'!Q27 -> 18,600.44 | O27: 30,859.12
A28: 5.1.1.1.3 | B28: Horas Extras - Guardianía | C28: $1,977.20 | D28: ROLES | E28: $2,020.33 | F28: ROLES | G28: $1,875.02 | H28: ROLES | I28: $1,690.00 | J28: ROLES | K28: $2,557.15 | L28: ROLES | M28: $10,119.70 | N28: =+'DETALLE ENERO A JULIO 2023'!Q28 -> 11,464.77 | O28: 21,584.47
A29: 5.1.1.1.4 | B29: Horas Extras Mantenimiento | C29: $428.44 | D29: ROLES | E29: $380.63 | F29: ROLES | G29: $256.88 | H29: ROLES | I29: $719.96 | J29: ROLES | K29: $553.33 | L29: ROLES | M29: $2,339.24 | N29: =+'DETALLE ENERO A JULIO 2023'!Q29 -> 4,203.86 | O29: 6,543.10
A30: 5.1.1.2 | B30: BENEFICIOS SOCIALES PERSONAL OPERATIVO | C30: =SUM(C31:C38) -> $2,038.68 | E30: =SUM(E31:E38) -> $2,038.73 | G30: =SUM(G31:G38) -> $1,999.07 | I30: =SUM(I31:I38) -> $2,179.65 | K30: =SUM(K31:K38) -> $2,148.37 | M30: $10,404.50 | N30: =+'DETALLE ENERO A JULIO 2023'!Q30 -> 17,682.66 | O30: 28,087.16
A31: 5.1.1.2.1 | B31: 13ER Sueldo - Guardiania | C31: $580.55 | D31: ROLES | E31: $584.15 | F31: ROLES | G31: $572.06 | H31: ROLES | I31: $635.45 | J31: ROLES | K31: $628.91 | L31: ROLES | M31: $3,001.12 | N31: =+'DETALLE ENERO A JULIO 2023'!Q31 -> 3,999.99 | O31: 7,001.11
A32: 5.1.1.2.2 | B32: 13er Sueldo - Mantenimiento | C32: $223.21 | D32: ROLES | E32: $219.22 | F32: ROLES | G32: $208.91 | H32: ROLES | I32: $247.50 | J32: ROLES | K32: $233.61 | L32: ROLES | M32: $1,132.45 | N32: =+'DETALLE ENERO A JULIO 2023'!Q32 -> 2,392.37 | O32: 3,524.82
A33: 5.1.1.2.3 | B33: 14to Sueldo - Guardiania | C33: $412.50 | D33: ROLES | E33: $412.50 | F33: ROLES | G33: $412.50 | H33: ROLES | I33: $412.50 | J33: ROLES | K33: $412.50 | L33: ROLES | M33: $2,062.50 | N33: =+'DETALLE ENERO A JULIO 2023'!Q33 -> 3,832.15 | O33: 5,894.65
A34: 5.1.1.2.4 | B34: 14to Sueldo - Mantenimiento | C34: $187.50 | D34: ROLES | E34: $187.50 | F34: ROLES | G34: $187.50 | H34: ROLES | I34: $187.50 | J34: ROLES | K34: $187.50 | L34: ROLES | M34: $937.50 | N34: =+'DETALLE ENERO A JULIO 2023'!Q34 -> 2,729.92 | O34: 3,667.42
A35: 5.1.1.2.5 | B35: Vacaciones - Guardiania | C35: $383.05 | D35: ROLES | E35: $386.04 | F35: ROLES | G35: $377.34 | H35: ROLES | I35: $419.25 | J35: ROLES | K35: $419.19 | L35: ROLES | M35: $1,984.87 | N35: =+'DETALLE ENERO A JULIO 2023'!Q35 -> 2,616.65 | O35: 4,601.52
A36: 5.1.1.2.6 | B36: Vacaciones - Mantenimiento | C36: $155.42 | D36: ROLES | E36: $152.90 | F36: ROLES | G36: $147.06 | H36: ROLES | I36: $171.50 | J36: ROLES | K36: $163.16 | L36: ROLES | M36: $790.04 | N36: =+'DETALLE ENERO A JULIO 2023'!Q36 -> 1,314.72 | O36: 2,104.76
A37: 5.1.1.2.7 | B37: Secap - Iece Guardiania | C37: $69.67 | D37: ROLES | E37: $70.11 | F37: ROLES | G37: $68.63 | H37: ROLES | I37: $76.25 | J37: ROLES | K37: $75.47 | L37: ROLES | M37: $360.13 | N37: =+'DETALLE ENERO A JULIO 2023'!Q37 -> 527.41 | O37: 887.54
A38: 5.1.1.2.8 | B38: Secap - Iece Mantenimiento | C38: $26.78 | D38: ROLES | E38: $26.31 | F38: ROLES | G38: $25.07 | H38: ROLES | I38: $29.70 | J38: ROLES | K38: $28.03 | L38: ROLES | M38: $135.89 | N38: =+'DETALLE ENERO A JULIO 2023'!Q38 -> 269.45 | O38: 405.34
A39: 5.1.1.3 | B39: APORTES AL IESS PERSONAL OPERATIVO | C39: =SUM(C40:C43) -> $1,878.96 | E39: =SUM(E40:E43) -> $1,936.41 | G39: =SUM(G40:G43) -> $1,825.65 | I39: =SUM(I40:I43) -> $2,064.00 | K39: =SUM(K40:K43) -> $2,016.26 | M39: $9,721.28 | N39: =+'DETALLE ENERO A JULIO 2023'!Q39 -> 13,675.77 | O39: 23,397.05
A40: 5.1.1.3.1 | B40: Aporte patronal - Guardianía | C40: $776.81 | D40: ROLES | E40: $781.63 | F40: ROLES | G40: $765.44 | H40: ROLES | I40: $850.23 | J40: ROLES | K40: $841.48 | L40: ROLES | M40: $4,015.59 | N40: =+'DETALLE ENERO A JULIO 2023'!Q40 -> 5,352.01 | O40: 9,367.60
A41: 5.1.1.3.2 | B41: Aporte patronal - Mantenimiento | C41: $298.67 | D41: ROLES | E41: $293.33 | F41: ROLES | G41: $279.54 | H41: ROLES | I41: $331.17 | J41: ROLES | K41: $312.59 | L41: ROLES | M41: $1,515.30 | N41: =+'DETALLE ENERO A JULIO 2023'!Q41 -> 2,475.74 | O41: 3,991.04
A42: 5.1.1.3.3 | B42: Fondo de Reserva - Guardianía | C42: $580.35 | D42: ROLES | E42: $642.30 | F42: ROLES | G42: $571.83 | H42: ROLES | I42: $635.19 | J42: ROLES | K42: $628.65 | L42: ROLES | M42: $3,058.32 | N42: =+'DETALLE ENERO A JULIO 2023'!Q42 -> 3,998.40 | O42: 7,056.72
A43: 5.1.1.3.4 | B43: Fondo de Reserva - Mantenimiento | C43: $223.13 | D43: ROLES | E43: $219.15 | F43: ROLES | G43: $208.84 | H43: ROLES | I43: $247.41 | J43: ROLES | K43: $233.54 | L43: ROLES | M43: $1,132.07 | N43: =+'DETALLE ENERO A JULIO 2023'!Q43 -> 1,849.62 | O43: 2,981.69
A44: 5.1.1.4 | B44: BONIFICAC. POR DESAHUC. INDEMNIZAC. PER | C44: 0 | E44: 0 | G44: 0 | I44: 0 | K44: 0 | M44: 0 | N44: =+'DETALLE ENERO A JULIO 2023'!Q44 -> 9.37 | O44: 9.37
A45: 5.1.1.5 | B45: OTROS COSTOS DEL PERSONAL OPERATIVO | C45: =SUM(C46:C48) -> 0 | E45: =SUM(E46:E48) -> 0 | G45: =SUM(G46:G48) -> 0 | I45: =SUM(I46:I48) -> 0 | K45: =SUM(K46:K48) -> 0 | M45: 0 | N45: =+'DETALLE ENERO A JULIO 2023'!Q45 -> 9.37 | O45: 9.37
A46: 5.1.1.5.3 | B46: Alimentación - Guardias | C46: 0 | E46: 0 | G46: 0 | I46: 0 | K46: 0 | M46: 0 | N46: =+'DETALLE ENERO A JULIO 2023'!Q46 -> 0.75 | O46: 0.75
A47: 5.1.1.5.4 | B47: Alimentación - Mantenimiento | C47: 0 | E47: 0 | G47: 0 | I47: 0 | K47: 0 | M47: 0 | N47: =+'DETALLE ENERO A JULIO 2023'!Q47 -> 3.00 | O47: 3.00
A48: 5.1.1.5.7 | B48: Otras Bonificaciones - Guardianía | C48: 0 | E48: 0 | G48: 0 | I48: 0 | K48: 0 | M48: 0 | N48: =+'DETALLE ENERO A JULIO 2023'!Q48 -> 5.62 | O48: 5.62
A49: 5.1.2 | B49: COSTOS GENERALES DE LA URBANIZACION | C49: =+C50+C59+C77+C90+C92 -> $8,407.77 | E49: =+E50+E59+E77+E90+E92 -> $9,182.07 | G49: =+G50+G59+G77+G90+G92 -> $8,488.88 | I49: =+I50+I59+I77+I90+I92 -> $8,017.23 | K49: =+K50+K59+K77+K90+K92 -> $7,574.60 | M49: =+M50+M59+M77+M90+M92 -> $41,670.55 | N49: =+'DETALLE ENERO A JULIO 2023'!Q49 -> 63,211.01 | O49: 104,881.56
A50: 5.1.2.1 | B50: SUMINISTROS Y MATERIALES | C50: =SUM(C51:C58) -> $78.49 | E50: =SUM(E51:E58) -> $203.59 | G50: =SUM(G51:G58) -> $151.06 | I50: =SUM(I51:I58) -> $130.00 | K50: =SUM(K51:K58) -> $76.22 | M50: $639.36 | N50: =+'DETALLE ENERO A JULIO 2023'!Q50 -> 5,036.47 | O50: 5,675.83
A51: 5.1.2.1.1 | B51: Útiles de aseo y Limpieza Urbanización | C51: 0 | E51: 0 | G51: 0 | I51: 0 | K51: 0 | M51: 0 | N51: =+'DETALLE ENERO A JULIO 2023'!Q51 -> 175.90 | O51: 175.90
A52: 5.1.2.1.2 | B52: Químicos para piscinas | C52: 0 | E52: 0 | G52: 0 | I52: 0 | K52: 0 | M52: 0 | N52: =+'DETALLE ENERO A JULIO 2023'!Q52 -> 284.00 | O52: 284.00
A53: 5.1.2.1.3 | B53: Materiales para área Social | C53: 0 | E53: 0 | G53: 0 | I53: 0 | K53: 0 | M53: 0 | N53: =+'DETALLE ENERO A JULIO 2023'!Q53 -> 30.00 | O53: 30.00
A54: 5.1.2.1.4 | B54: Materiales para guardianía | C54: 0 | E54: 0 | G54: 0 | I54: 0 | K54: 0 | M54: 0 | N54: =+'DETALLE ENERO A JULIO 2023'!Q54 -> 3.12 | O54: 3.12
A55: 5.1.2.1.5 | B55: Plantas e insumos varios, Fumigación - Jardin | C55: $3.50 | D55: FACTURA ELECTRONICAS 001-100-000252560 TARDI S.A. | E55: $3.50 | F55: FACTURA ELECTRONICAS 001-100-000255264 TARDI S.A. | G55: $8.93 | H55: FACTURA ELECTRONICAS 001-100-000257712 TARDI S.A. | I55: 0 | K55: $5.87 | L55: FACTURA ELECTRONICAS 033-902-000532037 KYWI | M55: $21.80 | N55: =+'DETALLE ENERO A JULIO 2023'!Q55 -> 1,347.98 | O55: 1,369.78
A56: 5.1.2.1.7 | B56: Herramientas varias | C56: 0 | E56: $95.59 | F56: FAC ELECTRONICA 001-002-000001653 CARABAJO AVELINO KATHERINE VANESSA | G56: 0 | I56: 0 | K56: 0 | M56: $95.59 | N56: =+'DETALLE ENERO A JULIO 2023'!Q56 -> 0.00 | O56: 95.59
A57: 5.1.2.1.8 | B57: Combustibles | C57: $74.99 | D57: FACTURA ELECTRONICA 001-008-000936994 001-009-000908991 001-009-000909933 001-010-000827764 001-010-000827765 GAITALIN S.A. 005-012-000045494 LA CHIRIPA CHIRS 003-009-000135569 ESTACION DE SERVICIOS ALPASO S.A. | E57: $87.49 | F57: FACTURA ELECTRONICA 001-009-000919044 001-008-000951690 001-008-000954243 001-009-000925827 001-008-000962486 GAITALIN S.A. 003-001-000337663 003-001-000338750 ESTACION DE SERVICIOS ALPASO S.A. | G57: $102.59 | H57: FACTURAS ELECTRONICAS 001-013-000731102 001-012-000511468 001-012-000511469 001-011-000597065 001-011-000597064 GAITALIN S.A. 005-012-000062686 FAC 004-001-000211711 COSTAKARIM S.A. | I57: $106.96 | J57: FACTURAS ELECTRONICAS 001-008-000098916 001-009-000948434 001-010-000858195 001-008-000985786 001-008-000985787 001-013-000747546 001-010-000863275 GAITALIN 003-005-000463579 003-005-000463578 003-002-000253038 ESTACION DE SERVICIOS ALPASO S.A. | K57: $70.35 | L57: FACTURA ELECTRONICA 003-009-000149367 003-002-000256473 003-006-000270593 005-011-000081125 005-011-000081124 ESTACION DE SERVICIOS ALPASO S.A. 001-013-000753237 GAITALIN S.A. 004-112-000397310 GESURYMACA S.A. | M57: $442.38 | N57: =+'DETALLE ENERO A JULIO 2023'!Q57 -> 668.14 | O57: 1,110.52
A58: 5.1.2.1.9 | B58: Otros insumos para mantenimientos | C58: 0 | E58: $17.01 | F58: FACTURAS ELECTRONICAS 001-100-000001212 001-100-000001213 FIENCO LOOR HILDA JANETH 001-002-000019716 COMSALINAS CIA. LTDA. | G58: $39.54 | H58: FACTURAS ELECTRONICAS 002-002-000000092 002-002-000000093 FERRILUVE 001-100-000001423 001-100-000001328 FIENCO LOOR HILDA JANETH | I58: $23.04 | J58: FACTURAS ELECTRONICAS 001-100-000001533 FIENCO LOOR HILDA JANETH | K58: 0 | M58: $79.59 | N58: =+'DETALLE ENERO A JULIO 2023'!Q58 -> 2,527.33 | O58: 2,606.92
A59: 5.1.2.2 | B59: MANTENIMIENTOS GENERALES URBANIZACION | C59: =+C60+C66 -> $1,260.20 | E59: =+E60+E66 -> $2,133.38 | G59: =+G60+G66 -> $1,353.20 | I59: =+I60+I66 -> $1,141.36 | K59: =+K60+K66 -> $548.45 | M59: $6,436.59 | N59: =+'DETALLE ENERO A JULIO 2023'!Q59 -> 9,339.98 | O59: 15,776.57
A60: 5.1.2.2.2 | B60: Mantenim. Y Reparac. Maquin y Equipos | C60: =SUM(C61:C65) -> $64.20 | E60: =SUM(E61:E65) -> $506.00 | G60: =SUM(G61:G65) -> $297.71 | I60: =SUM(I61:I65) -> $6.77 | K60: =SUM(K61:K65) -> 0 | M60: $874.68 | N60: =+'DETALLE ENERO A JULIO 2023'!Q60 -> 1,367.62 | O60: 2,242.30
A61: 5.1.2.2.2.3 | B61: Manteniminto corta cesped | C61: 0 | E61: 0 | G61: 0 | I61: 0 | K61: 0 | M61: 0 | N61: =+'DETALLE ENERO A JULIO 2023'!Q61 -> 55.00 | O61: 55.00
A62: 5.1.2.2.2.7 | B62: Mantenimiento Cámaras de seguridad y cer | C62: 0 | E62: $416.00 | F62: FACTURA FISICA NVE 001-001-000002411 RIVAS PIÑA VICTOR GABRIEL | G62: $278.21 | H62: FACTURA FISICA 001-002-000000034 VACACELA DIAZ ANGEL | I62: 0 | K62: 0 | M62: $694.21 | N62: =+'DETALLE ENERO A JULIO 2023'!Q62 -> 0.00 | O62: 694.21
A63: 5.1.2.2.2.9 | B63: Mantenimiento parlantes | C63: 0 | E63: 0 | G63: 0 | I63: 0 | K63: 0 | M63: 0 | N63: =+'DETALLE ENERO A JULIO 2023'!Q63 -> 119.00 | O63: 119.00
A64: 5.1.2.2.2.10 | B64: Mantenimiento Bicicletas | C64: $55.75 | D64: FACTURA FISICA NVE 002-001-000001756 FERRILUVE NVE 001-001-000000008 NVE 001-001-000000021 NVE 001-001-000000022 NVE 001-001-000000026 SUPER BIKE SHOP | E64: $20.00 | F64: FACTURA FISICA NVE 001-001-000000039 NVE 001-001-000000040 SUPER BIKE SHOP NVE 001-001-000022661 BICIMOTOS | G64: $19.50 | H64: FACTURA FISICA NVE 001-001-000022677 BICIMOTOS NVE 001-001-000000061 SUPER BIKE SHOP | I64: $6.77 | J64: FACTURA FISICA NVE 001-001-000000077 NVE 001-001-000000088 SUPER BIKE SHOP | K64: 0 | M64: $102.02 | N64: =+'DETALLE ENERO A JULIO 2023'!Q64 -> 263.28 | O64: 365.30
A65: 5.1.2.2.2.12 | B65: Mantenimiento Equipos GYM | C65: $8.45 | D65: FACTURAS ELECTRONICAS 033-907-000087480 COMERCIAL KYWI S.A. | E65: $70.00 | F65: FACTURA FISICA NVE 001-001-000000031 GAVIDIA LEMACHE LUIS ALBERTO | G65: 0 | I65: 0 | K65: 0 | M65: $78.45 | N65: =+'DETALLE ENERO A JULIO 2023'!Q65 -> 930.34 | O65: 1,008.79
A66: 5.1.2.2.4 | B66: Mantenim. de Instalaciones | C66: =SUM(C67:C76) -> $1,196.00 | E66: =SUM(E67:E76) -> $1,627.38 | G66: =SUM(G67:G76) -> $1,055.49 | I66: =SUM(I67:I76) -> $1,134.59 | K66: =SUM(K67:K76) -> $548.45 | M66: $5,561.91 | N66: =+'DETALLE ENERO A JULIO 2023'!Q66 -> 7,972.36 | O66: 13,534.27
A67: 5.1.2.2.4.1 | B67: Pintada de Urbanización y sus areas | C67: 0 | E67: 0 | G67: $123.24 | H67: FACTURAS ELECTRONICAS 002-103-000004735 HORMICORP S.A. 018-100-000026446 MEGAMETALES S.A. | I67: 0 | K67: 0 | M67: $123.24 | N67: =+'DETALLE ENERO A JULIO 2023'!Q67 -> 6.77 | O67: 130.01
A68: 5.1.2.2.4.3 | B68: Barras de acceso Garita | C68: 0 | E68: 0 | G68: 0 | I68: 0 | K68: 0 | M68: 0 | N68: =+'DETALLE ENERO A JULIO 2023'!Q68 -> 689.00 | O68: 689.00
A69: 5.1.2.2.4.4 | B69: Mantenimiento Jardinerias | C69: $50.00 | D69: FACTURAS FISICAS NVE 001-001-000000631 OCHOA ARELLANO JOSE ANTONIO FAC 001-001-000000632 OCHOA ARELLANO JOSE ANTONIO | E69: $218.48 | F69: FACTURA ELECTRONICA 002-002-000017441 002-002-000017687 LIDERCOMPANY S.A. 001-100-000002560 YAGUAL BRUCEL SHIRLEY KATHERINE | G69: $197.00 | H69: FACTURAS FISICA 001-001-000000672 OCHOA ARELLANO JOSE ANTONIO | I69: $18.59 | J69: FACTURAS ELECTRONICAS 001-100-000003841 001-100-000004098 001-100-000004256 YAGUAL BRUCEL SHIRLEY KATHERINE | K69: $2.45 | L69: FACTURA ELECTRONICA 002-002-000000227 FERRILUVE | M69: $486.52 | N69: =+'DETALLE ENERO A JULIO 2023'!Q69 -> 453.71 | O69: 940.23
A70: 5.1.2.2.4.5 | B70: Mantenimiento Piscinas | C70: $1,146.00 | D70: FACTURA FISICA NVE 001-001-000000012 JARAMILLO RAMIREZ EDEN GABRIEL FACTURA ELECTRONICA FAC 001-003-000000083 AGUAMUNDO | E70: $1,146.00 | F70: FACTURA FISICA NVE 001-001-000000013 JARAMILLO RAMIREZ EDEN GABRIEL FACTURA ELECTRONICA FAC 001-003-000000097 AGUAMUNDO | G70: $646.00 | H70: FACTURA FISICA NVE 001-001-000000015 JARAMILLO RAMIREZ EDEN GABRIEL FACTURA ELECTRONICA FAC 001-003-000000109 AGUAMUNDO | I70: $646.00 | J70: FACTURA FISICA NVE 001-001-000000018 JARAMILLO RAMIREZ EDEN GABRIEL FACTURA ELECTRONICA FAC 001-003-000000118 AGUAMUNDO | K70: $546.00 | L70: FACTURA ELECTRONICA FAC 001-003-000000126 AGUAMUNDO | M70: $4,130.00 | N70: =+'DETALLE ENERO A JULIO 2023'!Q70 -> 5,586.17 | O70: 9,716.17
A71: 5.1.2.2.4.6 | B71: Mantenimiento Banderas APIUC | C71: 0 | E71: $60.00 | F71: FACTURA FISICA NVE 001-001-000000019 ORQUEDA CHASIN GRACIA MIKAELA | G71: 0 | I71: 0 | K71: 0 | M71: $60.00 | N71: =+'DETALLE ENERO A JULIO 2023'!Q71 -> 112.00 | O71: 172.00
A72: 5.1.2.2.4.7 | B72: Mantenimiento canchas de futball | C72: 0 | E72: 0 | G72: 0 | I72: 0 | K72: 0 | M72: 0 | N72: =+'DETALLE ENERO A JULIO 2023'!Q72 -> 732.77 | O72: 732.77
A73: 5.1.2.2.4.8 | B73: Mantenimiento Parque acuático | C73: 0 | E73: 0 | G73: 0 | I73: $470.00 | J73: FACTURA FISICA NVE 001-001-000074017 LA CASA DEL REBOBINADOR | K73: 0 | M73: $470.00 | N73: =+'DETALLE ENERO A JULIO 2023'!Q73 -> 144.85 | O73: 614.85
A74: 5.1.2.2.4.9 | B74: Mantenimientos de la Garita | C74: 0 | E74: $202.90 | F74: FACTURA FISICA NVE 001-001-000002262 RIVAS PIÑA VICTOR GABRIEL | G74: $89.25 | H74: FACTURA ELECTRONICA 002-002-000000089 FERRILUVE 001-002-000001757 ELECTROFERR | I74: 0 | K74: 0 | M74: $292.15 | N74: =+'DETALLE ENERO A JULIO 2023'!Q74 -> 83.10 | O74: 375.25
A75: 5.1.2.2.4.10 | B75: Mantenimiento Cancha Multiple (Basket/Voll | C75: 0 | E75: 0 | G75: 0 | I75: 0 | K75: 0 | M75: 0 | N75: =+'DETALLE ENERO A JULIO 2023'!Q75 -> 130.00 | O75: 130.00
A76: 5.1.2.2.4.12 | B76: Mantenimiento de Oficina de Administración | C76: 0 | E76: 0 | G76: 0 | I76: 0 | K76: 0 | M76: 0 | N76: =+'DETALLE ENERO A JULIO 2023'!Q76 -> 33.99 | O76: 33.99
A77: 5.1.2.3 | B77: SERVICIOS BASICOS | C77: =SUM(C78:C89) -> $1,864.38 | E77: =SUM(E78:E89) -> $1,811.62 | G77: =SUM(G78:G89) -> $1,888.32 | I77: =SUM(I78:I89) -> $1,746.17 | K77: =SUM(K78:K89) -> $1,805.11 | M77: $9,115.60 | N77: =+'DETALLE ENERO A JULIO 2023'!Q77 -> 11,441.39 | O77: 20,556.99
A78: 5.1.2.3.1 | B78: Energia Planta De Tratamiento Sum.1647262 | C78: $285.81 | D78: FACTURA ELECTRONICA 002-999-015182260 CNEL | E78: $256.06 | F78: FACTURA ELECTRONICA 002-999-015551845 CNEL | G78: $267.93 | H78: FACTURA ELECTRONICA 002-999-015866394 CNEL | I78: $287.88 | J78: FACTURA ELECTRONICA 002-999-016373012 CNEL | K78: $272.11 | L78: FACTURA ELECTRONICA 002-999-016637215 CNEL | M78: $1,369.79 | N78: =+'DETALLE ENERO A JULIO 2023'!Q78 -> 2,112.15 | O78: 3,481.94
A79: 5.1.2.3.2 | B79: EnergÍa Área Social Sum.2918919 | C79: $368.12 | D79: FACTURA ELECTRONICA 002-999-015182055 CNEL | E79: $365.03 | F79: FACTURA ELECTRONICA 002-999-015556566 CNEL | G79: $365.08 | H79: FACTURA ELECTRONICA 002-999-015871112 CNEL | I79: $303.89 | J79: FACTURA ELECTRONICA 002-999-016377724 CNEL | K79: $347.69 | L79: FACTURA ELECTRONICA 002-999-016641918 CNEL | M79: $1,749.81 | N79: =+'DETALLE ENERO A JULIO 2023'!Q79 -> 2,252.98 | O79: 4,002.79
A80: 5.1.2.3.3 | B80: Energia Parq.Acuatico Sum.380513-1 Mz 31 S | C80: $359.29 | D80: FACTURA ELECTRONICA 002-999-015181963 CNEL | E80: $314.06 | F80: FACTURA ELECTRONICA 002-999-015556417 CNEL | G80: $352.30 | H80: FACTURA ELECTRONICA 002-999-015870963 CNEL | I80: $305.01 | J80: FACTURA ELECTRONICA 002-999-016377575 CNEL | K80: $349.03 | L80: FACTURA ELECTRONICA 002-999-016641771 CNEL | M80: $1,679.69 | N80: =+'DETALLE ENERO A JULIO 2023'!Q80 -> 2,559.37 | O80: 4,239.06
A81: 5.1.2.3.4 | B81: Energia Bomba De Riego Sum 418848-9 Mz 4 | C81: $37.27 | D81: FACTURA ELECTRONICA 002-999-015182241 CNEL | E81: $58.62 | F81: FACTURA ELECTRONICA 002-999-015556492CNEL | G81: $78.09 | H81: FACTURA ELECTRONICA 002-999-015871038 CNEL | I81: $65.36 | J81: FACTURA ELECTRONICA 002-999-016377650 CNEL | K81: $59.06 | L81: FACTURA ELECTRONICA 002-999-016641846 CNEL | M81: $298.40 | N81: =+'DETALLE ENERO A JULIO 2023'!Q81 -> 156.35 | O81: 454.75
A82: 5.1.2.3.5 | B82: Energia Cerco Electrico Sum. 1647266-2 Mz 5 | C82: $44.35 | D82: FACTURA ELECTRONICA 002-999-015182053 002-999-015182054 CNEL | E82: $20.06 | F82: FACTURA ELECTRONICA 002-999-015556934 CNEL | G82: $20.22 | H82: FACTURA ELECTRONICA 002-999-015871480 CNEL | I82: $20.00 | J82: FACTURA ELECTRONICA 002-999-016378092 CNEL | K82: $17.11 | L82: FACTURA ELECTRONICA 002-999-016642286CNEL | M82: $121.74 | N82: =+'DETALLE ENERO A JULIO 2023'!Q82 -> 102.90 | O82: 224.64
A83: 5.1.2.3.6 | B83: Energia Cerco Electrico Sum.1647268-9 Mz 1 | C83: 0 | E83: $16.52 | F83: FACTURA ELECTRONICA 002-999-015551846 CNEL | G83: $19.46 | H83: FACTURA ELECTRONICA 002-999-015866395 CNEL | I83: $19.57 | J83: FACTURA ELECTRONICA 002-999-016373013 CNEL | K83: $17.01 | L83: FACTURA ELECTRONICA 002-999-016637216 CNEL | M83: $72.56 | N83: =+'DETALLE ENERO A JULIO 2023'!Q83 -> 78.36 | O83: 150.92
A84: 5.1.2.3.8 | B84: Agua Guardiania-garita | C84: $19.73 | D84: FACTURA ELECTRONICA 001-001-007534721 AMAGUA | E84: $18.25 | F84: FACTURA ELECTRONICA 001-001-007598032 AMAGUA | G84: $14.13 | H84: FACTURA ELECTRONICA 001-001-007661689 AMAGUA | I84: $15.66 | J84: FACTURA ELECTRONICA 001-001-007725516 AMAGUA | K84: $14.23 | L84: FACTURA ELECTRONICA 001-001-007789583 AMAGUA | M84: $82.00 | N84: =+'DETALLE ENERO A JULIO 2023'!Q84 -> 96.88 | O84: 178.88
A85: 5.1.2.3.9 | B85: Agua Planta De Tratamiento | C85: $2.73 | D85: FACTURA ELECTRONICA 001-001-007535464 AMAGUA | E85: $2.73 | F85: FACTURA ELECTRONICA 001-001-007598775AMAGUA | G85: $2.73 | H85: FACTURA ELECTRONICA 001-001-007662432 AMAGUA | I85: $2.73 | J85: FACTURA ELECTRONICA 001-001-007726259 AMAGUA | K85: $2.73 | L85: FACTURA ELECTRONICA 001-001-007790327 AMAGUA | M85: $13.65 | N85: =+'DETALLE ENERO A JULIO 2023'!Q85 -> 19.12 | O85: 32.77
A86: 5.1.2.3.10 | B86: Agua Parque Acuatico | C86: $52.59 | D86: FACTURA ELECTRONICA 001-001-007535160 AMAGUA | E86: $66.84 | F86: FACTURA ELECTRONICA 001-001-007598471 AMAGUA | G86: $92.71 | H86: FACTURA ELECTRONICA 001-001-007662128 AMAGUA | I86: $63.07 | J86: FACTURA ELECTRONICA 001-001-007725955 AMAGUA | K86: $53.01 | L86: FACTURA ELECTRONICA 001-001-007790022 AMAGUA | M86: $328.22 | N86: =+'DETALLE ENERO A JULIO 2023'!Q86 -> 437.57 | O86: 765.79
A87: 5.1.2.3.11 | B87: Agua Area Social | C87: $573.95 | D87: FACTURA ELECTRONICA 001-001-007535291 AMAGUA | E87: $570.08 | F87: FACTURA ELECTRONICA 001-001-007598602 AMAGUA | G87: $552.32 | H87: FACTURA ELECTRONICA 001-001-007662259 AMAGUA | I87: $544.19 | J87: FACTURA ELECTRONICA 001-001-007726086 AMAGUA | K87: $554.85 | L87: FACTURA ELECTRONICA 001-001-007790153 AMAGUA | M87: $2,795.39 | N87: =+'DETALLE ENERO A JULIO 2023'!Q87 -> 3,023.55 | O87: =+M87+N87 -> 5,818.94
A88: 5.1.2.3.12 | B88: Agua Macro | C88: $24.10 | D88: FACTURA ELECTRONICA 001-001-007534720 AMAGUA | E88: $24.10 | F88: FACTURA ELECTRONICA 001-001-007598031 AMAGUA | G88: $24.10 | H88: FACTURA ELECTRONICA 001-001-007661688 AMAGUA | I88: $24.10 | J88: FACTURA ELECTRONICA 001-001-007725515 AMAGUA | K88: $24.10 | L88: FACTURA ELECTRONICA 001-001-007789582 AMAGUA | M88: =SUM(C88:K88) -> $120.50 | N88: =+'DETALLE ENERO A JULIO 2023'!Q88 -> 168.70 | O88: 289.20
A89: 5.1.2.3.13 | B89: Telefono Guardiania-garita | C89: $96.44 | D89: FACTURA ELECTRONICA 001-221-003469728 CONECEL | E89: $99.27 | F89: FACTURA ELECTRONICA 001-221-003484680 CONECEL | G89: $99.25 | H89: FACTURA ELECTRONICA 001-221-003507012 CONECEL | I89: $94.71 | J89: FACTURA ELECTRONICA 001-221-003529611 CONECEL | K89: $94.18 | L89: FACTURA ELECTRONICA 001-221-003549796 CONECEL | M89: $483.85 | N89: =+'DETALLE ENERO A JULIO 2023'!Q89 -> 433.46 | O89: 917.31
A90: 5.1.2.4 | B90: COSTOS RELACIONADOS A INGRESOS URBANI | C90: =+C91 -> $149.70 | E90: =+E91 -> $149.70 | G90: =+G91 -> $149.70 | I90: =+I91 -> $149.70 | K90: =+K91 -> 0 | M90: $598.80 | N90: =+'DETALLE ENERO A JULIO 2023'!Q90 -> 1,197.60 | O90: 1,796.40
A91: 5.1.2.4.4 | B91: Tag Automóviles -Tarjetas De Proximidad | C91: $149.70 | D91: FACTURA ELECTRONICA BELICOF 001-099-000000482 | E91: $149.70 | F91: FACTURA ELECTRONICA BELICOF 001-099-000000524 | G91: $149.70 | H91: FACTURA ELECTRONICA BELICOF 001-099-000000580 | I91: $149.70 | J91: FACTURA ELECTRONICA BELICOF 001-099-000000638 | K91: 0 | M91: $598.80 | N91: =+'DETALLE ENERO A JULIO 2023'!Q91 -> 1,197.60 | O91: 1,796.40
A92: 5.1.2.5 | B92: COSTOS POR SERVICIOS DE TERCEROS | C92: =SUM(C93:C98) -> $5,055.00 | E92: =SUM(E93:E98) -> $4,883.78 | G92: =SUM(G93:G98) -> $4,946.60 | I92: =SUM(I93:I98) -> $4,850.00 | K92: =SUM(K93:K98) -> $5,144.82 | M92: $24,880.20 | N92: =+'DETALLE ENERO A JULIO 2023'!Q92 -> 36,195.57 | O92: 61,075.77
A93: 5.1.2.5.1 | B93: Servicios prestados guardianía | C93: $2,200.00 | D93: PAGO SERVICIOS PRESTADOS ROLES | E93: $2,200.00 | F93: PAGO SERVICIOS PRESTADOS ROLES | G93: $2,296.60 | H93: PAGO SERVICIOS PRESTADOS ROLES | I93: $2,200.00 | J93: PAGO SERVICIOS PRESTADOS ROLES | K93: $2,700.00 | L93: PAGO SERVICIOS PRESTADOS ROLES | M93: $11,596.60 | N93: =+'DETALLE ENERO A JULIO 2023'!Q93 -> 14,795.00 | O93: 26,391.60
A94: 5.1.2.5.2 | B94: Servicios De Seguridad | C94: $2,625.00 | D94: FACTURAS ELECTRONICA 001-002-000000551 001-010-000003295 001-010-000003296 001-010-000003308 001-010-000003309 FERJEM SEGURIDAD CIA LTDA. | E94: $2,575.00 | F94: FACTURAS ELECTRONICAS 001-010-000003365 001-010-000003366 001-010-000003374 001-010-000003373 FERJEM SEGURIDAD CIA LTDA. | G94: $2,650.00 | H94: FACTURAS ELECTRONICAS 001-010-000003428 001-010-000003427 001-010-000003436 001-010-000003435 FERJEM SEGURIDAD CIA LTDA | I94: $2,650.00 | J94: FACTURAS ELECTRONICAS 001-010-000003492 001-010-000003493 001-010-000003537 001-010-000003536 FERJEM SEGURIDAD CIA LTDA. | K94: $2,444.82 | L94: FACTURAS ELECTRONICAS 001-010-000003562 001-010-000003563 001-010-000003575 001-010-000003574 FERJEM SEGURIDAD CIA LTDA. | M94: $12,944.82 | N94: =+'DETALLE ENERO A JULIO 2023'!Q94 -> 20,814.00 | O94: 33,758.82
A95: 5.1.2.5.3 | B95: Fumigacion De Urbanizacion | C95: 0 | E95: $30.00 | F95: FACTURAS ELECTRONICAS 004-002-000005538 SALAS SALAS SEVERO GIOVANNY | G95: 0 | I95: 0 | K95: 0 | M95: $30.00 | N95: =+'DETALLE ENERO A JULIO 2023'!Q95 -> 0.00 | O95: 30.00
A96: 5.1.2.5.4 | B96: Servicios De Desalojo Deshechos | C96: 0 | E96: 0 | G96: 0 | I96: 0 | K96: 0 | M96: 0 | N96: =+'DETALLE ENERO A JULIO 2023'!Q96 -> 65.00 | O96: 65.00
A97: 5.1.2.5.5 | B97: Gastos eventos para Propietarios | C97: $230.00 | D97: FACTTURAS FISICAS NVE 001-001-000000125 CEPEDA GALAN ELIZABETH MANUELA NVE 001-001-000000128 VILLON VELASTEGUI JORGE EMILIO NVE 001-001-000000017 AGUIRRE BRITO MARLENE PAOLA FAC ELECTRONICA 169-005-000866654 TIENDAS INDUSTRIALES ASOCIADAS TIA S. A. 001-001-000001238 SILVIA YOLANDA CASTILLO TREJO PUBLICIDAD | E97: $78.78 | F97: FACTURAS FISICAS NVE 001-001-000000141 VILLON VELASTEGUI JORGE EMILIO LQC 220-220-000000025 RAMIREZ VARGAS ROBERTO ALEJANDRO | G97: 0 | I97: 0 | K97: 0 | M97: $308.78 | N97: =+'DETALLE ENERO A JULIO 2023'!Q97 -> 343.00 | O97: 651.78
A98: 5.1.2.5.6 | B98: GASTOS DE CAPACITACION DE PERSONAL | C98: 0 | E98: 0 | G98: 0 | I98: 0 | K98: 0 | M98: 0 | N98: =+'DETALLE ENERO A JULIO 2023'!Q98 -> 178.57 | O98: 178.57
A99: 5.2 | B99: GASTOS | C99: =+C100+C141 -> $4,264.43 | E99: =+E100+E141 -> $4,236.14 | G99: =+G100+G141 -> $4,084.36 | I99: =+I100+I141 -> $3,885.98 | K99: =+K100+K141 -> $12,467.72 | N99: =+'DETALLE ENERO A JULIO 2023'!Q99 -> 0.00 | O99: 0.00
A100: 5.2.1 | B100: GASTOS ACTIVIDADES ORDINARIAS | C100: =+C102+C138 -> $4,204.27 | E100: =+E102+E138 -> $4,209.83 | G100: =+G102+G138 -> $4,056.37 | I100: =+I102+I138 -> $3,885.98 | K100: =+K102+K138 -> $6,361.10 | N100: =+'DETALLE ENERO A JULIO 2023'!Q100 -> 37,604.40 | O100: 37,604.40
A101: 5.2.1.1 | B101: VENTAS | C101: 0 | E101: 0 | G101: 0 | I101: 0 | K101: 0 | M101: 0 | N101: =+'DETALLE ENERO A JULIO 2023'!Q101 -> 37,153.94 | O101: 37,153.94
A102: 5.2.1.2 | B102: GASTOS ADMINISTRATIVOS | C102: =+C103+C109+C114+C119+C121+C126+C131 -> $4,196.44 | E102: =+E103+E109+E114+E119+E121+E126+E131 -> $4,200.47 | G102: =+G103+G109+G114+G119+G121+G126+G131 -> $4,049.47 | I102: =+I103+I109+I114+I119+I121+I126+I131 -> $3,879.13 | K102: =+K103+K109+K114+K119+K121+K126+K131 -> $6,355.10 | N102: =+'DETALLE ENERO A JULIO 2023'!Q102 -> 931.60 | O102: 931.60
A103: 5.2.1.2.1 | B103: SUMINISTROS Y MATERIALES ADMINISTRATIVOS | C103: =SUM(C104:C108) -> $161.63 | E103: =SUM(E104:E108) -> $320.16 | G103: =SUM(G104:G108) -> $212.95 | I103: =SUM(I104:I108) -> $243.60 | K103: =SUM(K104:K108) -> $174.10 | M103: $1,112.44 | N103: =+'DETALLE ENERO A JULIO 2023'!Q103 -> 0.00 | O103: 1,112.44
A104: 5.2.1.2.1.1 | B104: Medicinas -Botiquin, Repelentes, etc | C104: $3.13 | D104: FACTURAS ELECTRONICAS 202-110-000049563 GETTAREQ S.A. | E104: 0 | G104: 0 | I104: 0 | K104: 0 | M104: $3.13 | N104: =+'DETALLE ENERO A JULIO 2023'!Q104 -> 240.75 | O104: 243.88
A105: 5.2.1.2.1.2 | B105: Botellón de Agua Para Consumo | C105: $13.50 | D105: FACT FISICA DNA 2807 DNA 0408 DNA 09081 DNA 09082023 APIUC | E105: $87.90 | F105: FACT FISICA FAC 001-001-000000500 001-001-000000596 NVE 001-001-000000604 DISTRIBUIDOR AUTORIZADO AGUALIFE S.A. NVE 001-001-000001372 NVE 001-001-000001462 NVE 001-001-000001375 RIVAS INTRIAGO HUGO ENRIQUE | G105: $25.50 | H105: FACT FISICA NVE 001-001-000000641 NVE 001-001-000004556 NVE 001-001-000000722 DISTRIBUIDOR AUTORIZADO AGUALIFE S.A | I105: $44.70 | J105: FACT FISICA NVE 001-001-000001703 NVE 001-001-000001708 NVE 001-001-000001711 RIVAS INTRIAGO HUGO ENRIQUE NVE 001-001-000000908 VELEZ ALARCON GEOVANNY CIRILO FAC 001-001-000000924 NVE 001-001-000000938 QUINTO MOLINA ERWIN JOFFRE | K105: $30.60 | L105: FACT FISICAS NVE 001-001-000001214 NVE 001-001-000001231 VELEZ ALARCON GEOVANNY CIRILO | M105: $202.20 | N105: =+'DETALLE ENERO A JULIO 2023'!Q105 -> 287.15 | O105: 489.35
A106: 5.2.1.2.1.3 | B106: Utiles De Aseo y Limpieza oficinas | C106: $138.00 | D106: FACT FISICA NVE 002-001-000000902 CRESPO BURGOS CATHERINE ELIZABETH | E106: $142.80 | F106: FACT FISICA NVE 002-001-000001050 CRESPO BURGOS CATHERINE ELIZABETH | G106: $187.45 | H106: FACT FISICA NVE 002-001-000001160 NVE 002-001-000001174 CRESPO BURGOS CATHERINE ELIZABETH | I106: $192.90 | J106: FACT FISICA NVE 002-001-000001297 CRESPO BURGOS CATHERINE ELIZABETH | K106: $143.50 | L106: FACT FISICA NVE 002-001-000001406 CRESPO BURGOS CATHERINE ELIZABETH | M106: $804.65 | N106: =+'DETALLE ENERO A JULIO 2023'!Q106 -> 315.47 | O106: 1,120.12
A107: 5.2.1.2.1.5 | B107: Suministros de oficina | C107: $7.00 | D107: FACT FISICA NVE 001-001-000000109 CEPEDA GALAN ELIZABETH MANUELA | E107: $89.46 | F107: FAC FISICA 001-002-000000642 CHAVEZ DELGADO SONIA MARIBEL | G107: 0 | I107: $6.00 | J107: FACT FISICA NVE 001-001-000000229 CEPEDA GALAN ELIZABETH MANUELA | K107: 0 | M107: $102.46 | N107: =+'DETALLE ENERO A JULIO 2023'!Q107 -> 88.23 | O107: 190.69
A108: 5.2.1.2.1.6 | B108: Impresión y papelería | C108: 0 | E108: 0 | G108: 0 | I108: 0 | K108: 0 | M108: 0 | N108: =+'DETALLE ENERO A JULIO 2023'!Q108 -> 182.37 | O108: 182.37
A109: 5.2.1.2.2 | B109: MANTENIMIENTOS EQUIPOS ADMINISTRATIVOS | C109: =SUM(C110:C113) -> $115.90 | E109: =SUM(E110:E113) -> $123.66 | G109: =SUM(G110:G113) -> $124.92 | I109: =SUM(I110:I113) -> 0 | K109: =SUM(K110:K113) -> $49.49 | N109: =+'DETALLE ENERO A JULIO 2023'!Q109 -> 31.25 | O109: 31.25
A110: 5.2.1.2.2.3 | B110: Mantenim. Y Reparac. Eq de Computación | C110: 0 | E110: 0 | G110: 0 | I110: 0 | K110: 0 | M110: 0 | N110: =+'DETALLE ENERO A JULIO 2023'!Q110 -> 50.00 | O110: 50.00
A111: 5.2.1.2.2.4 | B111: Mantenimiento Aire acondicionado | C111: 0 | E111: 0 | G111: 0 | I111: 0 | K111: 0 | M111: 0 | N111: =+'DETALLE ENERO A JULIO 2023'!Q111 -> 7.79 | O111: 7.79
A112: 5.2.1.2.2.5 | B112: Mantenimiento de instalaciones oficina | C112: 0 | E112: 0 | G112: 0 | I112: 0 | K112: 0 | M112: 0 | N112: =+'DETALLE ENERO A JULIO 2023'!Q112 -> 93.33 | O112: 93.33
A113: 5.2.1.2.2.6 | B113: 6 Mantenimiento de area social | C113: $115.90 | D113: FACT ELECTRONICA 033-907-000087323 033-911-000001489 033-909-000036420 033-905-000202189 COMERCIAL KYWI S.A. DNA 0308 MARCELO ACOSTA MORAN NVE 001-001-000000014 SUPER BIKE SHOP | E113: $123.66 | F113: FACT ELECTRONICA NVE 002-001-000002038 NVE 002-001-000002066 FERRILUVE NVE 001-001-000000014 JARAMILLO RAMIREZ EDEN GABRIEL FACTURA ELECTRONICA FAC 033-909-000039530 COMERCIAL KYWI S.A. | G113: $124.92 | H113: FACT FISICA FAC 037-905-000058673 GERARDO ORTIZ E HIJOS CIA LTDA LQC 220-220-000000027 MARCELO ACOSTA MORAN NVE 001-001-000000016 JARAMILLO RAMIREZ EDEN GABRIEL | I113: 0 | K113: $49.49 | L113: FACT ELECTRONICA 033-910-000022518 033-902-000538078 COMERCIAL KYWI S.A. FAC 002-002-000000288 FERRILUVE FACT FISICA FAC 004-100-000191903 URBINA BERTHA CECILIA TRINIDAD | M113: $413.97 | N113: =+'DETALLE ENERO A JULIO 2023'!Q113 -> 1,745.20 | O113: 2,159.17
A114: 5.2.1.2.33 | B114: SERVICIOS BASICOS ADMINISTRATIVOS | C114: =SUM(C115:C118) -> $252.36 | E114: =SUM(E115:E118) -> $253.65 | G114: =SUM(G115:G118) -> $252.50 | I114: =SUM(I115:I118) -> $255.18 | K114: =SUM(K115:K118) -> $253.74 | N114: =+'DETALLE ENERO A JULIO 2023'!Q114 -> 31.86 | O114: 31.86
A115: 5.2.1.2.33.1 | B115: Agua Para Administración | C115: $4.15 | D115: FACTURA ELECTRONICA AMAGUA 001-001-007535487 | E115: $5.58 | F115: FACTURA ELECTRONICA AMAGUA 001-001-007598798 | G115: $4.15 | H115: FACTURA ELECTRONICA AMAGUA 001-001-007662455 | I115: $5.60 | J115: FACTURA ELECTRONICA AMAGUA 001-001-007726282 | K115: $4.17 | L115: FACTURA ELECTRONICA AMAGUA 001-001-007790350 | M115: $23.65 | N115: =+'DETALLE ENERO A JULIO 2023'!Q115 -> 496.01 | O115: 519.66
A116: 5.2.1.2.33.2 | B116: Teléfono Administración-oficina | C116: $58.21 | D116: FACTURA ELECTRONICA CONECEL FAC 001-221-003460741 | E116: $58.07 | F116: FACTURA ELECTRONICA CONECEL FAC 001-221-003483723 | G116: $58.35 | H116: FACTURA ELECTRONICA CONECEL FAC 001-221-003505731 | I116: $59.58 | J116: FACTURA ELECTRONICA CONECEL FAC 001-221-003527394 | K116: $59.57 | L116: FACTURA ELECTRONICA CONECEL FAC 001-221-003548400 | M116: $293.78 | N116: =+'DETALLE ENERO A JULIO 2023'!Q116 -> 980.00 | O116: 1,273.78
A117: 5.2.1.2.33.3 | B117: Internet | C117: $140.00 | D117: FACTURA ELECTRONICA MEGADATOSFAC 001-011-038667503 | E117: $140.00 | F117: FACTURA ELECTRONICA MEGADATOS FAC 001-011-039445110 | G117: $140.00 | H117: FACTURA ELECTRONICA MEGADATOS FAC 001-011-040235157 | I117: $140.00 | J117: FACTURA ELECTRONICA MEGADATOS FAC 001-011-041023064 | K117: $140.00 | L117: FACTURA ELECTRONICA MEGADATOS FAC 001-011-041810632 | M117: $700.00 | N117: =+'DETALLE ENERO A JULIO 2023'!Q117 -> 237.33 | O117: 937.33
A118: 5.2.1.2.33.4 | B118: Celular-plan | C118: $50.00 | D118: FACTURA ELECTRONICA OTECEL 001-327-098146670 | E118: $50.00 | F118: FACTURA ELECTRONICA OTECEL FAC 001-327-098953698 | G118: $50.00 | H118: FACTURA ELECTRONICA OTECEL FAC 001-327-099909260 | I118: $50.00 | J118: FACTURA ELECTRONICA OTECEL FAC 001-327-100798117 | K118: $50.00 | L118: FACTURA ELECTRONICA OTECEL FAC 001-327-101684445 | M118: $250.00 | N118: =+'DETALLE ENERO A JULIO 2023'!Q118 -> 7,839.98 | O118: 8,089.98
A119: 5.2.1.2.34 | B119: HONORARIOS PROFESIONALES | C119: =SUM(C120) -> $500.00 | E119: =SUM(E120) -> 0 | G119: =SUM(G120) -> 0 | I119: =SUM(I120) -> 0 | K119: =SUM(K120) -> 0 | M119: $500.00 | N119: =+'DETALLE ENERO A JULIO 2023'!Q119 -> 7,839.98 | O119: 8,339.98
A120: 5.2.1.2.34.5 | B120: Honorarios Servicios Varios -Administrat. | C120: $500.00 | D120: FACTURA ELECTRONICA 001-100-000000001 AB.JOSE RAMON DE LA TORRE REINA | E120: 0 | G120: 0 | I120: 0 | K120: 0 | M120: $500.00 | N120: =+'DETALLE ENERO A JULIO 2023'!Q120 -> 7,143.93 | O120: 7,643.93
A121: 5.2.1.2.35 | B121: DEPRECIACIONES | C121: =SUM(C122:C125) -> $981.99 | E121: =SUM(E122:E125) -> $981.99 | G121: =SUM(G122:G125) -> $981.99 | I121: =SUM(I122:I125) -> $981.99 | K121: =SUM(K122:K125) -> $981.99 | M121: $4,909.95 | N121: =+'DETALLE ENERO A JULIO 2023'!Q121 -> 154.98 | O121: 5,064.93
A122: 5.2.1.2.35.1 | B122: Depreciaciones Muebles y enseres | C122: $22.14 | D122: ASI 202308000009 | E122: $22.14 | F122: ASI 202309000007 | G122: $22.14 | H122: ASI 202310000008 | I122: $22.14 | J122: ASI 202311000006 | K122: $22.14 | L122: ASI 202312000003 | M122: $110.70 | N122: =+'DETALLE ENERO A JULIO 2023'!Q122 -> 5,926.48 | O122: 6,037.18
A123: 5.2.1.2.35.2 | B123: Depreciaciones Maquinarias y Equipos | C123: $846.64 | D123: ASI 202308000009 | E123: $846.64 | F123: ASI 202309000007 | G123: $846.64 | H123: ASI 202310000008 | I123: $846.64 | J123: ASI 202311000006 | K123: $846.64 | L123: ASI 202312000003 | M123: $4,233.20 | N123: =+'DETALLE ENERO A JULIO 2023'!Q123 -> 543.35 | O123: 4,776.55
A124: 5.2.1.2.35.3 | B124: Depreciaciones Equipos de Computo | C124: $39.05 | D124: ASI 202308000009 | E124: $39.05 | F124: ASI 202309000007 | G124: $39.05 | H124: ASI 202310000008 | I124: $39.05 | J124: ASI 202311000006 | K124: $39.05 | L124: ASI 202312000003 | M124: $195.25 | N124: =+'DETALLE ENERO A JULIO 2023'!Q124 -> 519.12 | O124: 714.37
A125: 5.2.1.2.35.6 | B125: Depreciaciones Instalaciones de la Urbaniza | C125: $74.16 | D125: ASI 202308000009 | E125: $74.16 | F125: ASI 202309000007 | G125: $74.16 | H125: ASI 202310000008 | I125: $74.16 | J125: ASI 202311000006 | K125: $74.16 | L125: ASI 202312000003 | M125: $370.80 | N125: =+'DETALLE ENERO A JULIO 2023'!Q125 -> 14,389.96 | O125: 14,760.76
A126: 5.2.1.2.36 | B126: SERVICIOS PRESTADOS ADMINISTRATIVOS | C126: =SUM(C127:C130) -> $1,753.56 | E126: =SUM(E127:E130) -> $2,125.55 | G126: =SUM(G127:G130) -> $2,077.28 | I126: =SUM(I127:I130) -> $1,953.56 | K126: =SUM(K127:K130) -> $1,853.56 | M126: $9,763.51 | N126: =+'DETALLE ENERO A JULIO 2023'!Q126 -> 13,667.39 | O126: 23,430.90
A127: 5.2.1.2.36.1 | B127: Servicios prestados contables y administ | C127: $1,745.57 | D127: FACTURAS FISICA FAC 001-001-000000014 SUAREZ LUQUE JOSE ENRIQUE NVE 001-001-000000001 PAULA DELGADO NVE 001-001-000000009 LUCERO NOVILLO MONICA PATRICIA | E127: $2,045.57 | F127: FACTURAS FISICA NVE 001-001-000000001 Anggie Salazar NVE 001-001-000000002 PAULA DELGADO FAC 001-001-000000015 SUAREZ LUQUE JOSE ENRIQUE NVE 001-001-000000010 LUCERO NOVILLO MONICA PATRICIA | G127: $2,045.57 | H127: FACTURAS FISICA NVE 001-001-000000002 Anggie Salazar NVE 001-001-000000003 PAULA DELGADO FAC 001-001-000000017 SUAREZ LUQUE JOSE ENRIQUE NVE 001-001-000000013 LUCERO NOVILLO MONICA PATRICIA | I127: $1,945.57 | J127: FACTURAS FISICA NVE 001-001-000000004 PAULA DELGADO NVE 001-001-000000015 LUCERO NOVILLO MONICA PATRICIA FAC 001-001-000000018 SUAREZ LUQUE JOSE ENRIQUE NVE 001-001-000000003 Anggie Salazar | K127: $1,845.57 | L127: FACTURAS FISICA NVE 001-001-000000005 PAULA DELGADO NVE 001-001-000000017 LUCERO NOVILLO MONICA PATRICIA FAC 001-001-000000019 SUAREZ LUQUE JOSE ENRIQUE NVE 001-001-000000004 Anggie Salazar | M127: $9,627.85 | N127: =+'DETALLE ENERO A JULIO 2023'!Q127 -> 666.64 | O127: 10,294.49
A128: 5.2.1.2.36.2 | B128: Sistema contable | C128: 0 | E128: 0 | G128: $23.72 | H128: FACTURAS ELECTRONICAS FAC 001-002-000092358 CONTIFICO | I128: 0 | K128: 0 | M128: $23.72 | N128: =+'DETALLE ENERO A JULIO 2023'!Q128 -> 55.93 | O128: 79.65
A129: 5.2.1.2.36.3 | B129: Serv. Conex. Datamovil | C129: $7.99 | D129: FACTURAS ELECTRONICAS DATAFAST FAC 001-002-003818770 | E129: $7.99 | F129: FACTURAS ELECTRONICAS DATAFAST FAC 001-003-000031668 | G129: $7.99 | H129: FACTURAS ELECTRONICAS DATAFAST FAC 001-003-000086325 | I129: $7.99 | J129: FACTURAS ELECTRONICAS DATAFAST FAC 001-003-000115764 | K129: $7.99 | L129: FACTURAS ELECTRONICAS DATAFAST FAC 001-003-000174558 | M129: $39.95 | N129: =+'DETALLE ENERO A JULIO 2023'!Q129 -> 0.00 | O129: 39.95
A130: 5.2.1.2.36.4 | B130: Pagina Web Urbanización | C130: 0 | E130: $71.99 | F130: FACTURA ELECTRONICA 001-002-000000837 Viteri Calle Carlos Jose | G130: 0 | I130: 0 | K130: 0 | M130: $71.99 | N130: =+'DETALLE ENERO A JULIO 2023'!Q130 -> 4,920.90 | O130: 4,992.89
A131: 5.2.1.2.37 | B131: OTROS SERVICIOS ADMINISTRATIVOS | C131: =SUM(C132:C137) -> $431.00 | E131: =SUM(E132:E137) -> $395.46 | G131: =SUM(G132:G137) -> $399.83 | I131: =SUM(I132:I137) -> $444.80 | K131: =SUM(K132:K137) -> $3,042.22 | M131: $4,713.31 | N131: =+'DETALLE ENERO A JULIO 2023'!Q131 -> 432.71 | O131: 5,146.02
A132: 5.2.1.2.37.1 | B132: Movilizaciones y Transporte Administrat. | C132: $13.39 | D132: FACTURAS ELECTRONICAS 002-001-000177723 MOTORGAS S.A. | E132: $16.00 | F132: DNA 07092023 SUAREZ LUQUE JOSE ENRIQUE | G132: $5.00 | H132: DNA 22092023 SUAREZ LUQUE JOSE ENRIQUE | I132: 0 | K132: $20.00 | L132: DNA 05102023 SUAREZ LUQUE JOSE ENRIQUE | M132: $54.39 | N132: =+'DETALLE ENERO A JULIO 2023'!Q132 -> 80.46 | O132: 134.85
A133: 5.2.1.2.37.3 | B133: Copias ,Escaneos, Lonas, Banners, etc | C133: 0 | E133: 0 | G133: $14.44 | H133: FACTURAS ELECTRONICAS FAC 001-900-000000465 FAC 001-900-000000444 FAC 002-002-000018680 FREIRE VILELA OLGA YOLANDA | I133: 0 | K133: $13.80 | L133: FACTURAS ELECTRONICAS FAC 001-900-000000555 GIGANTOPRINT S.A.S. | M133: $28.24 | N133: =+'DETALLE ENERO A JULIO 2023'!Q133 -> 3.49 | O133: 31.73
A134: 5.2.1.2.37.4 | B134: Gastos Navideños- cenas y bonos | C134: 0 | E134: 0 | G134: 0 | I134: 0 | K134: $2.68 | L134: FACTURAS ELECTRONICAS 001-002-000006322 AMAGUAYA LLAMUCA ANGEL | M134: $2.68 | N134: =+'DETALLE ENERO A JULIO 2023'!Q134 -> 134.20 | O134: 136.88
A135: 5.2.1.2.37.6 | B135: Otros Gastos Administrativos - Bonos | C135: 0 | E135: 0 | G135: $3.58 | H135: FACTURA ELECTRONICA 001-002-000071072 CARVAJAL AYALA MARIA DEL CARMEN | I135: $90.49 | J135: FACTURAS ELECTRONICAS 001-002-000071459 001-002-000071461 CARVAJAL AYALA MARIA DEL CARMEN 001-001-000000186 DISMARTECH FAC 002-002-000000203 002-002-000000211 FERRILUVE | K135: $2,562.96 | L135: BONIFICACION PARA PERSONAL | M135: $2,657.03 | N135: =+'DETALLE ENERO A JULIO 2023'!Q135 -> 4,098.60 | O135: 6,755.63
A136: 5.2.1.2.37.9 | B136: IVA cargado al Gasto | C136: $416.63 | E136: $374.81 | G136: $372.96 | I136: $339.31 | K136: $442.78 | M136: $1,946.49 | N136: =+'DETALLE ENERO A JULIO 2023'!Q136 -> 171.44 | O136: 2,117.93
A137: 5.2.1.2.37.11 | B137: Refrigerios o alimentación administ | C137: $0.98 | D137: FACT FISICA 001-100-000017239 FLORES GARCIA SANTOS EDMUNDO | E137: $4.65 | F137: FACT ELECTRONICA 031-077-000390897 MEGA SANTAMARIA S.A. | G137: $3.85 | H137: FACT FISICA NVE 001-001-000000106 NVE 001-001-000000109 NVE 001-001-000000110 SARMIENTO ZAPATA DANNY MAURICIO | I137: $15.00 | J137: FACT FISICA NVE 001-001-000000125 NVE 001-001-000000126 SARMIENTO ZAPATA DANNY MAURICIO FACT ELECTRONICA FAC 001-001-000017522 PANADERÍA Y PASTELERIA SAN MARCOS LA AURORA | K137: 0 | M137: $24.48 | N137: =+'DETALLE ENERO A JULIO 2023'!Q137 -> 231.14 | O137: 255.62
A138: 5.2.1.3 | B138: GASTOS FINANCIEROS | C138: =SUM(C139:C140) -> $7.83 | E138: =SUM(E139:E140) -> $9.36 | G138: =SUM(G139:G140) -> $6.90 | I138: =SUM(I139:I140) -> $6.85 | K138: =SUM(K139:K140) -> $6.00 | M138: $36.94 | N138: =+'DETALLE ENERO A JULIO 2023'!Q138 -> 65.56 | O138: 102.50
A139: 5.2.1.3.1 | B139: Comisiones Instituc. del Sist. financiero Privad | C139: $7.83 | E139: $9.36 | G139: $6.90 | I139: $6.85 | K139: $6.00 | M139: $36.94 | N139: =+'DETALLE ENERO A JULIO 2023'!Q139 -> 165.58 | O139: 202.52
A140: 5.2.1.3.8 | B140: Otros gastos Financieros | C140: 0 | E140: 0 | G140: 0 | I140: 0 | K140: 0 | M140: 0 | N140: =+'DETALLE ENERO A JULIO 2023'!Q140 -> 219.32 | O140: 219.32
A141: 5.2.2 | B141: GASTOS NO OPERACIONALES | C141: =+C142 -> $60.16 | E141: =+E142 -> $26.31 | G141: =+G142 -> $27.99 | I141: =+I142 -> 0 | K141: =+K142 -> $6,106.62 | M141: $6,221.08 | N141: =+'DETALLE ENERO A JULIO 2023'!Q141 -> 219.32 | O141: 6,440.40
A142: 5.2.2.1 | B142: OTROS GASTOS | C142: =SUM(C143:C146) -> $60.16 | E142: =SUM(E143:E146) -> $26.31 | G142: =SUM(G143:G146) -> $27.99 | I142: =SUM(I143:I146) -> 0 | K142: =SUM(K143:K146) -> $6,106.62 | M142: $6,221.08 | N142: =+'DETALLE ENERO A JULIO 2023'!Q142 -> 45.49 | O142: 6,266.57
A143: 5.2.2.1.2 | B143: Intereses y multas varias | C143: $39.38 | E143: $26.31 | G143: 0 | I143: 0 | K143: 0 | M143: $65.69 | N143: =+'DETALLE ENERO A JULIO 2023'!Q143 -> 147.73 | O143: 213.42
A144: 5.2.2.1.4 | B144: Intereses y multas IESS | C144: $20.78 | E144: 0 | G144: $24.99 | I144: 0 | K144: $6,028.96 | M144: $6,074.73 | N144: =+'DETALLE ENERO A JULIO 2023'!Q144 -> 12.00 | O144: 6,086.73
A145: 5.2.2.1.9 | B145: Gastos de Gestión | C145: 0 | E145: 0 | G145: $3.00 | I145: 0 | K145: $77.66 | M145: $80.66 | N145: =+'DETALLE ENERO A JULIO 2023'!Q145 -> 14.10 | O145: 94.76
A146: 5.2.2.1.10 | B146: Retenciones Asumidas | C146: 0 | E146: 0 | G146: 0 | I146: 0 | K146: 0 | M146: 0 | N146: =+'DETALLE ENERO A JULIO 2023'!Q146 -> 10,251.77 | O146: 10,251.77
B147: PERDIDAS / GANANCIAS | C147: =+C3-C22 -> -$1,157.53 | E147: =+E3-E22 -> $1,594.05 | G147: =+G3-G22 -> -$3,376.50 | I147: =+I3-I22 -> -$1,397.63 | K147: =+K3-K22 -> $1,661.93 | M147: =+M3-M22 -> -$2,675.68 | N147: =+N3-N22 -> $10,251.77 | O147: $7,576.09
